Workbook

Sheet Results
A1: Teachers Pension Scheme(s) | S1: 60 | T1: NRA60 | V1: 365 | W1: M | X1: =(D15/V1)+B15 -> 0 | Y1: 0.5 | Z1: 60 | AC1: =IF(Results!D5="NHS 1995 Section","60",IF(Results!D5="NHS 2008 Section","65")) -> FALSE
S2: 80 | T2: NRA65 | V2: 122 | W2: F | X2: =(J15/V1)+G15 -> 0 | Y2: 0.375
A3: Resource Account Calculator for Unprotected Members to 31/07/2023 | T3: NHS 2015 Section
B5: Final Salary Pension Scheme | D5: Choose | G5: Inflation Rate | J5: 0.101 | O5: =B15+(D15/365) -> 0
B6: Name | O6: =IF(Results!D5="NHS 2008 Section","60",IF(Results!D5="NHS 1995 Section","80")) -> FALSE | AQ6: Quick Ref Key
B7: Gender | D7: Choose | G7: Age at Start of Period | J7: ='Teachers Non Club Factors'!C111 -> 122
B8: Date of Birth | G8: Age at End of Period | J8: ='Teachers Non Club Factors'!C122 -> 123 | AQ8: 1 | AR8: State Pension Age in Years & Months
B9: State Pension Age: Years, Months | D9: 0 | E9: 0 | F9: 1
AQ10: 2 | AR10: Final Salary Service @ 31/03/2015
B11: Start of Period - 31/07/2022 | G11: End of Period - 31/07/2023 | P11: 2016/2017 | U11: 2022/2023
O12: Start | Q12: End | T12: Start | V12: End | Y12: Start adj inflation | AQ12: 3 | AR12: The actual pensionable earnings for 01/04/2015 - 31/03/2016
B13: Final Salary Service | G13: Final Salary Service
B14: Years | D14: Days | G14: Years | J14: Days | O14: FS | P14: CARE | Q14: FS | R14: CARE | T14: FS | U14: CARE | V14: FS | W14: CARE | X14: Difference | AQ14: 4 | AR14: The actual pensionable earnings for 01/04/2016 - 31/03/2017
B15: 0 | D15: 0 | F15: 2 | G15: =B15 -> 0 | J15: =D15 -> 0 | L15: 8 | N15: Pension | T15: =IF(D5=T1,ROUND((D25/S2)*X1,2),ROUND((D25/S1)*X1,2)) -> 0 | U15: =AA45 -> 0 | V15: =IF(D5=T1,ROUND((J19/S2)*X2,2),ROUND((J19/S1)*X2,2)) -> 0 | W15: =AA46 -> 0 | X15: =(V15+W15)-(T15+U15) -> 0 | Y15: =(T15+U15)*J5 -> 0 | Z15: =(T15+U15)+Y15 -> 0
N16: Lump Sum | T16: =IF(D5=T1,(T15*3),0) -> 0 | V16: =IF(D5=T1,(V15*3),0) -> 0 | X16: =(V16+W16)-(T16+U16) -> 0 | Y16: =(T16+U16)*J5 -> 0 | Z16: =(T16+U16)+Y16 -> 0 | AQ16: 5 | AR16: The actual pensionable earnings for 01/04/2017 - 31/03/2018
B17: CARE Earnings April 15 - March 16 | D17: 0 | F17: 3 | G17: CARE Earnings August 22 - March 23 | J17: 0 | L17: 9 | N17: Spouse | T17: =IF(D5=T1,(T15*Y1),(T15*Y2)) -> 0 | U17: =U15*0.375 -> 0 | V17: =IF(D5=T1,(V15*Y1),(V15*Y2)) -> 0 | W17: =W15*0.375 -> 0 | X17: =(V17+W17)-(T17+U17) -> 0
B18: CARE Earnings April 16 - March 17 | D18: 0 | F18: 4 | G18: CARE Earnings April 23 - July 23 | J18: 0 | L18: 10 | AQ18: 6 | AR18: The Whole-Time Equivalent salary for 01/04/2017 - 31/03/2018 (if the member is full-time, this should match cell 5)
B19: CARE Earnings April 17 - March 18 | D19: 0 | F19: 5 | G19: FS Link Pensionable Pay @ 31/07/23 | J19: 0 | L19: 11 | N19: Factors
B20: CARE Earnings April 18 - March 19 | D20: 0 | F20: 6
B21: CARE Earnings April 19 - March 20 | D21: 0
B22: CARE Earnings April 20 - March 21 | D22: 0
B23: CARE Earnings April 21 - March 22 | D23: 0
B24: CARE Earnings April 22 - July 22 | D24: 0
B25: FS Link Pensionable Pay @ 31/07/22 | D25: 0 | F25: 7 | AQ25: 7 | AR25: These cells will automatically be populated with the same service as cells 2. As members cannot acrue any further final salary service once they have transitioned in to the CARE Scheme, unless they have purchased an additional years contract. (If the member has an addtional years contract please conatct SPPA for service details)
N27: Pension | T27: ='Teachers Non Club Factors'!F112 -> 17.77 | U27: ='STPS STSS Non Club Factors'!D11 -> FALSE | V27: ='Teachers Non Club Factors'!F123 -> 17.77 | W27: ='STPS STSS Non Club Factors'!BB26 -> FALSE | AQ27: 8 | AR27: The actual pensionable earnings for 01/04/2018 - 31/03/2018
B28: Benefits (without inflation) | N28: Lump Sum | T28: ='Teachers Non Club Factors'!F113 -> 0 | V28: ='Teachers Non Club Factors'!F124 -> 0
B29: Final Salary Pension | D29: =T15 -> 0 | G29: Final Salary Pension | J29: =V15 -> 0 | N29: Spouse | T29: ='Teachers Non Club Factors'!F114 -> 1.55 | U29: ='STPS STSS Non Club Factors'!D13 -> FALSE | V29: ='Teachers Non Club Factors'!F125 -> 1.55 | W29: ='STPS STSS Non Club Factors'!BB28 -> FALSE | AQ29: 9 | AR29: The Whole-Time Equivalent salary for 01/04/2018 - 31/03/2019 (if the member is full-time, this should match cell 8)
B30: Care Pension | D30: =U15 -> 0 | G30: Care Pension | J30: =W15 -> 0 | N30: Care Adjust Factor | U30: 1 | W30: 1
B31: Total Pension | D31: =SUM(D29:E30) -> 0 | G31: Total Pension | J31: =SUM(J29:K30) -> 0
B32: Lump Sum | D32: =T45 -> 0 | G32: Lump Sum | J32: =V45 -> 0
T33: =(T15)*T27 -> 0 | U33: =U15*U27 -> 0 | V33: 0 | W33: 0
B34: Final Salary CETV | D34: =T37 -> 0 | G34: Final Salary CETV | J34: =V37 -> 0 | T34: =(T16)*T28 -> 0 | U34: 0 | V34: 0 | W34: 0
B35: Care CETV | D35: =U37 -> 0 | G35: Care CETV | J35: =W37 -> 0 | T35: =T17*T29 -> 0 | U35: 0 | V35: 0 | W35: 0
B36: Total CETV | D36: =SUM(D34:E35) -> 0 | G36: Total CETV | J36: =SUM(J34:K35) -> 0 | U36: =SUM(U33:U35) -> 0 | W36: =SUM(W33:W35) -> 0
T37: =SUM(T33:T35) -> 0 | U37: =U36*U30 -> 0 | V37: =SUM(V33:V35) -> 0 | W37: =W36*W30 -> 0 | Y37: Scheme Year | Z37: CARE Pension
C38: Results (including inflation) | Y38: 15/16 | Z38: =(D17/57)*1.015 -> 0
T39: =T37+U37 -> 0 | V39: =V37+W37 -> 0 | Y39: 16/17 | Z39: =((D18/57)+Z38)*1.026 -> 0
C40: Real Increase in Pension | G40: =(V15+W15)-Z15 -> 0 | T40: =T39*J5 -> 0 | Y40: 17/18 | Z40: =((D19/57)+Z39)*1.046 -> 0
C41: Real Increase in Lump Sum | G41: =V16-Z16 -> 0 | N41: With Inflation | T41: =T39+T40 -> 0 | Y41: 18/19 | Z41: =((D20/57)+Z40)*1.04 -> 0
C42: Accrued Pension | G42: =J31 -> 0 | Y42: 19/20 | Z42: =((D21/57)+Z41)*1.033 -> 0
C43: Accrued Lump Sum | G43: =V45 -> 0 | N43: CETV | T43: =T41 -> 0 | V43: =V39 -> 0 | Y43: 20/21 | Z43: =((D22/57)+Z42)*1.021 -> 0 | AA43: Part Years
C44: CETV at start of period | G44: =T41 -> 0 | N44: Pension | T44: =T15+U15 -> 0 | V44: =V15+W15 -> 0 | Y44: 21/22 | Z44: =((D23/57)+Z43)*1.047 -> 0 | AA44: Apr - Jul | AB44: Aug - Mar
C45: CETV at end of period | G45: =J36 -> 0 | N45: Lump Sum | T45: =T16+U16 -> 0 | V45: =V16+W16 -> 0 | Y45: 22/23 | Z45: =(((D24+J17)/57)+Z44)*1.117 -> 0 | AA45: =((D24/57)+Z44)*1.117 -> 0 | AB45: =(((J18+D24)/57)+Z44)*1.117 -> 0
C46: Real Increase in CETV | G46: =G45-G44 -> 0 | Y46: 23/24 | Z46: =(J18/57)+Z45 -> 0 | AA46: =((J18/57)+Z45) -> 0 | AB46: 0
B48: The actual rate of pension that would be payable to the senior manager if they became entitled to it at the end of the of the financial year. | I48: PE | J48: =G42 -> 0
B49: The amount of lump sum that would be payable to the senior manager if they became entitled to it at the end of the financial year | I49: LSE | J49: =V45 -> 0
B50: The annual rate of pension, adjusted for inflation that would be payable to the senior manager if they became entitled to it at the beginning of the year | I50: PB | J50: =Z15 -> 0
B51: The amount of lump sum, adjusted for inflation, that would be payable to the senior manager if they became entitled to it at the beginning of the financial year | I51: LSB | J51: =Z16 -> 0
B52: Annual Increase to total Remuneration package | J52: =SUM((20*J48)+J49)-((20*J50)+J51) -> 0

Sheet Teachers Non Club Factors (hidden)
A1: Table TV2 – 1995 section: Males Normal Pension Age 60 | I1: Table TV2 – 1995 section: Females Normal Pension Age 60 | Q1: Table TV3 – 2008 Section: Males Normal Pension Age 65 | Y1: Table TV4 – 2008 Section: Females Normal Pension Age 65 (up to age 59)
A2: Age last birthday at guarantee date | B2: Pension Factor | C2: Lump Sum Factor | D2: Surviving Partner's Pension Factor | E2: Male Deduction for GMP | F2: Deduction for NI Modification | G2: GMP Adj | I2: Age last birthday at guarantee date | J2: Pension Factor | K2: Lump Sum Factor | L2: Surviving Partner's Pension Factor | M2: Female Deduction for GMP | N2: Deduction for NI Modification | O2: GMP Adj | Q2: Age last birthday at guarantee date | R2: Pension Factor | S2: Lump Sum Factor (Choice Optants only) | T2: Surviving Partner's Pension Factor | U2: Male Deduction for GMP | V2: Deduction for NI Modification | W2: GMP Adj | Y2: Age last birthday at guarantee date | Z2: Pension Factor | AA2: Lump Sum Factor (Choice Optants only) | AB2: Surviving Partner's Pension Factor | AC2: Female Deduction for Pre88 GMP | AD2: Female Deduction for Post88 GMP | AE2: Deduction for NI Modification | AF2: GMP Adj
B3: (Factor A) | C3: (Factor B) | D3: (Factor C) | E3: (Factor D) | F3: (Factor F) | G3: Factor | J3: (Factor A) | K3: (Factor B) | L3: (Factor C) | M3: (Factor D) | N3: (Factor F) | R3: (Factor A) | S3: (Factor B) | T3: (Factor C) | U3: (Factor D) | V3: (Factor E) | W3: Factor | Z3: (Factor A) | AA3: (Factor B) | AB3: (Factor C) | AC3: (Factor D) | AD3: (Factor †E) | AE3: (Factor E) | AF3: Factor
A4: 18 | B4: 7.26 | C4: 0.35 | D4: 0.66 | E4: 3.63 | F4: 5.18 | G4: 0.15 | I4: 18 | J4: 7.26 | K4: 0.35 | L4: 0.66 | M4: 3.1 | N4: 5.18 | O4: 0.15 | Q4: 18 | R4: 6.5 | S4: 0.33 | T4: 0.76 | U4: 3.66 | V4: 4.65 | W4: 0.15 | Y4: 18 | Z4: 6.5 | AA4: 0.33 | AB4: 0.76 | AC4: -0.67 | AD4: -0.67 | AE4: 4.65 | AF4: 3.5
A5: 19 | B5: 7.26 | C5: 0.35 | D5: 0.66 | E5: 3.63 | F5: 5.18 | G5: 0.15 | I5: 19 | J5: 7.26 | K5: 0.35 | L5: 0.66 | M5: 3.1 | N5: 5.18 | O5: 0.15 | Q5: 19 | R5: 6.64 | S5: 0.34 | T5: 0.8 | U5: 3.65 | V5: 4.78 | W5: 0.15 | Y5: 19 | Z5: 6.64 | AA5: 0.34 | AB5: 0.8 | AC5: -0.68 | AD5: -0.68 | AE5: 4.78 | AF5: 3.5
A6: 20 | B6: 7.26 | C6: 0.35 | D6: 0.66 | E6: 3.63 | F6: 5.18 | G6: 0.15 | I6: 20 | J6: 7.26 | K6: 0.35 | L6: 0.66 | M6: 3.1 | N6: 5.18 | O6: 0.15 | Q6: 20 | R6: 6.78 | S6: 0.35 | T6: 0.82 | U6: 3.64 | V6: 4.91 | W6: 0.15 | Y6: 20 | Z6: 6.78 | AA6: 0.35 | AB6: 0.82 | AC6: -0.7 | AD6: -0.7 | AE6: 4.91 | AF6: 3.5
A7: 21 | B7: 7.26 | C7: 0.35 | D7: 0.66 | E7: 3.63 | F7: 5.18 | G7: 0.15 | I7: 21 | J7: 7.26 | K7: 0.35 | L7: 0.66 | M7: 3.1 | N7: 5.18 | O7: 0.15 | Q7: 21 | R7: 6.93 | S7: 0.36 | T7: 0.84 | U7: 3.64 | V7: 5.04 | W7: 0.15 | Y7: 21 | Z7: 6.93 | AA7: 0.36 | AB7: 0.84 | AC7: -0.71 | AD7: -0.71 | AE7: 5.04 | AF7: 3.5
A8: 22 | B8: 8.93 | C8: 0.41 | D8: 0.84 | E8: 3.63 | F8: 5.18 | G8: 0.15 | I8: 22 | J8: 8.93 | K8: 0.41 | L8: 0.84 | M8: 3.1 | N8: 5.18 | O8: 0.15 | Q8: 22 | R8: 7.07 | S8: 0.36 | T8: 0.86 | U8: 3.63 | V8: 5.18 | W8: 0.15 | Y8: 22 | Z8: 7.07 | AA8: 0.36 | AB8: 0.86 | AC8: -0.73 | AD8: -0.73 | AE8: 5.18 | AF8: 3.5
A9: 23 | B9: 9.13 | C9: 0.42 | D9: 0.86 | E9: 3.63 | F9: 5.32 | G9: 0.15 | I9: 23 | J9: 9.13 | K9: 0.42 | L9: 0.86 | M9: 3.09 | N9: 5.32 | O9: 0.15 | Q9: 23 | R9: 7.22 | S9: 0.37 | T9: 0.88 | U9: 3.63 | V9: 5.32 | W9: 0.15 | Y9: 23 | Z9: 7.22 | AA9: 0.37 | AB9: 0.88 | AC9: -0.74 | AD9: -0.74 | AE9: 5.32 | AF9: 3.5
A10: 24 | B10: 9.33 | C10: 0.43 | D10: 0.88 | E10: 3.62 | F10: 5.46 | G10: 0.15 | I10: 24 | J10: 9.33 | K10: 0.43 | L10: 0.88 | M10: 3.09 | N10: 5.46 | O10: 0.15 | Q10: 24 | R10: 7.38 | S10: 0.38 | T10: 0.9 | U10: 3.62 | V10: 5.46 | W10: 0.15 | Y10: 24 | Z10: 7.38 | AA10: 0.38 | AB10: 0.9 | AC10: -0.76 | AD10: -0.76 | AE10: 5.46 | AF10: 3.5
A11: 25 | B11: 9.53 | C11: 0.44 | D11: 0.91 | E11: 3.61 | F11: 5.61 | G11: 0.15 | I11: 25 | J11: 9.53 | K11: 0.44 | L11: 0.91 | M11: 3.08 | N11: 5.61 | O11: 0.15 | Q11: 25 | R11: 7.53 | S11: 0.39 | T11: 0.92 | U11: 3.61 | V11: 5.61 | W11: 0.15 | Y11: 25 | Z11: 7.53 | AA11: 0.39 | AB11: 0.92 | AC11: -0.78 | AD11: -0.78 | AE11: 5.61 | AF11: 3.5
A12: 26 | B12: 9.74 | C12: 0.45 | D12: 0.93 | E12: 3.61 | F12: 5.77 | G12: 0.15 | I12: 26 | J12: 9.74 | K12: 0.45 | L12: 0.93 | M12: 3.08 | N12: 5.77 | O12: 0.15 | Q12: 26 | R12: 7.69 | S12: 0.4 | T12: 0.94 | U12: 3.61 | V12: 5.77 | W12: 0.15 | Y12: 26 | Z12: 7.69 | AA12: 0.4 | AB12: 0.94 | AC12: -0.79 | AD12: -0.79 | AE12: 5.77 | AF12: 3.5
A13: 27 | B13: 9.95 | C13: 0.46 | D13: 0.95 | E13: 3.6 | F13: 5.92 | G13: 0.15 | I13: 27 | J13: 9.95 | K13: 0.46 | L13: 0.95 | M13: 3.07 | N13: 5.92 | O13: 0.15 | Q13: 27 | R13: 7.85 | S13: 0.41 | T13: 0.96 | U13: 3.6 | V13: 5.92 | W13: 0.15 | Y13: 27 | Z13: 7.85 | AA13: 0.41 | AB13: 0.96 | AC13: -0.81 | AD13: -0.81 | AE13: 5.92 | AF13: 3.5
A14: 28 | B14: 10.16 | C14: 0.47 | D14: 0.97 | E14: 3.59 | F14: 6.08 | G14: 0.15 | I14: 28 | J14: 10.16 | K14: 0.47 | L14: 0.97 | M14: 3.07 | N14: 6.08 | O14: 0.15 | Q14: 28 | R14: 8.02 | S14: 0.42 | T14: 0.99 | U14: 3.59 | V14: 6.08 | W14: 0.15 | Y14: 28 | Z14: 8.02 | AA14: 0.42 | AB14: 0.99 | AC14: -0.82 | AD14: -0.82 | AE14: 6.08 | AF14: 3.5
A15: 29 | B15: 10.38 | C15: 0.49 | D15: 0.99 | E15: 3.59 | F15: 6.25 | G15: 0.15 | I15: 29 | J15: 10.38 | K15: 0.49 | L15: 0.99 | M15: 3.06 | N15: 6.25 | O15: 0.15 | Q15: 29 | R15: 8.19 | S15: 0.43 | T15: 1.01 | U15: 3.59 | V15: 6.25 | W15: 0.15 | Y15: 29 | Z15: 8.19 | AA15: 0.43 | AB15: 1.01 | AC15: -0.84 | AD15: -0.84 | AE15: 6.25 | AF15: 3.5
A16: 30 | B16: 10.61 | C16: 0.5 | D16: 1.01 | E16: 3.58 | F16: 6.42 | G16: 0.15 | I16: 30 | J16: 10.61 | K16: 0.5 | L16: 1.01 | M16: 3.06 | N16: 6.42 | O16: 0.15 | Q16: 30 | R16: 8.36 | S16: 0.44 | T16: 1.03 | U16: 3.58 | V16: 6.42 | W16: 0.15 | Y16: 30 | Z16: 8.36 | AA16: 0.44 | AB16: 1.03 | AC16: -0.86 | AD16: -0.86 | AE16: 6.42 | AF16: 3.5
A17: 31 | B17: 10.84 | C17: 0.51 | D17: 1.04 | E17: 3.58 | F17: 6.6 | G17: 0.15 | I17: 31 | J17: 10.84 | K17: 0.51 | L17: 1.04 | M17: 3.05 | N17: 6.6 | O17: 0.15 | Q17: 31 | R17: 8.54 | S17: 0.45 | T17: 1.05 | U17: 3.58 | V17: 6.6 | W17: 0.15 | Y17: 31 | Z17: 8.54 | AA17: 0.45 | AB17: 1.05 | AC17: -0.87 | AD17: -0.87 | AE17: 6.6 | AF17: 3.5
A18: 32 | B18: 11.08 | C18: 0.52 | D18: 1.06 | E18: 3.57 | F18: 6.78 | G18: 0.15 | I18: 32 | J18: 11.08 | K18: 0.52 | L18: 1.06 | M18: 3.04 | N18: 6.78 | O18: 0.15 | Q18: 32 | R18: 8.72 | S18: 0.46 | T18: 1.08 | U18: 3.57 | V18: 6.78 | W18: 0.15 | Y18: 32 | Z18: 8.72 | AA18: 0.46 | AB18: 1.08 | AC18: -0.89 | AD18: -0.89 | AE18: 6.78 | AF18: 3.5
A19: 33 | B19: 11.32 | C19: 0.53 | D19: 1.08 | E19: 3.56 | F19: 6.96 | G19: 0.15 | I19: 33 | J19: 11.32 | K19: 0.53 | L19: 1.08 | M19: 3.04 | N19: 6.96 | O19: 0.15 | Q19: 33 | R19: 8.91 | S19: 0.47 | T19: 1.1 | U19: 3.56 | V19: 6.96 | W19: 0.15 | Y19: 33 | Z19: 8.91 | AA19: 0.47 | AB19: 1.1 | AC19: -0.9 | AD19: -0.9 | AE19: 6.96 | AF19: 3.5
A20: 34 | B20: 11.57 | C20: 0.55 | D20: 1.1 | E20: 3.56 | F20: 7.15 | G20: 0.15 | I20: 34 | J20: 11.57 | K20: 0.55 | L20: 1.1 | M20: 3.03 | N20: 7.15 | O20: 0.15 | Q20: 34 | R20: 9.1 | S20: 0.49 | T20: 1.12 | U20: 3.56 | V20: 7.15 | W20: 0.15 | Y20: 34 | Z20: 9.1 | AA20: 0.49 | AB20: 1.12 | AC20: -0.92 | AD20: -0.92 | AE20: 7.15 | AF20: 3.5
A21: 35 | B21: 11.82 | C21: 0.56 | D21: 1.13 | E21: 3.55 | F21: 7.35 | G21: 0.15 | I21: 35 | J21: 11.82 | K21: 0.56 | L21: 1.13 | M21: 3.03 | N21: 7.35 | O21: 0.15 | Q21: 35 | R21: 9.29 | S21: 0.5 | T21: 1.15 | U21: 3.55 | V21: 7.35 | W21: 0.15 | Y21: 35 | Z21: 9.29 | AA21: 0.5 | AB21: 1.15 | AC21: -0.94 | AD21: -0.94 | AE21: 7.35 | AF21: 3.5
A22: 36 | B22: 12.08 | C22: 0.57 | D22: 1.15 | E22: 3.55 | F22: 7.55 | G22: 0.15 | I22: 36 | J22: 12.08 | K22: 0.57 | L22: 1.15 | M22: 3.03 | N22: 7.55 | O22: 0.15 | Q22: 36 | R22: 9.49 | S22: 0.51 | T22: 1.17 | U22: 3.55 | V22: 7.55 | W22: 0.15 | Y22: 36 | Z22: 9.49 | AA22: 0.51 | AB22: 1.17 | AC22: -0.96 | AD22: -0.96 | AE22: 7.55 | AF22: 3.5
A23: 37 | B23: 12.34 | C23: 0.59 | D23: 1.17 | E23: 3.54 | F23: 7.76 | G23: 0.15 | I23: 37 | J23: 12.34 | K23: 0.59 | L23: 1.17 | M23: 3.02 | N23: 7.76 | O23: 0.15 | Q23: 37 | R23: 9.7 | S23: 0.52 | T23: 1.19 | U23: 3.54 | V23: 7.76 | W23: 0.15 | Y23: 37 | Z23: 9.7 | AA23: 0.52 | AB23: 1.19 | AC23: -0.97 | AD23: -0.97 | AE23: 7.76 | AF23: 3.5
A24: 38 | B24: 12.62 | C24: 0.6 | D24: 1.19 | E24: 3.54 | F24: 7.97 | G24: 0.15 | I24: 38 | J24: 12.62 | K24: 0.6 | L24: 1.19 | M24: 3.02 | N24: 7.97 | O24: 0.15 | Q24: 38 | R24: 9.9 | S24: 0.53 | T24: 1.21 | U24: 3.54 | V24: 7.97 | W24: 0.15 | Y24: 38 | Z24: 9.9 | AA24: 0.53 | AB24: 1.21 | AC24: -0.99 | AD24: -0.99 | AE24: 7.97 | AF24: 3.5
A25: 39 | B25: 12.9 | C25: 0.62 | D25: 1.21 | E25: 3.53 | F25: 8.19 | G25: 0.15 | I25: 39 | J25: 12.9 | K25: 0.62 | L25: 1.21 | M25: 3.01 | N25: 8.19 | O25: 0.15 | Q25: 39 | R25: 10.12 | S25: 0.55 | T25: 1.24 | U25: 3.53 | V25: 8.19 | W25: 0.15 | Y25: 39 | Z25: 10.12 | AA25: 0.55 | AB25: 1.24 | AC25: -1.01 | AD25: -1.01 | AE25: 8.19 | AF25: 3.5
A26: 40 | B26: 13.18 | C26: 0.63 | D26: 1.24 | E26: 3.53 | F26: 8.42 | G26: 0.15 | I26: 40 | J26: 13.18 | K26: 0.63 | L26: 1.24 | M26: 3.01 | N26: 8.42 | O26: 0.15 | Q26: 40 | R26: 10.34 | S26: 0.56 | T26: 1.26 | U26: 3.53 | V26: 8.42 | W26: 0.15 | Y26: 40 | Z26: 10.34 | AA26: 0.56 | AB26: 1.26 | AC26: -1.02 | AD26: -1.02 | AE26: 8.42 | AF26: 3.5
A27: 41 | B27: 13.47 | C27: 0.64 | D27: 1.26 | E27: 3.52 | F27: 8.65 | G27: 0.15 | I27: 41 | J27: 13.47 | K27: 0.64 | L27: 1.26 | M27: 3 | N27: 8.65 | O27: 0.15 | Q27: 41 | R27: 10.56 | S27: 0.57 | T27: 1.28 | U27: 3.52 | V27: 8.65 | W27: 0.15 | Y27: 41 | Z27: 10.56 | AA27: 0.57 | AB27: 1.28 | AC27: -1.04 | AD27: -1.04 | AE27: 8.65 | AF27: 3.5
A28: 42 | B28: 13.77 | C28: 0.66 | D28: 1.28 | E28: 3.52 | F28: 8.9 | G28: 0.15 | I28: 42 | J28: 13.77 | K28: 0.66 | L28: 1.28 | M28: 3 | N28: 8.9 | O28: 0.15 | Q28: 42 | R28: 10.79 | S28: 0.59 | T28: 1.3 | U28: 3.52 | V28: 8.9 | W28: 0.15 | Y28: 42 | Z28: 10.79 | AA28: 0.59 | AB28: 1.3 | AC28: -1.06 | AD28: -1.06 | AE28: 8.9 | AF28: 3.5
A29: 43 | B29: 14.08 | C29: 0.68 | D29: 1.3 | E29: 3.52 | F29: 9.14 | G29: 0.15 | I29: 43 | J29: 14.08 | K29: 0.68 | L29: 1.3 | M29: 3 | N29: 9.14 | O29: 0.15 | Q29: 43 | R29: 11.02 | S29: 0.6 | T29: 1.32 | U29: 3.52 | V29: 9.14 | W29: 0.15 | Y29: 43 | Z29: 11.02 | AA29: 0.6 | AB29: 1.32 | AC29: -1.08 | AD29: -1.08 | AE29: 9.14 | AF29: 3.5
A30: 44 | B30: 14.4 | C30: 0.69 | D30: 1.32 | E30: 3.51 | F30: 9.4 | G30: 0.15 | I30: 44 | J30: 14.4 | K30: 0.69 | L30: 1.32 | M30: 2.99 | N30: 9.4 | O30: 0.15 | Q30: 44 | R30: 11.26 | S30: 0.62 | T30: 1.34 | U30: 3.51 | V30: 9.4 | W30: 0.15 | Y30: 44 | Z30: 11.26 | AA30: 0.62 | AB30: 1.34 | AC30: -1.1 | AD30: -1.1 | AE30: 9.4 | AF30: 3.5
A31: 45 | B31: 14.72 | C31: 0.71 | D31: 1.34 | E31: 3.51 | F31: 9.66 | G31: 0.15 | I31: 45 | J31: 14.72 | K31: 0.71 | L31: 1.34 | M31: 2.99 | N31: 9.66 | O31: 0.15 | Q31: 45 | R31: 11.51 | S31: 0.63 | T31: 1.37 | U31: 3.51 | V31: 9.66 | W31: 0.15 | Y31: 45 | Z31: 11.51 | AA31: 0.63 | AB31: 1.37 | AC31: -1.11 | AD31: -1.11 | AE31: 9.66 | AF31: 3.5
A32: 46 | B32: 15.05 | C32: 0.73 | D32: 1.36 | E32: 3.5 | F32: 9.93 | G32: 0.15 | I32: 46 | J32: 15.05 | K32: 0.73 | L32: 1.36 | M32: 2.98 | N32: 9.93 | O32: 0.15 | Q32: 46 | R32: 11.76 | S32: 0.64 | T32: 1.39 | U32: 3.5 | V32: 9.93 | W32: 0.15 | Y32: 46 | Z32: 11.76 | AA32: 0.64 | AB32: 1.39 | AC32: -1.13 | AD32: -1.13 | AE32: 9.93 | AF32: 3.5
A33: 47 | B33: 15.39 | C33: 0.74 | D33: 1.38 | E33: 3.5 | F33: 10.21 | G33: 0.15 | I33: 47 | J33: 15.39 | K33: 0.74 | L33: 1.38 | M33: 2.98 | N33: 10.21 | O33: 0.15 | Q33: 47 | R33: 12.02 | S33: 0.66 | T33: 1.41 | U33: 3.5 | V33: 10.21 | W33: 0.15 | Y33: 47 | Z33: 12.02 | AA33: 0.66 | AB33: 1.41 | AC33: -1.15 | AD33: -1.15 | AE33: 10.21 | AF33: 3.5
A34: 48 | B34: 15.74 | C34: 0.76 | D34: 1.4 | E34: 3.5 | F34: 10.49 | G34: 0.15 | I34: 48 | J34: 15.74 | K34: 0.76 | L34: 1.4 | M34: 2.98 | N34: 10.49 | O34: 0.15 | Q34: 48 | R34: 12.29 | S34: 0.68 | T34: 1.43 | U34: 3.5 | V34: 10.49 | W34: 0.15 | Y34: 48 | Z34: 12.29 | AA34: 0.68 | AB34: 1.43 | AC34: -1.17 | AD34: -1.17 | AE34: 10.49 | AF34: 3.5
A35: 49 | B35: 16.1 | C35: 0.78 | D35: 1.41 | E35: 3.49 | F35: 10.79 | G35: 0.15 | I35: 49 | J35: 16.1 | K35: 0.78 | L35: 1.41 | M35: 2.98 | N35: 10.79 | O35: 0.15 | Q35: 49 | R35: 12.56 | S35: 0.69 | T35: 1.45 | U35: 3.49 | V35: 10.79 | W35: 0.15 | Y35: 49 | Z35: 12.56 | AA35: 0.69 | AB35: 1.45 | AC35: -1.19 | AD35: -1.19 | AE35: 10.79 | AF35: 3.5
A36: 50 | B36: 16.47 | C36: 0.8 | D36: 1.43 | E36: 3.49 | F36: 11.09 | G36: 0.15 | I36: 50 | J36: 16.47 | K36: 0.8 | L36: 1.43 | M36: 2.97 | N36: 11.09 | O36: 0.15 | Q36: 50 | R36: 12.84 | S36: 0.71 | T36: 1.46 | U36: 3.49 | V36: 11.09 | W36: 0.15 | Y36: 50 | Z36: 12.84 | AA36: 0.71 | AB36: 1.46 | AC36: -1.21 | AD36: -1.21 | AE36: 11.09 | AF36: 3.5
A37: 51 | B37: 16.85 | C37: 0.82 | D37: 1.45 | E37: 3.49 | F37: 11.41 | G37: 0.15 | I37: 51 | J37: 16.85 | K37: 0.82 | L37: 1.45 | M37: 2.97 | N37: 11.41 | O37: 0.15 | Q37: 51 | R37: 13.13 | S37: 0.73 | T37: 1.48 | U37: 3.49 | V37: 11.41 | W37: 0.15 | Y37: 51 | Z37: 13.13 | AA37: 0.73 | AB37: 1.48 | AC37: -1.23 | AD37: -1.23 | AE37: 11.41 | AF37: 3.5
A38: 52 | B38: 17.24 | C38: 0.84 | D38: 1.47 | E38: 3.48 | F38: 11.73 | G38: 0.15 | I38: 52 | J38: 17.24 | K38: 0.84 | L38: 1.47 | M38: 2.97 | N38: 11.73 | O38: 0.15 | Q38: 52 | R38: 13.42 | S38: 0.74 | T38: 1.5 | U38: 3.48 | V38: 11.73 | W38: 0.15 | Y38: 52 | Z38: 13.42 | AA38: 0.74 | AB38: 1.5 | AC38: -1.25 | AD38: -1.25 | AE38: 11.73 | AF38: 3.5
A39: 53 | B39: 17.64 | C39: 0.86 | D39: 1.48 | E39: 3.48 | F39: 12.07 | G39: 0.15 | I39: 53 | J39: 17.64 | K39: 0.86 | L39: 1.48 | M39: 2.97 | N39: 12.07 | O39: 0.15 | Q39: 53 | R39: 13.73 | S39: 0.76 | T39: 1.52 | U39: 3.48 | V39: 12.07 | W39: 0.15 | Y39: 53 | Z39: 13.73 | AA39: 0.76 | AB39: 1.52 | AC39: -1.27 | AD39: -1.27 | AE39: 12.07 | AF39: 3.5
A40: 54 | B40: 18.05 | C40: 0.88 | D40: 1.5 | E40: 3.48 | F40: 12.42 | G40: 0.15 | I40: 54 | J40: 18.05 | K40: 0.88 | L40: 1.5 | M40: 2.97 | N40: 12.42 | O40: 0.15 | Q40: 54 | R40: 14.04 | S40: 0.78 | T40: 1.53 | U40: 3.48 | V40: 12.42 | W40: 0.15 | Y40: 54 | Z40: 14.04 | AA40: 0.78 | AB40: 1.53 | AC40: -1.29 | AD40: -1.29 | AE40: 12.42 | AF40: 3.5
A41: 55 | B41: 18.48 | C41: 0.9 | D41: 1.51 | E41: 3.48 | F41: 12.78 | G41: 0.15 | I41: 55 | J41: 18.48 | K41: 0.9 | L41: 1.51 | M41: 2.97 | N41: 12.78 | O41: 0.15 | Q41: 55 | R41: 14.37 | S41: 0.8 | T41: 1.54 | U41: 3.48 | V41: 12.78 | W41: 0.15 | Y41: 55 | Z41: 14.37 | AA41: 0.8 | AB41: 1.54 | AC41: -1.31 | AD41: -1.31 | AE41: 12.78 | AF41: 3.5
A42: 56 | B42: 18.92 | C42: 0.92 | D42: 1.52 | E42: 3.48 | F42: 13.16 | G42: 0.15 | I42: 56 | J42: 18.92 | K42: 0.92 | L42: 1.52 | M42: 2.97 | N42: 13.16 | O42: 0.15 | Q42: 56 | R42: 14.7 | S42: 0.82 | T42: 1.56 | U42: 3.48 | V42: 13.16 | W42: 0.15 | Y42: 56 | Z42: 14.7 | AA42: 0.82 | AB42: 1.56 | AC42: -1.34 | AD42: -1.34 | AE42: 13.16 | AF42: 3.5
A43: 57 | B43: 19.38 | C43: 0.94 | D43: 1.53 | E43: 3.48 | F43: 13.54 | G43: 0.15 | I43: 57 | J43: 19.38 | K43: 0.94 | L43: 1.53 | M43: 2.97 | N43: 13.54 | O43: 0.15 | Q43: 57 | R43: 15.04 | S43: 0.84 | T43: 1.57 | U43: 3.48 | V43: 13.54 | W43: 0.15 | Y43: 57 | Z43: 15.04 | AA43: 0.84 | AB43: 1.57 | AC43: -1.36 | AD43: -1.36 | AE43: 13.54 | AF43: 3.5
A44: 58 | B44: 19.85 | C44: 0.97 | D44: 1.54 | E44: 3.48 | F44: 13.95 | G44: 0.15 | I44: 58 | J44: 19.85 | K44: 0.97 | L44: 1.54 | M44: 2.97 | N44: 13.95 | O44: 0.15 | Q44: 58 | R44: 15.4 | S44: 0.86 | T44: 1.58 | U44: 3.48 | V44: 13.95 | W44: 0.15 | Y44: 58 | Z44: 15.4 | AA44: 0.86 | AB44: 1.58 | AC44: -1.38 | AD44: -1.38 | AE44: 13.95 | AF44: 3.5
A45: 59 | B45: 20.34 | C45: 0.99 | D45: 1.54 | E45: 3.48 | F45: 14.37 | G45: 0.15 | I45: 59 | J45: 20.34 | K45: 0.99 | L45: 1.54 | M45: 3.05 | N45: 14.37 | O45: 0.15 | Q45: 59 | R45: 15.77 | S45: 0.88 | T45: 1.58 | U45: 3.48 | V45: 14.37 | W45: 0.15 | Y45: 59 | Z45: 15.77 | AA45: 0.88 | AB45: 1.58 | AC45: -1.44 | AD45: -1.44 | AE45: 14.37 | AF45: 3.5
A46: 60 | B46: 20.34 | C46: 0.99 | D46: 1.54 | E46: 3.48 | F46: 14.37 | G46: 0.15 | I46: 60 | J46: 20.34 | K46: 0.99 | L46: 1.54 | M46: 3.05 | N46: 14.37 | O46: 0.15 | Q46: 60 | R46: 16.15 | S46: 0.9 | T46: 1.59 | U46: 3.49 | V46: 14.8 | W46: 0.15 | Y46: 60 | Z46: 16.15 | AA46: 0.9 | AB46: 1.59 | AC46: -1.01 | AD46: -3.71 | AE46: 14.8 | AF46: 3.5
A47: 61 | B47: 20.34 | C47: 0.99 | D47: 1.54 | E47: 3.48 | F47: 14.37 | G47: 0.15 | I47: 61 | J47: 20.34 | K47: 0.99 | L47: 1.54 | M47: 3.05 | N47: 14.37 | O47: 0.15 | Q47: 61 | R47: 16.55 | S47: 0.92 | T47: 1.59 | U47: 3.49 | V47: 15.26 | W47: 0.15 | Y47: 61 | Z47: 16.55 | AA47: 0.92 | AB47: 1.59 | AC47: -0.05 | AD47: -2.82 | AE47: 15.26 | AF47: 3.5
A48: 62 | B48: 20.34 | C48: 0.99 | D48: 1.54 | E48: 3.48 | F48: 14.37 | G48: 0.15 | I48: 62 | J48: 20.34 | K48: 0.99 | L48: 1.54 | M48: 3.05 | N48: 14.37 | O48: 0.15 | Q48: 62 | R48: 16.96 | S48: 0.94 | T48: 1.59 | U48: 3.5 | V48: 15.73 | W48: 0.15 | Y48: 62 | Z48: 16.96 | AA48: 0.94 | AB48: 1.59 | AC48: 0.95 | AD48: -1.9 | AE48: 15.73 | AF48: 3.5
A49: 63 | B49: 20.34 | C49: 0.99 | D49: 1.54 | E49: 3.48 | F49: 14.37 | G49: 0.15 | I49: 63 | J49: 20.34 | K49: 0.99 | L49: 1.54 | M49: 3.05 | N49: 14.37 | O49: 0.15 | Q49: 63 | R49: 17.39 | S49: 0.97 | T49: 1.59 | U49: 3.51 | V49: 16.23 | W49: 0.15 | Y49: 63 | Z49: 17.39 | AA49: 0.97 | AB49: 1.59 | AC49: 1.99 | AD49: -0.95 | AE49: 16.23 | AF49: 3.5
A50: 64 | B50: 20.34 | C50: 0.99 | D50: 1.54 | E50: 3.48 | F50: 14.37 | G50: 0.15 | I50: 64 | J50: 20.34 | K50: 0.99 | L50: 1.54 | M50: 3.05 | N50: 14.37 | O50: 0.15 | Q50: 64 | R50: 17.83 | S50: 0.99 | T50: 1.59 | U50: 3.61 | V50: 16.74 | W50: 0.15 | Y50: 64 | Z50: 17.83 | AA50: 0.99 | AB50: 1.59 | AC50: 3.05 | AD50: 0.03 | AE50: 16.74 | AF50: 3.5
A51: 65 | B51: 20.34 | C51: 0.99 | D51: 1.54 | E51: 3.48 | F51: 14.37 | G51: 0.15 | I51: 65 | J51: 20.34 | K51: 0.99 | L51: 1.54 | M51: 3.05 | N51: 14.37 | O51: 0.15 | Q51: 65 | R51: 17.83 | S51: 0.99 | T51: 1.59 | U51: 3.61 | V51: 16.74 | W51: 0.15 | Y51: 65 | Z51: 17.83 | AA51: 0.99 | AB51: 1.59 | AC51: 3.05 | AD51: 0.03 | AE51: 16.74 | AF51: 3.5
A52: 66 | B52: 20.34 | C52: 0.99 | D52: 1.54 | E52: 3.48 | F52: 14.37 | G52: 0.15 | I52: 66 | J52: 20.34 | K52: 0.99 | L52: 1.54 | M52: 3.05 | N52: 14.37 | O52: 0.15 | Q52: 66 | R52: 17.83 | S52: 0.99 | T52: 1.59 | U52: 3.61 | V52: 16.74 | W52: 0.15 | Y52: 66 | Z52: 17.83 | AA52: 0.99 | AB52: 1.59 | AC52: 3.05 | AD52: 0.03 | AE52: 16.74 | AF52: 3.5
A53: 67 | B53: 20.34 | C53: 0.99 | D53: 1.54 | E53: 3.48 | F53: 14.37 | G53: 0.15 | I53: 67 | J53: 20.34 | K53: 0.99 | L53: 1.54 | M53: 3.05 | N53: 14.37 | O53: 0.15 | Q53: 67 | R53: 17.83 | S53: 0.99 | T53: 1.59 | U53: 3.61 | V53: 16.74 | W53: 0.15 | Y53: 67 | Z53: 17.83 | AA53: 0.99 | AB53: 1.59 | AC53: 3.05 | AD53: 0.03 | AE53: 16.74 | AF53: 3.5
A54: Notes: | I54: Notes: | Q54: Notes: | Y54: Notes:
A55: 1. When calculating the deduction for GMP, the factor given should be applied to the sum of the GMP amount per annum in respect of service up to 5 April 1988 and 15% of the GMP amount per annum in respect of service after that date | I55: 1. When calculating the deduction for GMP, the factor given should be applied to the sum of the GMP amount per annum in respect of service up to 5 April 1988 and 15% of the GMP amount per annum in respect of service after that date | Q55: 1. When calculating the deduction for GMP for males, the factor given should be applied to the sum of the GMP amount per annum in respect of service up to 5 April 1988 and 15% of the GMP amount per annum in respect of service after that date | Y55: 1. When calculating the deduction for GMP for females, the factor given should be applied to the sum of the GMP amount per annum in respect of service up to 5 April 1988 and 350% of the GMP amount per annum in respect of service after that date
A56: Table CEM60 - CETV factors for men, NPA 60, STSS | I56: Table CEF60 - CETV factors for women, NPA 60, STSS | Q56: Table CEM65 - CETV factors for men, NPA 65, STSS and STPS | Y56: Table CEF65a - CETV factors for women, NPA 65, ages 20 to 59, STSS and STPS
A58: Age last birthday at relevant date | B58: Gross Pension of £1 per annum | C58: Lump Sum of £1 | D58: Surviving Partner's Pension of £1 pa | E58: Deduction1 for GMP of £1 pa | F58: Deduction for NI Modification of £1 pa | G58: GMP Adj | I58: Age last birthday at relevant date | J58: Gross Pension of £1 per annum | K58: Lump Sum of £1 | L58: Surviving Partner's Pension of £1 pa | M58: Deduction1 for GMP of £1 pa | N58: Deduction for NI Modification of £1 pa | O58: GMP Adj | Q58: Age last birthday at relevant date | R58: Gross Pension of £1 per annum | S58: Lump Sum Factor | T58: Surviving Partner's Pension of £1 pa | U58: Deduction1 for GMP of £1 pa | V58: Deduction for NI Modification of £1 pa | W58: GMP Adj | Y58: Age last birthday at relevant date | Z58: Gross Pension of £1 per annum | AA58: Lump Sum Factor | AB58: Surviving Partner's Pension of £1 pa | AC58: Deduction1 for GMP of £1 pa | AD58: Female Deduction for Post88 GMP | AE58: Deduction for NI Modification of £1 pa | AF58: GMP Adj
A59: 18 | I59: 18 | Q59: 18 | Y59: 18
A60: 19 | I60: 19 | Q60: 19 | Y60: 19
A61: 20 | B61: 8.56 | C61: 0.39 | D61: 0.76 | E61: 3.5 | F61: 4.72 | G61: 0.15 | I61: 20 | J61: 8.56 | K61: 0.39 | L61: 0.76 | M61: 3.02 | N61: 5.11 | O61: 0.15 | Q61: 20 | R61: 6.76 | S61: 0 | T61: 0.78 | U61: 3.5 | V61: 4.72 | W61: 0.15 | Y61: 20 | Z61: 6.76 | AA61: 0 | AB61: 0.78 | AC61: -0.84 | AD61: -0.84 | AE61: 5.11 | AF61: 3.5
A62: 21 | B62: 8.75 | C62: 0.4 | D62: 0.78 | E62: 3.49 | F62: 4.85 | G62: 0.15 | I62: 21 | J62: 8.75 | K62: 0.4 | L62: 0.78 | M62: 3.01 | N62: 5.25 | O62: 0.15 | Q62: 21 | R62: 6.91 | S62: 0 | T62: 0.79 | U62: 3.49 | V62: 4.85 | W62: 0.15 | Y62: 21 | Z62: 6.91 | AA62: 0 | AB62: 0.79 | AC62: -0.86 | AD62: -0.86 | AE62: 5.25 | AF62: 3.5
A63: 22 | B63: 8.94 | C63: 0.41 | D63: 0.8 | E63: 3.49 | F63: 4.98 | G63: 0.15 | I63: 22 | J63: 8.94 | K63: 0.41 | L63: 0.8 | M63: 3.01 | N63: 5.39 | O63: 0.15 | Q63: 22 | R63: 7.05 | S63: 0 | T63: 0.81 | U63: 3.49 | V63: 4.98 | W63: 0.15 | Y63: 22 | Z63: 7.05 | AA63: 0 | AB63: 0.81 | AC63: -0.87 | AD63: -0.87 | AE63: 5.39 | AF63: 3.5
A64: 23 | B64: 9.13 | C64: 0.42 | D64: 0.82 | E64: 3.48 | F64: 5.12 | G64: 0.15 | I64: 23 | J64: 9.13 | K64: 0.42 | L64: 0.82 | M64: 3.01 | N64: 5.54 | O64: 0.15 | Q64: 23 | R64: 7.21 | S64: 0 | T64: 0.83 | U64: 3.48 | V64: 5.12 | W64: 0.15 | Y64: 23 | Z64: 7.21 | AA64: 0 | AB64: 0.83 | AC64: -0.89 | AD64: -0.89 | AE64: 5.54 | AF64: 3.5
A65: 24 | B65: 9.33 | C65: 0.43 | D65: 0.84 | E65: 3.48 | F65: 5.26 | G65: 0.15 | I65: 24 | J65: 9.33 | K65: 0.43 | L65: 0.84 | M65: 3 | N65: 5.69 | O65: 0.15 | Q65: 24 | R65: 7.36 | S65: 0 | T65: 0.85 | U65: 3.48 | V65: 5.26 | W65: 0.15 | Y65: 24 | Z65: 7.36 | AA65: 0 | AB65: 0.85 | AC65: -0.9 | AD65: -0.9 | AE65: 5.69 | AF65: 3.5
A66: 25 | B66: 9.54 | C66: 0.44 | D66: 0.86 | E66: 3.47 | F66: 5.4 | G66: 0.15 | I66: 25 | J66: 9.54 | K66: 0.44 | L66: 0.86 | M66: 3 | N66: 5.85 | O66: 0.15 | Q66: 25 | R66: 7.52 | S66: 0 | T66: 0.87 | U66: 3.47 | V66: 5.4 | W66: 0.15 | Y66: 25 | Z66: 7.52 | AA66: 0 | AB66: 0.87 | AC66: -0.92 | AD66: -0.92 | AE66: 5.85 | AF66: 3.5
A67: 26 | B67: 9.75 | C67: 0.45 | D67: 0.88 | E67: 3.46 | F67: 5.55 | G67: 0.15 | I67: 26 | J67: 9.75 | K67: 0.45 | L67: 0.88 | M67: 2.99 | N67: 6.01 | O67: 0.15 | Q67: 26 | R67: 7.68 | S67: 0 | T67: 0.89 | U67: 3.46 | V67: 5.55 | W67: 0.15 | Y67: 26 | Z67: 7.68 | AA67: 0 | AB67: 0.89 | AC67: -0.93 | AD67: -0.93 | AE67: 6.01 | AF67: 3.5
A68: 27 | B68: 9.96 | C68: 0.46 | D68: 0.89 | E68: 3.46 | F68: 5.7 | G68: 0.15 | I68: 27 | J68: 9.96 | K68: 0.46 | L68: 0.89 | M68: 2.99 | N68: 6.18 | O68: 0.15 | Q68: 27 | R68: 7.84 | S68: 0 | T68: 0.91 | U68: 3.46 | V68: 5.7 | W68: 0.15 | Y68: 27 | Z68: 7.84 | AA68: 0 | AB68: 0.91 | AC68: -0.95 | AD68: -0.95 | AE68: 6.18 | AF68: 3.5
A69: 28 | B69: 10.18 | C69: 0.47 | D69: 0.91 | E69: 3.45 | F69: 5.85 | G69: 0.15 | I69: 28 | J69: 10.18 | K69: 0.47 | L69: 0.91 | M69: 2.99 | N69: 6.35 | O69: 0.15 | Q69: 28 | R69: 8.01 | S69: 0 | T69: 0.93 | U69: 3.45 | V69: 5.85 | W69: 0.15 | Y69: 28 | Z69: 8.01 | AA69: 0 | AB69: 0.93 | AC69: -0.96 | AD69: -0.96 | AE69: 6.35 | AF69: 3.5
A70: 29 | B70: 10.4 | C70: 0.49 | D70: 0.93 | E70: 3.45 | F70: 6.01 | G70: 0.15 | I70: 29 | J70: 10.4 | K70: 0.49 | L70: 0.93 | M70: 2.98 | N70: 6.53 | O70: 0.15 | Q70: 29 | R70: 8.18 | S70: 0 | T70: 0.95 | U70: 3.45 | V70: 6.01 | W70: 0.15 | Y70: 29 | Z70: 8.18 | AA70: 0 | AB70: 0.95 | AC70: -0.98 | AD70: -0.98 | AE70: 6.53 | AF70: 3.5
A71: 30 | B71: 10.63 | C71: 0.5 | D71: 0.96 | E71: 3.44 | F71: 6.18 | G71: 0.15 | I71: 30 | J71: 10.63 | K71: 0.5 | L71: 0.96 | M71: 2.98 | N71: 6.71 | O71: 0.15 | Q71: 30 | R71: 8.36 | S71: 0 | T71: 0.97 | U71: 3.44 | V71: 6.18 | W71: 0.15 | Y71: 30 | Z71: 8.36 | AA71: 0 | AB71: 0.97 | AC71: -0.99 | AD71: -0.99 | AE71: 6.71 | AF71: 3.5
A72: 31 | B72: 10.87 | C72: 0.51 | D72: 0.98 | E72: 3.44 | F72: 6.35 | G72: 0.15 | I72: 31 | J72: 10.87 | K72: 0.51 | L72: 0.98 | M72: 2.97 | N72: 6.89 | O72: 0.15 | Q72: 31 | R72: 8.54 | S72: 0 | T72: 0.99 | U72: 3.44 | V72: 6.35 | W72: 0.15 | Y72: 31 | Z72: 8.54 | AA72: 0 | AB72: 0.99 | AC72: -1.01 | AD72: -1.01 | AE72: 6.89 | AF72: 3.5
A73: 32 | B73: 11.1 | C73: 0.52 | D73: 1 | E73: 3.43 | F73: 6.52 | G73: 0.15 | I73: 32 | J73: 11.1 | K73: 0.52 | L73: 1 | M73: 2.97 | N73: 7.08 | O73: 0.15 | Q73: 32 | R73: 8.72 | S73: 0 | T73: 1.02 | U73: 3.43 | V73: 6.52 | W73: 0.15 | Y73: 32 | Z73: 8.72 | AA73: 0 | AB73: 1.02 | AC73: -1.02 | AD73: -1.02 | AE73: 7.08 | AF73: 3.5
A74: 33 | B74: 11.35 | C74: 0.53 | D74: 1.02 | E74: 3.43 | F74: 6.7 | G74: 0.15 | I74: 33 | J74: 11.35 | K74: 0.53 | L74: 1.02 | M74: 2.97 | N74: 7.28 | O74: 0.15 | Q74: 33 | R74: 8.91 | S74: 0 | T74: 1.04 | U74: 3.43 | V74: 6.7 | W74: 0.15 | Y74: 33 | Z74: 8.91 | AA74: 0 | AB74: 1.04 | AC74: -1.04 | AD74: -1.04 | AE74: 7.28 | AF74: 3.5
A75: 34 | B75: 11.6 | C75: 0.55 | D75: 1.04 | E75: 3.42 | F75: 6.88 | G75: 0.15 | I75: 34 | J75: 11.6 | K75: 0.55 | L75: 1.04 | M75: 2.96 | N75: 7.48 | O75: 0.15 | Q75: 34 | R75: 9.1 | S75: 0 | T75: 1.06 | U75: 3.42 | V75: 6.88 | W75: 0.15 | Y75: 34 | Z75: 9.1 | AA75: 0 | AB75: 1.06 | AC75: -1.05 | AD75: -1.05 | AE75: 7.48 | AF75: 3.5
A76: 35 | B76: 11.85 | C76: 0.56 | D76: 1.06 | E76: 3.42 | F76: 7.07 | G76: 0.15 | I76: 35 | J76: 11.85 | K76: 0.56 | L76: 1.06 | M76: 2.96 | N76: 7.69 | O76: 0.15 | Q76: 35 | R76: 9.29 | S76: 0 | T76: 1.08 | U76: 3.42 | V76: 7.07 | W76: 0.15 | Y76: 35 | Z76: 9.29 | AA76: 0 | AB76: 1.08 | AC76: -1.07 | AD76: -1.07 | AE76: 7.69 | AF76: 3.5
A77: 36 | B77: 12.12 | C77: 0.57 | D77: 1.08 | E77: 3.41 | F77: 7.27 | G77: 0.15 | I77: 36 | J77: 12.12 | K77: 0.57 | L77: 1.08 | M77: 2.95 | N77: 7.9 | O77: 0.15 | Q77: 36 | R77: 9.49 | S77: 0 | T77: 1.1 | U77: 3.41 | V77: 7.27 | W77: 0.15 | Y77: 36 | Z77: 9.49 | AA77: 0 | AB77: 1.1 | AC77: -1.09 | AD77: -1.09 | AE77: 7.9 | AF77: 3.5
A78: 37 | B78: 12.38 | C78: 0.59 | D78: 1.1 | E78: 3.41 | F78: 7.47 | G78: 0.15 | I78: 37 | J78: 12.38 | K78: 0.59 | L78: 1.1 | M78: 2.95 | N78: 8.12 | O78: 0.15 | Q78: 37 | R78: 9.7 | S78: 0 | T78: 1.12 | U78: 3.41 | V78: 7.47 | W78: 0.15 | Y78: 37 | Z78: 9.7 | AA78: 0 | AB78: 1.12 | AC78: -1.1 | AD78: -1.1 | AE78: 8.12 | AF78: 3.5
A79: 38 | B79: 12.66 | C79: 0.6 | D79: 1.12 | E79: 3.4 | F79: 7.67 | G79: 0.15 | I79: 38 | J79: 12.66 | K79: 0.6 | L79: 1.12 | M79: 2.95 | N79: 8.35 | O79: 0.15 | Q79: 38 | R79: 9.91 | S79: 0 | T79: 1.14 | U79: 3.4 | V79: 7.67 | W79: 0.15 | Y79: 38 | Z79: 9.91 | AA79: 0 | AB79: 1.14 | AC79: -1.12 | AD79: -1.12 | AE79: 8.35 | AF79: 3.5
A80: 39 | B80: 12.94 | C80: 0.62 | D80: 1.14 | E80: 3.4 | F80: 7.89 | G80: 0.15 | I80: 39 | J80: 12.94 | K80: 0.62 | L80: 1.14 | M80: 2.94 | N80: 8.58 | O80: 0.15 | Q80: 39 | R80: 10.12 | S80: 0 | T80: 1.17 | U80: 3.4 | V80: 7.89 | W80: 0.15 | Y80: 39 | Z80: 10.12 | AA80: 0 | AB80: 1.17 | AC80: -1.13 | AD80: -1.13 | AE80: 8.58 | AF80: 3.5
A81: 40 | B81: 13.23 | C81: 0.63 | D81: 1.16 | E81: 3.4 | F81: 8.11 | G81: 0.15 | I81: 40 | J81: 13.23 | K81: 0.63 | L81: 1.16 | M81: 2.94 | N81: 8.82 | O81: 0.15 | Q81: 40 | R81: 10.34 | S81: 0 | T81: 1.19 | U81: 3.4 | V81: 8.11 | W81: 0.15 | Y81: 40 | Z81: 10.34 | AA81: 0 | AB81: 1.19 | AC81: -1.15 | AD81: -1.15 | AE81: 8.82 | AF81: 3.5
A82: 41 | B82: 13.52 | C82: 0.64 | D82: 1.18 | E82: 3.39 | F82: 8.33 | G82: 0.15 | I82: 41 | J82: 13.52 | K82: 0.64 | L82: 1.18 | M82: 2.94 | N82: 9.06 | O82: 0.15 | Q82: 41 | R82: 10.57 | S82: 0 | T82: 1.21 | U82: 3.39 | V82: 8.33 | W82: 0.15 | Y82: 41 | Z82: 10.57 | AA82: 0 | AB82: 1.21 | AC82: -1.17 | AD82: -1.17 | AE82: 9.06 | AF82: 3.5
A83: 42 | B83: 13.82 | C83: 0.66 | D83: 1.2 | E83: 3.39 | F83: 8.57 | G83: 0.15 | I83: 42 | J83: 13.82 | K83: 0.66 | L83: 1.2 | M83: 2.93 | N83: 9.32 | O83: 0.15 | Q83: 42 | R83: 10.8 | S83: 0 | T83: 1.23 | U83: 3.39 | V83: 8.57 | W83: 0.15 | Y83: 42 | Z83: 10.8 | AA83: 0 | AB83: 1.23 | AC83: -1.18 | AD83: -1.18 | AE83: 9.32 | AF83: 3.5
A84: 43 | B84: 14.13 | C84: 0.68 | D84: 1.22 | E84: 3.39 | F84: 8.81 | G84: 0.15 | I84: 43 | J84: 14.13 | K84: 0.68 | L84: 1.22 | M84: 2.93 | N84: 9.58 | O84: 0.15 | Q84: 43 | R84: 11.03 | S84: 0 | T84: 1.25 | U84: 3.39 | V84: 8.81 | W84: 0.15 | Y84: 43 | Z84: 11.03 | AA84: 0 | AB84: 1.25 | AC84: -1.2 | AD84: -1.2 | AE84: 9.58 | AF84: 3.5
A85: 44 | B85: 14.45 | C85: 0.69 | D85: 1.24 | E85: 3.39 | F85: 9.06 | G85: 0.15 | I85: 44 | J85: 14.45 | K85: 0.69 | L85: 1.24 | M85: 2.93 | N85: 9.84 | O85: 0.15 | Q85: 44 | R85: 11.27 | S85: 0 | T85: 1.27 | U85: 3.39 | V85: 9.06 | W85: 0.15 | Y85: 44 | Z85: 11.27 | AA85: 0 | AB85: 1.27 | AC85: -1.22 | AD85: -1.22 | AE85: 9.84 | AF85: 3.5
A86: 45 | B86: 14.77 | C86: 0.71 | D86: 1.26 | E86: 3.38 | F86: 9.31 | G86: 0.15 | I86: 45 | J86: 14.77 | K86: 0.71 | L86: 1.26 | M86: 2.92 | N86: 10.12 | O86: 0.15 | Q86: 45 | R86: 11.52 | S86: 0 | T86: 1.29 | U86: 3.38 | V86: 9.31 | W86: 0.15 | Y86: 45 | Z86: 11.52 | AA86: 0 | AB86: 1.29 | AC86: -1.23 | AD86: -1.23 | AE86: 10.12 | AF86: 3.5
A87: 46 | B87: 15.1 | C87: 0.73 | D87: 1.28 | E87: 3.38 | F87: 9.58 | G87: 0.15 | I87: 46 | J87: 15.1 | K87: 0.73 | L87: 1.28 | M87: 2.92 | N87: 10.4 | O87: 0.15 | Q87: 46 | R87: 11.77 | S87: 0 | T87: 1.31 | U87: 3.38 | V87: 9.58 | W87: 0.15 | Y87: 46 | Z87: 11.77 | AA87: 0 | AB87: 1.31 | AC87: -1.25 | AD87: -1.25 | AE87: 10.4 | AF87: 3.5
A88: 47 | B88: 15.44 | C88: 0.74 | D88: 1.3 | E88: 3.38 | F88: 9.85 | G88: 0.15 | I88: 47 | J88: 15.44 | K88: 0.74 | L88: 1.3 | M88: 2.92 | N88: 10.69 | O88: 0.15 | Q88: 47 | R88: 12.03 | S88: 0 | T88: 1.33 | U88: 3.38 | V88: 9.85 | W88: 0.15 | Y88: 47 | Z88: 12.03 | AA88: 0 | AB88: 1.33 | AC88: -1.27 | AD88: -1.27 | AE88: 10.69 | AF88: 3.5
A89: 48 | B89: 15.79 | C89: 0.76 | D89: 1.32 | E89: 3.38 | F89: 10.12 | G89: 0.15 | I89: 48 | J89: 15.79 | K89: 0.76 | L89: 1.32 | M89: 2.91 | N89: 10.99 | O89: 0.15 | Q89: 48 | R89: 12.29 | S89: 0 | T89: 1.35 | U89: 3.38 | V89: 10.12 | W89: 0.15 | Y89: 48 | Z89: 12.29 | AA89: 0 | AB89: 1.35 | AC89: -1.28 | AD89: -1.28 | AE89: 10.99 | AF89: 3.5
A90: 49 | B90: 16.15 | C90: 0.78 | D90: 1.34 | E90: 3.37 | F90: 10.41 | G90: 0.15 | I90: 49 | J90: 16.15 | K90: 0.78 | L90: 1.34 | M90: 2.91 | N90: 11.3 | O90: 0.15 | Q90: 49 | R90: 12.57 | S90: 0 | T90: 1.38 | U90: 3.37 | V90: 10.41 | W90: 0.15 | Y90: 49 | Z90: 12.57 | AA90: 0 | AB90: 1.38 | AC90: -1.3 | AD90: -1.3 | AE90: 11.3 | AF90: 3.5
A91: 50 | B91: 16.52 | C91: 0.8 | D91: 1.36 | E91: 3.37 | F91: 10.71 | G91: 0.15 | I91: 50 | J91: 16.52 | K91: 0.8 | L91: 1.36 | M91: 2.91 | N91: 11.62 | O91: 0.15 | Q91: 50 | R91: 12.84 | S91: 0 | T91: 1.4 | U91: 3.37 | V91: 10.71 | W91: 0.15 | Y91: 50 | Z91: 12.84 | AA91: 0 | AB91: 1.4 | AC91: -1.32 | AD91: -1.32 | AE91: 11.62 | AF91: 3.5
A92: 51 | B92: 16.89 | C92: 0.82 | D92: 1.38 | E92: 3.37 | F92: 11.01 | G92: 0.15 | I92: 51 | J92: 16.89 | K92: 0.82 | L92: 1.38 | M92: 2.9 | N92: 11.95 | O92: 0.15 | Q92: 51 | R92: 13.13 | S92: 0 | T92: 1.41 | U92: 3.37 | V92: 11.01 | W92: 0.15 | Y92: 51 | Z92: 13.13 | AA92: 0 | AB92: 1.41 | AC92: -1.34 | AD92: -1.34 | AE92: 11.95 | AF92: 3.5
A93: 52 | B93: 17.28 | C93: 0.84 | D93: 1.4 | E93: 3.37 | F93: 11.33 | G93: 0.15 | I93: 52 | J93: 17.28 | K93: 0.84 | L93: 1.4 | M93: 2.9 | N93: 12.29 | O93: 0.15 | Q93: 52 | R93: 13.42 | S93: 0 | T93: 1.43 | U93: 3.37 | V93: 11.33 | W93: 0.15 | Y93: 52 | Z93: 13.42 | AA93: 0 | AB93: 1.43 | AC93: -1.36 | AD93: -1.36 | AE93: 12.29 | AF93: 3.5
A94: 53 | B94: 17.68 | C94: 0.86 | D94: 1.42 | E94: 3.37 | F94: 11.66 | G94: 0.15 | I94: 53 | J94: 17.68 | K94: 0.86 | L94: 1.42 | M94: 2.9 | N94: 12.64 | O94: 0.15 | Q94: 53 | R94: 13.72 | S94: 0 | T94: 1.45 | U94: 3.37 | V94: 11.66 | W94: 0.15 | Y94: 53 | Z94: 13.72 | AA94: 0 | AB94: 1.45 | AC94: -1.37 | AD94: -1.37 | AE94: 12.64 | AF94: 3.5
A95: 54 | B95: 18.09 | C95: 0.88 | D95: 1.43 | E95: 3.37 | F95: 12 | G95: 0.15 | I95: 54 | J95: 18.09 | K95: 0.88 | L95: 1.43 | M95: 2.9 | N95: 13 | O95: 0.15 | Q95: 54 | R95: 14.04 | S95: 0 | T95: 1.47 | U95: 3.37 | V95: 12 | W95: 0.15 | Y95: 54 | Z95: 14.04 | AA95: 0 | AB95: 1.47 | AC95: -1.39 | AD95: -1.39 | AE95: 13 | AF95: 3.5
A96: 55 | B96: 18.51 | C96: 0.9 | D96: 1.45 | E96: 3.37 | F96: 12.35 | G96: 0.15 | I96: 55 | J96: 18.51 | K96: 0.9 | L96: 1.45 | M96: 2.9 | N96: 13.38 | O96: 0.15 | Q96: 55 | R96: 14.36 | S96: 0 | T96: 1.48 | U96: 3.37 | V96: 12.35 | W96: 0.15 | Y96: 55 | Z96: 14.36 | AA96: 0 | AB96: 1.48 | AC96: -1.41 | AD96: -1.41 | AE96: 13.38 | AF96: 3.5
A97: 56 | B97: 18.95 | C97: 0.92 | D97: 1.46 | E97: 3.38 | F97: 12.72 | G97: 0.15 | I97: 56 | J97: 18.95 | K97: 0.92 | L97: 1.46 | M97: 2.9 | N97: 13.77 | O97: 0.15 | Q97: 56 | R97: 14.68 | S97: 0 | T97: 1.5 | U97: 3.38 | V97: 12.72 | W97: 0.15 | Y97: 56 | Z97: 14.68 | AA97: 0 | AB97: 1.5 | AC97: -1.43 | AD97: -1.43 | AE97: 13.77 | AF97: 3.5
A98: 57 | B98: 19.4 | C98: 0.94 | D98: 1.47 | E98: 3.38 | F98: 13.1 | G98: 0.15 | I98: 57 | J98: 19.4 | K98: 0.94 | L98: 1.47 | M98: 2.9 | N98: 14.17 | O98: 0.15 | Q98: 57 | R98: 15.03 | S98: 0 | T98: 1.51 | U98: 3.38 | V98: 13.1 | W98: 0.15 | Y98: 57 | Z98: 15.03 | AA98: 0 | AB98: 1.51 | AC98: -1.45 | AD98: -1.45 | AE98: 14.17 | AF98: 3.5
A99: 58 | B99: 19.87 | C99: 0.97 | D99: 1.48 | E99: 3.38 | F99: 13.49 | G99: 0.15 | I99: 58 | J99: 19.87 | K99: 0.97 | L99: 1.48 | M99: 2.9 | N99: 14.59 | O99: 0.15 | Q99: 58 | R99: 15.38 | S99: 0 | T99: 1.52 | U99: 3.38 | V99: 13.49 | W99: 0.15 | Y99: 58 | Z99: 15.38 | AA99: 0 | AB99: 1.52 | AC99: -1.47 | AD99: -1.47 | AE99: 14.59 | AF99: 3.5
A100: 59 | B100: 20.35 | C100: 0.99 | D100: 1.49 | E100: 3.39 | F100: 13.91 | G100: 0.15 | I100: 59 | J100: 20.35 | K100: 0.99 | L100: 1.49 | M100: 2.97 | N100: 15.02 | O100: 0.15 | Q100: 59 | R100: 15.74 | S100: 0 | T100: 1.53 | U100: 3.39 | V100: 13.91 | W100: 0.15 | Y100: 59 | Z100: 15.74 | AA100: 0 | AB100: 1.53 | AC100: -1.53 | AD100: -1.53 | AE100: 15.02 | AF100: 3.5
A101: 60 | B101: 20.35 | C101: 0.99 | D101: 1.49 | E101: 3.39 | F101: 13.91 | G101: 0.15 | I101: 60 | J101: 20.35 | K101: 0.99 | L101: 1.49 | M101: 2.97 | N101: 15.02 | O101: 0.15 | Q101: 60 | R101: 16.12 | S101: 0 | T101: 1.54 | U101: 3.39 | V101: 14.33 | W101: 0.15 | Y101: 60 | Z101: 16.12 | AA101: 0 | AB101: 1.54 | AC101: -1.1 | AD101: -3.72 | AE101: 15.47 | AF101: 1
A102: 61 | B102: 20.35 | C102: 0.99 | D102: 1.49 | E102: 3.39 | F102: 13.91 | G102: 0.15 | I102: 61 | J102: 20.35 | K102: 0.99 | L102: 1.49 | M102: 2.97 | N102: 15.02 | O102: 0.15 | Q102: 61 | R102: 16.5 | S102: 0 | T102: 1.54 | U102: 3.4 | V102: 14.78 | W102: 0.15 | Y102: 61 | Z102: 16.5 | AA102: 0 | AB102: 1.54 | AC102: -0.14 | AD102: -2.82 | AE102: 15.94 | AF102: 1
A103: 62 | B103: 20.35 | C103: 0.99 | D103: 1.49 | E103: 3.39 | F103: 13.91 | G103: 0.15 | I103: 62 | J103: 20.35 | K103: 0.99 | L103: 1.49 | M103: 2.97 | N103: 15.02 | O103: 0.15 | Q103: 62 | R103: 16.91 | S103: 0 | T103: 1.55 | U103: 3.41 | V103: 15.25 | W103: 0.15 | Y103: 62 | Z103: 16.91 | AA103: 0 | AB103: 1.55 | AC103: 0.86 | AD103: -1.9 | AE103: 16.42 | AF103: 1
A104: 63 | B104: 20.35 | C104: 0.99 | D104: 1.49 | E104: 3.39 | F104: 13.91 | G104: 0.15 | I104: 63 | J104: 20.35 | K104: 0.99 | L104: 1.49 | M104: 2.97 | N104: 15.02 | O104: 0.15 | Q104: 63 | R104: 17.33 | S104: 0 | T104: 1.55 | U104: 3.42 | V104: 15.73 | W104: 0.15 | Y104: 63 | Z104: 17.33 | AA104: 0 | AB104: 1.55 | AC104: 1.89 | AD104: -0.95 | AE104: 16.93 | AF104: 1
A105: 64 | B105: 20.35 | C105: 0.99 | D105: 1.49 | E105: 3.39 | F105: 13.91 | G105: 0.15 | I105: 64 | J105: 20.35 | K105: 0.99 | L105: 1.49 | M105: 2.97 | N105: 15.02 | O105: 0.15 | Q105: 64 | R105: 17.77 | S105: 0 | T105: 1.55 | U105: 3.51 | V105: 16.24 | W105: 0.15 | Y105: 64 | Z105: 17.77 | AA105: 0 | AB105: 1.55 | AC105: 2.95 | AD105: 0.03 | AE105: 17.46 | AF105: 1
A106: 65 | B106: 20.35 | C106: 0.99 | D106: 1.49 | E106: 3.39 | F106: 13.91 | G106: 0.15 | I106: 65 | J106: 20.35 | K106: 0.99 | L106: 1.49 | M106: 2.97 | N106: 15.02 | O106: 0.15 | Q106: 65 | R106: 17.77 | S106: 0 | T106: 1.55 | U106: 3.51 | V106: 16.24 | W106: 0.15 | Y106: 65 | Z106: 17.77 | AA106: 0 | AB106: 1.55 | AC106: 2.95 | AD106: 0.03 | AE106: 17.46 | AF106: 1
A107: 66 | B107: 20.35 | C107: 0.99 | D107: 1.49 | E107: 3.39 | F107: 13.91 | G107: 0.15 | I107: 66 | J107: 20.35 | K107: 0.99 | L107: 1.49 | M107: 2.97 | N107: 15.02 | O107: 0.15 | Q107: 66 | R107: 17.77 | S107: 0 | T107: 1.55 | U107: 3.51 | V107: 16.24 | W107: 0.15 | Y107: 66 | Z107: 17.77 | AA107: 0 | AB107: 1.55 | AC107: 2.95 | AD107: 0.03 | AE107: 17.46 | AF107: 1
A108: 67 | B108: 20.35 | C108: 0.99 | D108: 1.49 | E108: 3.39 | F108: 13.91 | G108: 0.15 | I108: 67 | J108: 20.35 | K108: 0.99 | L108: 1.49 | M108: 2.97 | N108: 15.02 | O108: 0.15 | Q108: 67 | R108: 17.77 | S108: 0 | T108: 1.55 | U108: 3.51 | V108: 16.24 | W108: 0.15 | Y108: 67 | Z108: 17.77 | AA108: 0 | AB108: 1.55 | AC108: 2.95 | AD108: 0.03 | AE108: 17.46 | AF108: 1
A110: Factors at 31/07/2019 | M110: NHS | Q110: STSS
A111: Age | C111: =INT((C113-C114)/365.25) -> 122 | F111: Actual | G111: Male | H111: Female | I111: Male 60 | J111: Female 60 | K111: Male 65 | L111: Female 65 | M111: Male 60 | N111: Female 60 | O111: Male 65 | P111: Female 65 | Q111: Male 60 | R111: Female 60 | S111: Male 65 | T111: Female 65
A112: Gender | C112: =IF(Results!D7="M", "Male","Female") -> Female | D112: Pension factor | F112: =IF($C$112="Male",G112,H112) -> 17.77 | G112: =IF($C$115="60",I112,K112) -> 17.77 | H112: 17.77 | I112: =IF($C$117="NHS",M112,Q112) -> 20.35 | J112: 20.35 | K112: 17.77 | L112: 17.77 | M112: =VLOOKUP($C$111,$A$4:$G$53,2) -> 20.34 | N112: =VLOOKUP($C$111,$I$4:$O$53,2) -> 20.34 | O112: =VLOOKUP($C$111,$Q$4:$W$53,2) -> 17.83 | P112: =VLOOKUP($C$111,$Y$4:$AF$53,2) -> 17.83 | Q112: =VLOOKUP($C$111,$A$59:$G$108,2) -> 20.35 | R112: =VLOOKUP($C$111,$I$59:$O$108,2) -> 20.35 | S112: =VLOOKUP($C$111,$Q$59:$W$108,2) -> 17.77 | T112: =VLOOKUP($C$111,$Y$59:$AF$108,2) -> 17.77
A113: Relevant date | C113: 2022-07-31 | D113: Lump sum factor | F113: =IF($C$112="Male",G113,H113) -> 0 | G113: 0 | H113: 0 | I113: 0.99 | J113: 0.99 | K113: 0 | L113: 0 | M113: =VLOOKUP($C$111,$A$4:$G$53,3) -> 0.99 | N113: =VLOOKUP($C$111,$I$4:$O$53,3) -> 0.99 | O113: =VLOOKUP($C$111,$Q$4:$W$53,3) -> 0.99 | P113: =VLOOKUP($C$111,$Y$4:$AF$53,3) -> 0.99 | Q113: =VLOOKUP($C$111,$A$59:$G$108,3) -> 0.99 | R113: =VLOOKUP($C$111,$I$59:$O$108,3) -> 0.99 | S113: =VLOOKUP($C$111,$Q$59:$W$108,3) -> 0 | T113: =VLOOKUP($C$111,$Y$59:$AF$108,3) -> 0
A114: DOB | C114: =Results!D8 -> 00:00:00 | D114: Widow(er)'s pension factor | F114: 1.55 | G114: 1.55 | H114: 1.55 | I114: 1.49 | J114: 1.49 | K114: 1.55 | L114: 1.55 | M114: =VLOOKUP($C$111,$A$4:$G$53,4) -> 1.54 | N114: =VLOOKUP($C$111,$I$4:$O$53,4) -> 1.54 | O114: =VLOOKUP($C$111,$Q$4:$W$53,4) -> 1.59 | P114: =VLOOKUP($C$111,$Y$4:$AF$53,4) -> 1.59 | Q114: =VLOOKUP($C$111,$A$59:$G$108,4) -> 1.49 | R114: =VLOOKUP($C$111,$I$59:$O$108,4) -> 1.49 | S114: =VLOOKUP($C$111,$Q$59:$W$108,4) -> 1.55 | T114: =VLOOKUP($C$111,$Y$59:$AF$108,4) -> 1.55
A115: NRA | C115: =IF(Results!D5="NRA60","60","65") -> 65 | D115: Pre-88 GMP factor | F115: 2.95 | G115: 3.51 | H115: 2.95 | I115: 3.39 | J115: 2.97 | K115: 3.51 | L115: 2.95 | M115: =VLOOKUP($C$111,$A$4:$G$53,5) -> 3.48 | N115: =VLOOKUP($C$111,$I$4:$O$53,5) -> 3.05 | O115: =VLOOKUP($C$111,$Q$4:$W$53,5) -> 3.61 | P115: =VLOOKUP($C$111,$Y$4:$AF$53,5) -> 3.05 | Q115: =VLOOKUP($C$111,$A$59:$G$108,5) -> 3.39 | R115: =VLOOKUP($C$111,$I$59:$O$108,5) -> 2.97 | S115: =VLOOKUP($C$111,$Q$59:$W$108,5) -> 3.51 | T115: =VLOOKUP($C$111,$Y$59:$AF$108,5) -> 2.95
A116: Factors | C116: 2018 | D116: Post-88 GMP factor | F116: 0.03 | G116: 3.51 | H116: 0.03 | I116: 3.39 | J116: 2.97 | K116: 3.51 | L116: 0.03 | M116: =VLOOKUP($C$111,$A$4:$G$53,5) -> 3.48 | N116: =VLOOKUP($C$111,$I$4:$O$53,5) -> 3.05 | O116: =VLOOKUP($C$111,$Q$4:$W$53,5) -> 3.61 | P116: =VLOOKUP($C$111,$Y$4:$AF$53,6) -> 0.03 | Q116: =VLOOKUP($C$111,$A$59:$G$108,5) -> 3.39 | R116: =VLOOKUP($C$111,$I$59:$O$108,5) -> 2.97 | S116: =VLOOKUP($C$111,$Q$59:$W$108,5) -> 3.51 | T116: =VLOOKUP($C$111,$Y$59:$AF$108,6) -> 0.03
A117: Scheme | C117: STSS | D117: NI Mod factor | F117: 17.46 | G117: 16.24 | H117: 17.46 | I117: 13.91 | J117: 15.02 | K117: 16.24 | L117: 17.46 | M117: =VLOOKUP($C$111,$A$4:$G$53,6) -> 14.37 | N117: =VLOOKUP($C$111,$I$4:$O$53,6) -> 14.37 | O117: =VLOOKUP($C$111,$Q$4:$W$53,6) -> 16.74 | P117: =VLOOKUP($C$111,$Y$4:$AF$53,7) -> 16.74 | Q117: =VLOOKUP($C$111,$A$59:$G$108,6) -> 13.91 | R117: =VLOOKUP($C$111,$I$59:$O$108,6) -> 15.02 | S117: =VLOOKUP($C$111,$Q$59:$W$108,6) -> 16.24 | T117: =VLOOKUP($C$111,$Y$59:$AF$108,7) -> 17.46
D118: GMP Adjustment | F118: 1 | G118: 0.15 | H118: 1 | I118: 0.15 | J118: 0.15 | K118: 0.15 | L118: 1 | M118: =VLOOKUP($C$111,$A$4:$G$53,7) -> 0.15 | N118: =VLOOKUP($C$111,$I$4:$O$53,7) -> 0.15 | O118: =VLOOKUP($C$111,$Q$4:$W$53,7) -> 0.15 | P118: =VLOOKUP($C$111,$Y$4:$AF$53,8) -> 3.5 | Q118: =VLOOKUP($C$111,$A$59:$G$108,7) -> 0.15 | R118: =VLOOKUP($C$111,$I$59:$O$108,7) -> 0.15 | S118: =VLOOKUP($C$111,$Q$59:$W$108,7) -> 0.15 | T118: =VLOOKUP($C$111,$Y$59:$AF$108,8) -> 1
A121: Factor at 31/07/2020 | M121: NHS | Q121: STSS
A122: Age | C122: =INT((C124-C125)/365.25) -> 123 | F122: Actual | G122: Male | H122: Female | I122: Male 60 | J122: Female 60 | K122: Male 65 | L122: Female 65 | M122: Male 60 | N122: Female 60 | O122: Male 65 | P122: Female 65 | Q122: Male 60 | R122: Female 60 | S122: Male 65 | T122: Female 65
A123: Gender | C123: =IF(Results!D7="M", "Male","Female") -> Female | D123: Pension factor | F123: =IF($C$112="Male",G123,H123) -> 17.77 | G123: =IF($C$115="60",I123,K123) -> 17.77 | H123: 17.77 | I123: =IF($C$117="NHS",M123,Q123) -> 20.35 | J123: =IF($C$117="NHS",N123,R123) -> 20.35 | K123: =IF($C$117="NHS",O123,S123) -> 17.77 | L123: =IF($C$117="NHS",P123,T123) -> 17.77 | M123: =VLOOKUP($C$122,$A$4:$G$53,2) -> 20.34 | N123: =VLOOKUP($C$122,$I$4:$O$53,2) -> 20.34 | O123: =VLOOKUP($C$122,$Q$4:$W$53,2) -> 17.83 | P123: =VLOOKUP($C$122,$Y$4:$AF$53,2) -> 17.83 | Q123: =VLOOKUP($C$122,$A$59:$G$108,2) -> 20.35 | R123: =VLOOKUP($C$122,$I$59:$O$108,2) -> 20.35 | S123: =VLOOKUP($C$122,$Q$59:$W$108,2) -> 17.77 | T123: =VLOOKUP($C$122,$Y$59:$AF$108,2) -> 17.77
A124: Relevant date | C124: 2023-07-31 | D124: Lump sum factor | F124: =IF($C$112="Male",G124,H124) -> 0 | G124: 0 | H124: 0 | I124: =IF($C$117="NHS",M124,Q124) -> 0.99 | J124: =IF($C$117="NHS",N124,R124) -> 0.99 | K124: =IF($C$117="NHS",O124,S124) -> 0 | L124: =IF($C$117="NHS",P124,T124) -> 0 | M124: =VLOOKUP($C$122,$A$4:$G$53,3) -> 0.99 | N124: =VLOOKUP($C$122,$I$4:$O$53,3) -> 0.99 | O124: =VLOOKUP($C$122,$Q$4:$W$53,3) -> 0.99 | P124: =VLOOKUP($C$122,$Y$4:$AF$53,3) -> 0.99 | Q124: =VLOOKUP($C$122,$A$59:$G$108,3) -> 0.99 | R124: =VLOOKUP($C$122,$I$59:$O$108,3) -> 0.99 | S124: =VLOOKUP($C$122,$Q$59:$W$108,3) -> 0 | T124: =VLOOKUP($C$122,$Y$59:$AF$108,3) -> 0
A125: DOB | C125: =Results!D8 -> 00:00:00 | D125: Widow(er)'s pension factor | F125: 1.55 | G125: 1.55 | H125: 1.55 | I125: 1.49 | J125: 1.49 | K125: 1.55 | L125: 1.55 | M125: =VLOOKUP($C$122,$A$4:$G$53,4) -> 1.54 | N125: =VLOOKUP($C$122,$I$4:$O$53,4) -> 1.54 | O125: =VLOOKUP($C$122,$Q$4:$W$53,4) -> 1.59 | P125: =VLOOKUP($C$122,$Y$4:$AF$53,4) -> 1.59 | Q125: =VLOOKUP($C$122,$A$59:$G$108,4) -> 1.49 | R125: =VLOOKUP($C$122,$I$59:$O$108,4) -> 1.49 | S125: =VLOOKUP($C$122,$Q$59:$W$108,4) -> 1.55 | T125: =VLOOKUP($C$122,$Y$59:$AF$108,4) -> 1.55
A126: NRA | C126: =IF(Results!D5="NRA60","60","65") -> 65 | D126: Pre-88 GMP factor | F126: 2.95 | G126: 3.51 | H126: 2.95 | I126: 3.39 | J126: 2.97 | K126: 3.51 | L126: 2.95 | M126: =VLOOKUP($C$122,$A$4:$G$53,5) -> 3.48 | N126: =VLOOKUP($C$122,$I$4:$O$53,5) -> 3.05 | O126: =VLOOKUP($C$122,$Q$4:$W$53,5) -> 3.61 | P126: =VLOOKUP($C$122,$Y$4:$AF$53,5) -> 3.05 | Q126: =VLOOKUP($C$122,$A$59:$G$108,5) -> 3.39 | R126: =VLOOKUP($C$122,$I$59:$O$108,5) -> 2.97 | S126: =VLOOKUP($C$122,$Q$59:$W$108,5) -> 3.51 | T126: =VLOOKUP($C$122,$Y$59:$AF$108,5) -> 2.95
A127: Factors | C127: 2018 | D127: Post-88 GMP factor | F127: 0.03 | G127: 3.51 | H127: 0.03 | I127: 3.39 | J127: 2.97 | K127: 3.51 | L127: 0.03 | M127: =VLOOKUP($C$122,$A$4:$G$53,5) -> 3.48 | N127: =VLOOKUP($C$122,$I$4:$O$53,5) -> 3.05 | O127: =VLOOKUP($C$122,$Q$4:$W$53,5) -> 3.61 | P127: =VLOOKUP($C$122,$Y$4:$AF$53,6) -> 0.03 | Q127: =VLOOKUP($C$122,$A$59:$G$108,5) -> 3.39 | R127: =VLOOKUP($C$122,$I$59:$O$108,5) -> 2.97 | S127: =VLOOKUP($C$122,$Q$59:$W$108,5) -> 3.51 | T127: =VLOOKUP($C$122,$Y$59:$AF$108,6) -> 0.03
A128: Scheme | C128: STSS | D128: NI Mod factor | F128: 17.46 | G128: 16.24 | H128: 17.46 | I128: 13.91 | J128: 15.02 | K128: 16.24 | L128: 17.46 | M128: =VLOOKUP($C$122,$A$4:$G$53,6) -> 14.37 | N128: =VLOOKUP($C$122,$I$4:$O$53,6) -> 14.37 | O128: =VLOOKUP($C$122,$Q$4:$W$53,6) -> 16.74 | P128: =VLOOKUP($C$122,$Y$4:$AF$53,7) -> 16.74 | Q128: =VLOOKUP($C$122,$A$59:$G$108,6) -> 13.91 | R128: =VLOOKUP($C$122,$I$59:$O$108,6) -> 15.02 | S128: =VLOOKUP($C$122,$Q$59:$W$108,6) -> 16.24 | T128: =VLOOKUP($C$122,$Y$59:$AF$108,7) -> 17.46
D129: GMP Adjustment | F129: 1 | G129: 0.15 | H129: 1 | I129: 0.15 | J129: 0.15 | K129: 0.15 | L129: 1 | M129: =VLOOKUP($C$122,$A$4:$G$53,7) -> 0.15 | N129: =VLOOKUP($C$122,$I$4:$O$53,7) -> 0.15 | O129: =VLOOKUP($C$122,$Q$4:$W$53,7) -> 0.15 | P129: =VLOOKUP($C$122,$Y$4:$AF$53,8) -> 3.5 | Q129: =VLOOKUP($C$122,$A$59:$G$108,7) -> 0.15 | R129: =VLOOKUP($C$122,$I$59:$O$108,7) -> 0.15 | S129: =VLOOKUP($C$122,$Q$59:$W$108,7) -> 0.15 | T129: =VLOOKUP($C$122,$Y$59:$AF$108,8) -> 1

Sheet STPS STSS Non Club Factors (hidden)
B2: Age | D2: =INT((D4-D6)/365.25) -> 122 | H2: Actual | I2: 2015 | K2: 60 | M2: 65 | O2: 66 | Q2: 67 | S2: 68 | V2: =VLOOKUP(D9,AT21:AX76,2) -> 1.013 | W2: CPI + 1.25% pa
B3: Gender | D3: =IF(Results!D7="M", "Male","Female") -> Female | I3: Male | J3: Female | K3: Male 60 | L3: Female 60 | M3: Male 65 | N3: Female 65 | O3: Male | P3: Female | Q3: Male | R3: Female | S3: Male | T3: Female | V3: =VLOOKUP(D9,AT21:AX76,3) -> 1.015 | W3: CPI + 1.5% pa | Z3: Male | AB3: 60 | AC3: 65 | AD3: 66 | AE3: 67 | AF3: 68 | AI3: Inputs | AR3: Inputs | AY3: Interpolation formula
B4: Relevant date | D4: 2022-07-31 | F4: Pension factor | H4: =IF(($D$3="Male"),I4,J4) -> FALSE | I4: =IF($D$7=60,K4,IF($D$7=65,M4,IF($D$7=66,O4,IF($D$7=67,Q4,IF($D$7=68,S4))))) -> FALSE | J4: FALSE | K4: =VLOOKUP($D$2,a,2) -> 20.35 | L4: =VLOOKUP($D$2,b,2) -> 20.35 | M4: =VLOOKUP($D$2,e,2) -> 17.77 | N4: =VLOOKUP($D$2,f,2) -> 17.77 | O4: =VLOOKUP($D$2,g,2) -> 17.23 | P4: =VLOOKUP($D$2,h,2) -> 17.23 | Q4: =VLOOKUP($D$2,j,2) -> 16.68 | R4: =VLOOKUP($D$2,k,2) -> 16.68 | S4: =VLOOKUP($D$2,q,2) -> 0 | T4: =VLOOKUP($D$2,w,2) -> 16.12 | V4: =VLOOKUP(D9,AT21:AX76,4) -> 1.016 | W4: CPI + 1.6% pa | Z4: Pension factor | AB4: =VLOOKUP($D$2,a,2) -> 20.35 | AC4: =VLOOKUP($D$2,e,2) -> 17.77 | AD4: =VLOOKUP($D$2,g,2) -> 17.23 | AE4: =VLOOKUP($D$2,j,2) -> 16.68 | AF4: =VLOOKUP($D$2,q,2) -> 0 | AI4: DOB: | AJ4: =D6 -> 00:00:00 | AR4: DOB: | AS4: =Results!D8 -> 00:00:00
B5: NPA | D5: =IF(Results!D5="NRA60","60","65") -> 65 | F5: Lump sum factor | H5: =IF(($D$3="Male"),I5,J5) -> FALSE | I5: FALSE | J5: FALSE | K5: =VLOOKUP($D$2,a,3) -> 0.99 | L5: =VLOOKUP($D$2,b,3) -> 0.99 | M5: =VLOOKUP($D$2,e,3) -> 0.99 | N5: =VLOOKUP($D$2,f,3) -> 0.99 | O5: =VLOOKUP($D$2,g,3) -> 0.99 | P5: =VLOOKUP($D$2,h,3) -> 0.99 | Q5: =VLOOKUP($D$2,j,3) -> 0.99 | R5: =VLOOKUP($D$2,f,3) -> 0.99 | S5: =VLOOKUP($D$2,q,3) -> 0 | T5: =VLOOKUP($D$2,w,3) -> 0.99 | V5: =VLOOKUP(D9,AT21:AX76,5) -> 1.028 | W5: Earnings | Z5: Lump sum factor | AB5: =VLOOKUP($D$2,a,3) -> 0.99 | AC5: =VLOOKUP($D$2,e,3) -> 0.99 | AD5: =VLOOKUP($D$2,g,3) -> 0.99 | AE5: =VLOOKUP($D$2,j,3) -> 0.99 | AF5: =VLOOKUP($D$2,q,3) -> 0 | AI5: Relevant date: | AJ5: =D4 -> 2022-07-31 | AR5: Relevant date: | AS5: =BB19 -> 2023-07-31 | AZ5: Fp(NPA67,2months = | BA5: Fp(NPA67) | BB5: + | BC5: { 2 / 12 | BD5: x | BE5: [Fp(NPA68) | BF5: - | BG5: Fp(NPA67)]}
B6: DOB | D6: =Results!D8 -> 00:00:00 | F6: Widow(er)'s pension factor | H6: FALSE | I6: FALSE | J6: FALSE | K6: =VLOOKUP($D$2,a,4) -> 1.49 | L6: =VLOOKUP($D$2,b,4) -> 1.49 | M6: =VLOOKUP($D$2,e,4) -> 1.55 | N6: =VLOOKUP($D$2,f,4) -> 1.55 | O6: =VLOOKUP($D$2,g,4) -> 1.56 | P6: =VLOOKUP($D$2,h,4) -> 1.56 | Q6: =VLOOKUP($D$2,j,4) -> 1.56 | R6: =VLOOKUP($D$2,f,4) -> 1.55 | S6: =VLOOKUP($D$2,q,4) -> 0 | T6: =VLOOKUP($D$2,w,4) -> 1.57 | Z6: Widow(er)'s pension factor | AB6: =VLOOKUP($D$2,a,4) -> 1.49 | AC6: =VLOOKUP($D$2,e,4) -> 1.55 | AD6: =VLOOKUP($D$2,g,4) -> 1.56 | AE6: =VLOOKUP($D$2,j,4) -> 1.56 | AF6: =VLOOKUP($D$2,q,4) -> 0 | AY6: = | BA6: 8.19 | BB6: + | BC6: { 2 / 12 | BD6: x | BE6: [7.72 | BF6: - | BG6: 8.19]}
B7: NRA | D7: =Results!D9 -> 0 | E7: =D7+1 -> 1 | F7: Pre-88 GMP factor | H7: FALSE | I7: FALSE | J7: FALSE | K7: =VLOOKUP($D$2,a,5) -> 3.39 | L7: =VLOOKUP($D$2,b,5) -> 2.97 | M7: =VLOOKUP($D$2,e,5) -> 3.51 | N7: =VLOOKUP($D$2,f,5) -> 2.95 | O7: =VLOOKUP($D$2,g,5) -> 2.9 | P7: =VLOOKUP($D$2,h,5) -> 2.78 | Q7: =VLOOKUP($D$2,j,5) -> 2.73 | R7: =VLOOKUP($D$2,f,5) -> 2.95 | S7: =VLOOKUP($D$2,q,5) -> 0 | T7: =VLOOKUP($D$2,w,5) -> 2.45 | Z7: Pre-88 GMP factor | AB7: =VLOOKUP($D$2,a,5) -> 3.39 | AC7: =VLOOKUP($D$2,e,5) -> 3.51 | AD7: =VLOOKUP($D$2,g,5) -> 2.9 | AE7: =VLOOKUP($D$2,j,5) -> 2.73 | AF7: =VLOOKUP($D$2,q,5) -> 0 | AI7: Relevant Age | AJ7: =Results!J7 -> 122 | AR7: Relevant Age | AS7: =Results!J8 -> 123 | AY7: = | BA7: 8.19 | BB7: + | BC7: { 2 / 12 | BD7: x | BE7: -0.47}
B8: Factors | D8: 2018 | F8: Post-88 GMP factor | H8: FALSE | I8: FALSE | J8: FALSE | K8: =VLOOKUP($D$2,a,6) -> 3.39 | L8: =VLOOKUP($D$2,b,6) -> 2.97 | M8: =VLOOKUP($D$2,e,6) -> 3.51 | N8: =VLOOKUP($D$2,f,6) -> 0.03 | O8: =VLOOKUP($D$2,g,6) -> 0 | P8: =VLOOKUP($D$2,h,6) -> 0 | Q8: =VLOOKUP($D$2,j,6) -> -0.02 | R8: =VLOOKUP($D$2,f,6) -> 0.03 | S8: =VLOOKUP($D$2,q,6) -> 0 | T8: =VLOOKUP($D$2,w,6) -> -0.05 | Z8: Post-88 GMP factor | AB8: =VLOOKUP($D$2,a,6) -> 3.39 | AC8: =VLOOKUP($D$2,e,6) -> 3.51 | AD8: =VLOOKUP($D$2,g,6) -> 0 | AE8: =VLOOKUP($D$2,j,6) -> -0.02 | AF8: =VLOOKUP($D$2,q,6) -> 0 | AY8: = | BA8: 8.19 | BB8: + | BC8: -0.07833333333
B9: Years to NPA | F9: NI Mod factor | H9: FALSE | I9: FALSE | J9: FALSE | K9: =VLOOKUP($D$2,a,8) -> 13.91 | L9: =VLOOKUP($D$2,b,8) -> 15.02 | M9: =VLOOKUP($D$2,e,8) -> 16.24 | N9: =VLOOKUP($D$2,f,8) -> 17.46 | O9: =VLOOKUP($D$2,g,8) -> 16.26 | P9: =VLOOKUP($D$2,h,8) -> 17.5 | Q9: =VLOOKUP($D$2,j,8) -> 15.79 | R9: =VLOOKUP($D$2,f,8) -> 17.46 | S9: =VLOOKUP($D$2,q,8) -> 0 | T9: =VLOOKUP($D$2,w,8) -> 16.57 | AJ9: Years | AK9: Months | AS9: Years | AT9: Months | AY9: = | BA9: 8.111666667
B10: Revaluation | C10: CPI + 1.6% | D10: =IF($C$10="CPI + 1.25%",V2,IF($C$10="CPI + 1.5%",V3,IF($C$10="CPI + 1.6%",V4,IF($C$10="Earnings",V5)))) -> 1.016 | F10: GMP Adjustment | H10: FALSE | I10: FALSE | J10: FALSE | K10: =VLOOKUP($D$2,a,7) -> 0.15 | L10: =VLOOKUP($D$2,b,7) -> 0.15 | M10: =VLOOKUP($D$2,e,7) -> 0.15 | N10: =VLOOKUP($D$2,f,7) -> 3.5 | O10: =VLOOKUP($D$2,g,7) -> -0.1 | P10: =VLOOKUP($D$2,h,7) -> 2 | Q10: =VLOOKUP($D$2,j,7) -> -0.8 | R10: =VLOOKUP($D$2,f,7) -> 3.5 | S10: =VLOOKUP($D$2,q,7) -> 0 | T10: =VLOOKUP($D$2,w,7) -> 1.5 | AI10: SPA: | AJ10: =Results!D9 -> 0 | AK10: =Results!E9 -> 0 | AR10: SPA: | AS10: =Results!D9 -> 0 | AT10: =Results!E9 -> 0
B11: Interpolated factor | D11: =IF(Results!E9>0,AL14,H4) -> FALSE | F11: Pension factor | H11: =IF(($D$3="Male"),I11,J11) -> FALSE | I11: =IF($D$7=60,K11,IF($D$7=65,M11,IF($D$7=66,O11,IF($D$7=67,Q11,IF($D$7=68,S11))))) -> FALSE | J11: FALSE | K11: =M4 -> 17.77 | L11: 17.77 | M11: 17.23 | N11: 17.23 | O11: 16.68 | P11: 16.68 | Q11: 0 | R11: =T4 -> 16.12 | Z11: Female | AB11: 60 | AC11: 65 | AD11: 66 | AE11: 67 | AF11: 68
D12: 0 | F12: Lump sum factor | H12: FALSE | I12: FALSE | J12: FALSE | K12: 0.99 | L12: 0.99 | M12: 0.99 | N12: 0.99 | O12: 0.99 | P12: 0.99 | Q12: 0 | R12: 0.99 | Z12: Pension factor | AB12: =VLOOKUP($D$2,b,2) -> 20.35 | AC12: =VLOOKUP($D$2,f,2) -> 17.77 | AD12: =VLOOKUP($D$2,h,2) -> 17.23 | AE12: =VLOOKUP($D$2,k,2) -> 16.68 | AF12: =VLOOKUP($D$2,w,2) -> 16.12 | AI12: Relevant factors table | AL12: Interpolated | AR12: Relevant factors table | AU12: Interpolated
D13: =IF(Results!E9>0,AL15,H6) -> FALSE | F13: Widow(er)'s pension factor | H13: FALSE | I13: FALSE | J13: FALSE | K13: 1.55 | L13: 1.55 | M13: 1.56 | N13: 1.56 | O13: 1.56 | P13: 1.55 | Q13: 0 | R13: 1.57 | Z13: Lump sum factor | AB13: =VLOOKUP($D$2,b,3) -> 0.99 | AC13: =VLOOKUP($D$2,f,3) -> 0.99 | AD13: =VLOOKUP($D$2,h,3) -> 0.99 | AE13: =VLOOKUP($D$2,k,3) -> 0.99 | AF13: =VLOOKUP($D$2,w,3) -> 0.99 | AI13: NPA | AJ13: =D7 -> 0 | AK13: =E7 -> 1 | AL13: =Results!D9 -> 0 | AM13: =Results!E9 -> 0 | AO13: =AK10/12 -> 0 | AP13: =AK10/12 -> 0 | AR13: NPA | AS13: =D7 -> 0 | AT13: =E7 -> 1 | AU13: =Results!D9 -> 0 | AV13: =Results!E9 -> 0 | AX13: =AT10/12 -> 0 | AY13: =AT10/12 -> 0
F14: Pre-88 GMP factor | H14: =IF(($D$3="Male"),I14,J14) -> FALSE | I14: =IF($D$7=60,K14,IF($D$7=65,M14,IF($D$7=66,O14,IF($D$7=67,Q14,IF($D$7=68,S15))))) -> FALSE | J14: =IF($D$7=60,L14,IF($D$7=65,N14,IF($D$7=66,P14,IF($D$7=67,R14,IF($D$7=68,T15))))) -> FALSE | K14: 3.51 | L14: 2.95 | M14: 2.9 | N14: 2.78 | O14: 2.73 | P14: 2.95 | Q14: 0 | R14: 2.45 | AI14: Fp | AJ14: =H4 -> FALSE | AK14: =H11 -> FALSE | AL14: =AJ14+AO15 -> 0 | AO14: =AK14-AJ14 -> 0 | AP14: =AK15-AJ15 -> 0 | AR14: Fp | AS14: =BF19 -> FALSE | AT14: =BF26 -> FALSE | AU14: =AS14+AX15 -> 0 | AX14: =AT14-AS14 -> 0 | AY14: =AT15-AS15 -> 0
F15: Post-88 GMP factor | H15: =IF(($D$3="Male"),I15,J15) -> FALSE | I15: =IF($D$7=60,K15,IF($D$7=65,M15,IF($D$7=66,O15,IF($D$7=67,Q15,IF($D$7=68,S16))))) -> FALSE | J15: =IF($D$7=60,L15,IF($D$7=65,N15,IF($D$7=66,P15,IF($D$7=67,R15,IF($D$7=68,T16))))) -> FALSE | K15: 3.51 | L15: 0.03 | M15: 0 | N15: 0 | O15: -0.02 | P15: 0.03 | Q15: 0 | R15: -0.05 | Z15: Widow(er)'s pension factor | AB15: =VLOOKUP($D$2,b,4) -> 1.49 | AC15: =VLOOKUP($D$2,f,4) -> 1.55 | AD15: =VLOOKUP($D$2,h,4) -> 1.56 | AE15: =VLOOKUP($D$2,k,4) -> 1.56 | AF15: =VLOOKUP($D$2,w,4) -> 1.57 | AI15: Wid | AJ15: =H6 -> FALSE | AK15: =H13 -> FALSE | AL15: =AP15+AJ15 -> 0 | AO15: =AO13*AO14 -> 0 | AP15: =AP13*AP14 -> 0 | AR15: Wid | AS15: =BF21 -> FALSE | AT15: =BF28 -> FALSE | AU15: =AY15+AS15 -> 0 | AX15: =AX13*AX14 -> 0 | AY15: =AY13*AY14 -> 0
Z16: Post-88 GMP factor | AB16: =VLOOKUP($D$2,b,6) -> 2.97 | AC16: =VLOOKUP($D$2,f,6) -> 0.03 | AD16: =VLOOKUP($D$2,h,6) -> 0 | AE16: =VLOOKUP($D$2,k,6) -> -0.02 | AF16: =VLOOKUP($D$2,w,6) -> -0.05
A17: SCAPE 2018 | B17: Non-Club factors for males with a pension age of 60 | J17: SCAPE 2018 | K17: Non-Club factors for males with a pension age of 65 | S17: SCAPE 2018 | T17: Non-Club factors for males with a pension age of 66 | AB17: SCAPE 2018 | AC17: Non-Club factors for males with a pension age of 67 | AK17: SCAPE 2018 | AL17: Non-Club Factors for males with a pension age of 68 | AZ17: Age | BB17: =INT((BB19-BB21)/365.25) -> 123 | BF17: Actual | BG17: 2015 | BI17: 60 | BK17: 65 | BM17: 66 | BO17: 67 | BQ17: 68
A18: Age last birthday at guarantee date | B18: Gross pension of £1 per annum | C18: Lump sum of £1 | D18: Widow’s pension of £1 per annum | E18: Deduction for GMP of £1 per annum | H18: Deduction for NI modification of £1 pa | J18: Age last birthday at guarantee date | K18: Gross pension of £1 per annum | L18: Lump sum of £1 | M18: Widow’s pension of £1 per annum | N18: Deduction for GMP of £1 per annum | Q18: Deduction for NI modification of £1 pa | S18: Age last birthday at guarantee date | T18: Gross pension of £1 per annum | U18: Lump sum of £1 | V18: Widow’s pension of £1 per annum | W18: Deduction for GMP of £1 per annum | Z18: Deduction for NI modification of £1 pa | AB18: Age last birthday at guarantee date | AC18: Gross pension of £1 per annum | AD18: Lump sum of £1 | AE18: Widow’s pension of £1 per annum | AF18: Deduction for GMP of £1 per annum | AI18: Deduction for NI modification of £1 pa | AK18: Age last birthday at guarantee date | AL18: Gross pension of £1 per annum | AM18: Lump sum of £1 | AN18: Widow’s pension of £1 per annum | AO18: Deduction for GMP of £1 per annum | AR18: Deduction for NI modification of £1 pa | AT18: Complete Years to NPA | AU18: Adjustment Factor | AV18: Adjustment Factor | AW18: Adjustment Factor | AX18: Adjustment Factor | AZ18: Gender | BB18: =IF(Results!D7="M", "Male","Female") -> Female | BG18: Male | BH18: Female | BI18: Male 60 | BJ18: Female 60 | BK18: Male 65 | BL18: Female 65 | BM18: Male | BN18: Female | BO18: Male | BP18: Female | BQ18: Male | BR18: Female
AZ19: Relevant date | BB19: 2023-07-31 | BD19: Pension factor | BF19: =IF(($D$3="Male"),BG19,BH19) -> FALSE | BG19: =IF($D$7=60,BI19,IF($D$7=65,BK19,IF($D$7=66,BM19,IF($D$7=67,BO19,IF($D$7=68,BQ19))))) -> FALSE | BH19: =IF($D$7=60,BJ19,IF($D$7=65,BL19,IF($D$7=66,BN19,IF($D$7=67,BP19,IF($D$7=68,BR19))))) -> FALSE | BI19: =VLOOKUP(BB17,a,2) -> 20.35 | BJ19: =VLOOKUP(BB17,b,2) -> 20.35 | BK19: =VLOOKUP(BB17,e,2) -> 17.77 | BL19: =VLOOKUP(BB17,f,2) -> 17.77 | BM19: =VLOOKUP(BB17,g,2) -> 17.23 | BN19: =VLOOKUP(BB17,h,2) -> 17.23 | BO19: =VLOOKUP(BB17,j,2) -> 16.68 | BP19: =VLOOKUP(BB17,k,2) -> 16.68 | BQ19: =VLOOKUP(BB17,q,2) -> 0 | BR19: =VLOOKUP(BB17,w,2) -> 16.12
E20: Pre-88 factor | F20: Post-88 factor | G20: Post-88 adj. | N20: Pre-88 factor | O20: Post-88 factor | P20: Post-88 adj. | W20: Pre-88 factor | X20: Post-88 factor | Y20: Post-88 adj. | AF20: Pre-88 factor | AG20: Post-88 factor | AH20: Post-88 adj. | AO20: Pre-88 factor | AP20: Post-88 factor | AQ20: Post-88 adj. | AU20: CPI + 1.25% pa | AV20: CPI + 1.5% pa | AW20: CPI + 1.6% pa | AX20: Earnings | AZ20: NPA | BB20: =IF(Results!D5="NRA60","60","65") -> 65 | BD20: Lump sum factor | BF20: =IF(($D$3="Male"),BG20,BH20) -> FALSE | BG20: =IF($D$7=60,BI20,IF($D$7=65,BK20,IF($D$7=66,BM20,IF($D$7=67,BO20,IF($D$7=68,BQ20))))) -> FALSE | BH20: =IF($D$7=60,BJ20,IF($D$7=65,BL20,IF($D$7=66,BN20,IF($D$7=67,BP20,IF($D$7=68,BR20))))) -> FALSE | BI20: =VLOOKUP(BB17,a,3) -> 0.99 | BJ20: =VLOOKUP(BB17,b,3) -> 0.99 | BK20: =VLOOKUP(BB17,e,3) -> 0.99 | BL20: =VLOOKUP(BB17,f,3) -> 0.99 | BM20: =VLOOKUP(BB17,g,3) -> 0.99 | BN20: =VLOOKUP(BB17,h,3) -> 0.99 | BO20: =VLOOKUP(BB17,j,3) -> 0.99 | BP20: =VLOOKUP(BB17,f,3) -> 0.99 | BQ20: =VLOOKUP(BB17,q,3) -> 0 | BR20: =VLOOKUP(BB17,w,3) -> 0.99
A21: 16 | B21: 0 | C21: 0 | D21: 0 | E21: 0 | F21: 0 | G21: 0 | H21: 0 | J21: 16 | K21: 0 | L21: 0 | M21: 0 | N21: 0 | O21: 0 | P21: 0 | Q21: 0 | S21: 16 | T21: 0 | U21: 0 | V21: 0 | W21: 0 | X21: 0 | Y21: 0 | Z21: 0 | AB21: 16 | AC21: 0 | AD21: 0 | AE21: 0 | AF21: 0 | AG21: 0 | AH21: 0 | AI21: 0 | AK21: 16 | AL21: 0 | AM21: 0 | AN21: 0 | AO21: 0 | AP21: 0 | AQ21: 0 | AR21: 0 | AT21: 0 | AU21: 1.013 | AV21: 1.015 | AW21: 1.016 | AX21: 1.028 | AZ21: DOB | BB21: =Results!D8 -> 00:00:00 | BD21: Widow(er)'s pension factor | BF21: FALSE | BG21: FALSE | BH21: FALSE | BI21: =VLOOKUP(BB17,a,4) -> 1.49 | BJ21: =VLOOKUP(BB17,b,4) -> 1.49 | BK21: =VLOOKUP(BB17,e,4) -> 1.55 | BL21: =VLOOKUP(BB17,f,4) -> 1.55 | BM21: =VLOOKUP(BB17,g,4) -> 1.56 | BN21: =VLOOKUP(BB17,h,4) -> 1.56 | BO21: =VLOOKUP(BB17,j,4) -> 1.56 | BP21: =VLOOKUP(BB17,f,4) -> 1.55 | BQ21: =VLOOKUP(BB17,q,4) -> 0 | BR21: =VLOOKUP(BB17,w,4) -> 1.57
A22: 17 | B22: 0 | C22: 0 | D22: 0 | E22: 0 | F22: 0 | G22: 0 | H22: 0 | J22: 17 | K22: 0 | L22: 0 | M22: 0 | N22: 0 | O22: 0 | P22: 0 | Q22: 0 | S22: 17 | T22: 0 | U22: 0 | V22: 0 | W22: 0 | X22: 0 | Y22: 0 | Z22: 0 | AB22: 17 | AC22: 0 | AD22: 0 | AE22: 0 | AF22: 0 | AG22: 0 | AH22: 0 | AI22: 0 | AK22: 17 | AL22: 0 | AM22: 0 | AN22: 0 | AO22: 0 | AP22: 0 | AQ22: 0 | AR22: 0 | AT22: 1 | AU22: 1.017 | AV22: 1.02 | AW22: 1.022 | AX22: 1.037 | AZ22: NRA | BB22: =Results!D9 -> 0 | BC22: =BB22+1 -> 1 | BD22: Pre-88 GMP factor | BF22: FALSE | BG22: FALSE | BH22: FALSE | BI22: =VLOOKUP(BB17,a,5) -> 3.39 | BJ22: =VLOOKUP(BB17,b,5) -> 2.97 | BK22: =VLOOKUP(BB17,e,5) -> 3.51 | BL22: =VLOOKUP(BB17,f,5) -> 2.95 | BM22: =VLOOKUP(BB17,g,5) -> 2.9 | BN22: =VLOOKUP(BB17,h,5) -> 2.78 | BO22: =VLOOKUP(BB17,j,5) -> 2.73 | BP22: =VLOOKUP(BB17,f,5) -> 2.95 | BQ22: =VLOOKUP(BB17,q,5) -> 0 | BR22: =VLOOKUP(BB17,w,5) -> 2.45
A23: 18 | B23: 0 | C23: 0 | D23: 0 | E23: 0 | F23: 0 | G23: 0 | H23: 0 | J23: 18 | K23: 0 | L23: 0 | M23: 0 | N23: 0 | O23: 0 | P23: 0 | Q23: 0 | S23: 18 | T23: 0 | U23: 0 | V23: 0 | W23: 0 | X23: 0 | Y23: 0 | Z23: 0 | AB23: 18 | AC23: 0 | AD23: 0 | AE23: 0 | AF23: 0 | AG23: 0 | AH23: 0 | AI23: 0 | AK23: 18 | AL23: 0 | AM23: 0 | AN23: 0 | AO23: 0 | AP23: 0 | AQ23: 0 | AR23: 0 | AT23: 2 | AU23: 1.022 | AV23: 1.026 | AW23: 1.028 | AX23: 1.049 | AZ23: Factors | BB23: 2018 | BD23: Post-88 GMP factor | BF23: FALSE | BG23: FALSE | BH23: FALSE | BI23: =VLOOKUP(BB17,a,6) -> 3.39 | BJ23: =VLOOKUP(BB17,b,6) -> 2.97 | BK23: =VLOOKUP(BB17,e,6) -> 3.51 | BL23: =VLOOKUP(BB17,f,6) -> 0.03 | BM23: =VLOOKUP(BB17,g,6) -> 0 | BN23: =VLOOKUP(BB17,h,6) -> 0 | BO23: =VLOOKUP(BB17,j,6) -> -0.02 | BP23: =VLOOKUP(BB17,f,6) -> 0.03 | BQ23: =VLOOKUP(BB17,q,6) -> 0 | BR23: =VLOOKUP(BB17,w,6) -> -0.05
A24: 19 | B24: 0 | C24: 0 | D24: 0 | E24: 0 | F24: 0 | G24: 0 | H24: 0 | J24: 19 | K24: 0 | L24: 0 | M24: 0 | N24: 0 | O24: 0 | P24: 0 | Q24: 0 | S24: 19 | T24: 0 | U24: 0 | V24: 0 | W24: 0 | X24: 0 | Y24: 0 | Z24: 0 | AB24: 19 | AC24: 0 | AD24: 0 | AE24: 0 | AF24: 0 | AG24: 0 | AH24: 0 | AI24: 0 | AK24: 19 | AL24: 0 | AM24: 0 | AN24: 0 | AO24: 0 | AP24: 0 | AQ24: 0 | AR24: 0 | AT24: 3 | AU24: 1.027 | AV24: 1.033 | AW24: 1.035 | AX24: 1.061 | AZ24: Years to NPA | BD24: NI Mod factor | BF24: FALSE | BG24: FALSE | BH24: FALSE | BI24: =VLOOKUP(BB17,a,8) -> 13.91 | BJ24: =VLOOKUP(BB17,b,8) -> 15.02 | BK24: =VLOOKUP(BB17,e,8) -> 16.24 | BL24: =VLOOKUP(BB17,f,8) -> 17.46 | BM24: =VLOOKUP(BB17,g,8) -> 16.26 | BN24: =VLOOKUP(BB17,h,8) -> 17.5 | BO24: =VLOOKUP(BB17,j,8) -> 15.79 | BP24: =VLOOKUP(BB17,f,8) -> 17.46 | BQ24: =VLOOKUP(BB17,q,8) -> 0 | BR24: =VLOOKUP(BB17,w,8) -> 16.57
A25: 20 | B25: 8.56 | C25: 0.39 | D25: 0.76 | E25: 3.5 | F25: 3.5 | G25: 0.15 | H25: 4.72 | J25: 20 | K25: 6.76 | L25: 0.28 | M25: 0.78 | N25: 3.5 | O25: 3.5 | P25: 0.15 | Q25: 4.72 | S25: 20 | T25: 6.43 | U25: 0.27 | V25: 0.78 | W25: 2.49 | X25: 2.49 | Y25: -0.1 | Z25: 4.72 | AB25: 20 | AC25: 6.11 | AD25: 0.26 | AE25: 0.78 | AF25: 1.53 | AG25: 1.53 | AH25: -0.8 | AI25: 4.72 | AK25: 20 | AL25: 5.79 | AM25: 0.25 | AN25: 0.79 | AO25: 0.59 | AP25: 0.59 | AQ25: -4.5 | AR25: 4.72 | AT25: 4 | AU25: 1.033 | AV25: 1.04 | AW25: 1.043 | AX25: 1.074 | AZ25: Revaluation | BA25: CPI + 1.6% | BB25: =D10 -> 1.016 | BD25: GMP Adjustment | BF25: FALSE | BG25: FALSE | BH25: FALSE | BI25: =VLOOKUP(BB17,a,7) -> 0.15 | BJ25: =VLOOKUP(BB17,b,7) -> 0.15 | BK25: =VLOOKUP(BB17,e,7) -> 0.15 | BL25: =VLOOKUP(BB17,f,7) -> 3.5 | BM25: =VLOOKUP(BB17,g,7) -> -0.1 | BN25: =VLOOKUP(BB17,h,7) -> 2 | BO25: =VLOOKUP(BB17,j,7) -> -0.8 | BP25: =VLOOKUP(BB17,f,7) -> 3.5 | BQ25: =VLOOKUP(BB17,q,7) -> 0 | BR25: =VLOOKUP(BB17,w,7) -> 1.5
A26: 21 | B26: 8.75 | C26: 0.4 | D26: 0.78 | E26: 3.49 | F26: 3.49 | G26: 0.15 | H26: 4.85 | J26: 21 | K26: 6.91 | L26: 0.28 | M26: 0.79 | N26: 3.49 | O26: 3.49 | P26: 0.15 | Q26: 4.85 | S26: 21 | T26: 6.57 | U26: 0.28 | V26: 0.8 | W26: 2.49 | X26: 2.49 | Y26: -0.1 | Z26: 4.85 | AB26: 21 | AC26: 6.24 | AD26: 0.27 | AE26: 0.8 | AF26: 1.52 | AG26: 1.52 | AH26: -0.8 | AI26: 4.85 | AK26: 21 | AL26: 5.91 | AM26: 0.26 | AN26: 0.81 | AO26: 0.58 | AP26: 0.58 | AQ26: -4.5 | AR26: 4.85 | AT26: 5 | AU26: 1.039 | AV26: 1.047 | AW26: 1.05 | AX26: 1.088 | AZ26: Interpolated factor | BB26: =IF(Results!E9>0,AU14,BF19) -> FALSE | BD26: Pension factor | BF26: =IF(($D$3="Male"),BG26,BH26) -> FALSE | BG26: =IF($D$7=60,BI26,IF($D$7=65,BK26,IF($D$7=66,BM26,IF($D$7=67,BO26,IF($D$7=68,BQ26))))) -> FALSE | BH26: FALSE | BI26: =BK19 -> 17.77 | BJ26: =BL19 -> 17.77 | BK26: =BM19 -> 17.23 | BL26: =BN19 -> 17.23 | BM26: =BO19 -> 16.68 | BN26: =BP19 -> 16.68 | BO26: =BQ19 -> 0 | BP26: =BR19 -> 16.12
A27: 22 | B27: 8.94 | C27: 0.41 | D27: 0.8 | E27: 3.49 | F27: 3.49 | G27: 0.15 | H27: 4.98 | J27: 22 | K27: 7.05 | L27: 0.29 | M27: 0.81 | N27: 3.49 | O27: 3.49 | P27: 0.15 | Q27: 4.98 | S27: 22 | T27: 6.71 | U27: 0.28 | V27: 0.82 | W27: 2.48 | X27: 2.48 | Y27: -0.1 | Z27: 4.98 | AB27: 22 | AC27: 6.37 | AD27: 0.28 | AE27: 0.82 | AF27: 1.51 | AG27: 1.51 | AH27: -0.8 | AI27: 4.98 | AK27: 22 | AL27: 6.04 | AM27: 0.27 | AN27: 0.82 | AO27: 0.57 | AP27: 0.57 | AQ27: -4.5 | AR27: 4.98 | AT27: 6 | AU27: 1.045 | AV27: 1.054 | AW27: 1.058 | AX27: 1.101 | BB27: 0 | BD27: Lump sum factor | BF27: =IF(($D$3="Male"),BG27,BH27) -> FALSE | BG27: =IF($D$7=60,BI27,IF($D$7=65,BK27,IF($D$7=66,BM27,IF($D$7=67,BO27,IF($D$7=68,BQ27))))) -> FALSE | BH27: FALSE | BI27: =BK20 -> 0.99 | BJ27: 0.99 | BK27: =BM20 -> 0.99 | BL27: 0.99 | BM27: 0.99 | BN27: 0.99 | BO27: =BQ20 -> 0 | BP27: =BR20 -> 0.99
A28: 23 | B28: 9.13 | C28: 0.42 | D28: 0.82 | E28: 3.48 | F28: 3.48 | G28: 0.15 | H28: 5.12 | J28: 23 | K28: 7.21 | L28: 0.3 | M28: 0.83 | N28: 3.48 | O28: 3.48 | P28: 0.15 | Q28: 5.12 | S28: 23 | T28: 6.85 | U28: 0.29 | V28: 0.84 | W28: 2.47 | X28: 2.47 | Y28: -0.1 | Z28: 5.12 | AB28: 23 | AC28: 6.5 | AD28: 0.29 | AE28: 0.84 | AF28: 1.5 | AG28: 1.5 | AH28: -0.8 | AI28: 5.12 | AK28: 23 | AL28: 6.16 | AM28: 0.28 | AN28: 0.84 | AO28: 0.56 | AP28: 0.56 | AQ28: -4.5 | AR28: 5.12 | AT28: 7 | AU28: 1.051 | AV28: 1.062 | AW28: 1.066 | AX28: 1.115 | BB28: =IF(Results!E9>0,AU15,BF21) -> FALSE | BD28: Widow(er)'s pension factor | BF28: FALSE | BG28: FALSE | BH28: FALSE | BI28: 1.55 | BJ28: 1.55 | BK28: 1.56 | BL28: 1.56 | BM28: =BO21 -> 1.56 | BN28: 1.55 | BO28: 0 | BP28: 1.57
A29: 24 | B29: 9.33 | C29: 0.43 | D29: 0.84 | E29: 3.48 | F29: 3.48 | G29: 0.15 | H29: 5.26 | J29: 24 | K29: 7.36 | L29: 0.31 | M29: 0.85 | N29: 3.48 | O29: 3.48 | P29: 0.15 | Q29: 5.26 | S29: 24 | T29: 6.99 | U29: 0.3 | V29: 0.85 | W29: 2.46 | X29: 2.46 | Y29: -0.1 | Z29: 5.26 | AB29: 24 | AC29: 6.64 | AD29: 0.29 | AE29: 0.86 | AF29: 1.49 | AG29: 1.49 | AH29: -0.8 | AI29: 5.26 | AK29: 24 | AL29: 6.29 | AM29: 0.29 | AN29: 0.86 | AO29: 0.55 | AP29: 0.55 | AQ29: -4.5 | AR29: 5.26 | AT29: 8 | AU29: 1.057 | AV29: 1.069 | AW29: 1.074 | AX29: 1.13 | BD29: Pre-88 GMP factor | BF29: =IF(($D$3="Male"),BG29,BH29) -> FALSE | BG29: =IF($D$7=60,BI29,IF($D$7=65,BK29,IF($D$7=66,BM29,IF($D$7=67,BO29,IF($D$7=68,BQ30))))) -> FALSE | BH29: =IF($D$7=60,BJ29,IF($D$7=65,BL29,IF($D$7=66,BN29,IF($D$7=67,BP29,IF($D$7=68,BR30))))) -> FALSE | BI29: 3.51 | BJ29: 2.95 | BK29: 2.9 | BL29: 2.78 | BM29: 2.73 | BN29: 2.95 | BO29: 0 | BP29: 2.45
A30: 25 | B30: 9.54 | C30: 0.44 | D30: 0.86 | E30: 3.47 | F30: 3.47 | G30: 0.15 | H30: 5.4 | J30: 25 | K30: 7.52 | L30: 0.32 | M30: 0.87 | N30: 3.47 | O30: 3.47 | P30: 0.15 | Q30: 5.4 | S30: 25 | T30: 7.14 | U30: 0.31 | V30: 0.87 | W30: 2.46 | X30: 2.46 | Y30: -0.1 | Z30: 5.4 | AB30: 25 | AC30: 6.78 | AD30: 0.3 | AE30: 0.88 | AF30: 1.48 | AG30: 1.48 | AH30: -0.8 | AI30: 5.4 | AK30: 25 | AL30: 6.43 | AM30: 0.29 | AN30: 0.88 | AO30: 0.54 | AP30: 0.54 | AQ30: -4.5 | AR30: 5.4 | AT30: 9 | AU30: 1.064 | AV30: 1.077 | AW30: 1.082 | AX30: 1.145 | BD30: Post-88 GMP factor | BF30: =IF(($D$3="Male"),BG30,BH30) -> FALSE | BG30: =IF($D$7=60,BI30,IF($D$7=65,BK30,IF($D$7=66,BM30,IF($D$7=67,BO30,IF($D$7=68,BQ31))))) -> FALSE | BH30: =IF($D$7=60,BJ30,IF($D$7=65,BL30,IF($D$7=66,BN30,IF($D$7=67,BP30,IF($D$7=68,BR31))))) -> FALSE | BI30: 3.51 | BJ30: 0.03 | BK30: 0 | BL30: 0 | BM30: -0.02 | BN30: 0.03 | BO30: 0 | BP30: -0.05
A31: 26 | B31: 9.75 | C31: 0.45 | D31: 0.88 | E31: 3.46 | F31: 3.46 | G31: 0.15 | H31: 5.55 | J31: 26 | K31: 7.68 | L31: 0.33 | M31: 0.89 | N31: 3.46 | O31: 3.46 | P31: 0.15 | Q31: 5.55 | S31: 26 | T31: 7.3 | U31: 0.32 | V31: 0.89 | W31: 2.45 | X31: 2.45 | Y31: -0.1 | Z31: 5.55 | AB31: 26 | AC31: 6.92 | AD31: 0.31 | AE31: 0.9 | AF31: 1.47 | AG31: 1.47 | AH31: -0.8 | AI31: 5.55 | AK31: 26 | AL31: 6.56 | AM31: 0.3 | AN31: 0.9 | AO31: 0.52 | AP31: 0.52 | AQ31: -4.5 | AR31: 5.55 | AT31: 10 | AU31: 1.07 | AV31: 1.084 | AW31: 1.09 | AX31: 1.16
A32: 27 | B32: 9.96 | C32: 0.46 | D32: 0.89 | E32: 3.46 | F32: 3.46 | G32: 0.15 | H32: 5.7 | J32: 27 | K32: 7.84 | L32: 0.34 | M32: 0.91 | N32: 3.46 | O32: 3.46 | P32: 0.15 | Q32: 5.7 | S32: 27 | T32: 7.45 | U32: 0.33 | V32: 0.92 | W32: 2.44 | X32: 2.44 | Y32: -0.1 | Z32: 5.7 | AB32: 27 | AC32: 7.07 | AD32: 0.32 | AE32: 0.92 | AF32: 1.46 | AG32: 1.46 | AH32: -0.8 | AI32: 5.7 | AK32: 27 | AL32: 6.7 | AM32: 0.31 | AN32: 0.93 | AO32: 0.51 | AP32: 0.51 | AQ32: -4.5 | AR32: 5.7 | AT32: 11 | AU32: 1.076 | AV32: 1.092 | AW32: 1.099 | AX32: 1.175
A33: 28 | B33: 10.18 | C33: 0.47 | D33: 0.91 | E33: 3.45 | F33: 3.45 | G33: 0.15 | H33: 5.85 | J33: 28 | K33: 8.01 | L33: 0.35 | M33: 0.93 | N33: 3.45 | O33: 3.45 | P33: 0.15 | Q33: 5.85 | S33: 28 | T33: 7.61 | U33: 0.34 | V33: 0.94 | W33: 2.43 | X33: 2.43 | Y33: -0.1 | Z33: 5.85 | AB33: 28 | AC33: 7.22 | AD33: 0.33 | AE33: 0.94 | AF33: 1.45 | AG33: 1.45 | AH33: -0.8 | AI33: 5.85 | AK33: 28 | AL33: 6.84 | AM33: 0.32 | AN33: 0.95 | AO33: 0.5 | AP33: 0.5 | AQ33: -4.5 | AR33: 5.85 | AT33: 12 | AU33: 1.083 | AV33: 1.1 | AW33: 1.107 | AX33: 1.191
A34: 29 | B34: 10.4 | C34: 0.49 | D34: 0.93 | E34: 3.45 | F34: 3.45 | G34: 0.15 | H34: 6.01 | J34: 29 | K34: 8.18 | L34: 0.36 | M34: 0.95 | N34: 3.45 | O34: 3.45 | P34: 0.15 | Q34: 6.01 | S34: 29 | T34: 7.77 | U34: 0.35 | V34: 0.96 | W34: 2.42 | X34: 2.42 | Y34: -0.1 | Z34: 6.01 | AB34: 29 | AC34: 7.37 | AD34: 0.34 | AE34: 0.96 | AF34: 1.44 | AG34: 1.44 | AH34: -0.8 | AI34: 6.01 | AK34: 29 | AL34: 6.98 | AM34: 0.33 | AN34: 0.97 | AO34: 0.49 | AP34: 0.49 | AQ34: -4.5 | AR34: 6.01 | AT34: 13 | AU34: 1.09 | AV34: 1.108 | AW34: 1.116 | AX34: 1.207
A35: 30 | B35: 10.63 | C35: 0.5 | D35: 0.96 | E35: 3.44 | F35: 3.44 | G35: 0.15 | H35: 6.18 | J35: 30 | K35: 8.36 | L35: 0.37 | M35: 0.97 | N35: 3.44 | O35: 3.44 | P35: 0.15 | Q35: 6.18 | S35: 30 | T35: 7.94 | U35: 0.36 | V35: 0.98 | W35: 2.42 | X35: 2.42 | Y35: -0.1 | Z35: 6.18 | AB35: 30 | AC35: 7.53 | AD35: 0.35 | AE35: 0.98 | AF35: 1.43 | AG35: 1.43 | AH35: -0.8 | AI35: 6.18 | AK35: 30 | AL35: 7.13 | AM35: 0.34 | AN35: 0.99 | AO35: 0.48 | AP35: 0.48 | AQ35: -4.5 | AR35: 6.18 | AT35: 14 | AU35: 1.096 | AV35: 1.116 | AW35: 1.125 | AX35: 1.223
A36: 31 | B36: 10.87 | C36: 0.51 | D36: 0.98 | E36: 3.44 | F36: 3.44 | G36: 0.15 | H36: 6.35 | J36: 31 | K36: 8.54 | L36: 0.38 | M36: 0.99 | N36: 3.44 | O36: 3.44 | P36: 0.15 | Q36: 6.35 | S36: 31 | T36: 8.11 | U36: 0.37 | V36: 1 | W36: 2.41 | X36: 2.41 | Y36: -0.1 | Z36: 6.35 | AB36: 31 | AC36: 7.69 | AD36: 0.36 | AE36: 1 | AF36: 1.42 | AG36: 1.42 | AH36: -0.8 | AI36: 6.35 | AK36: 31 | AL36: 7.28 | AM36: 0.35 | AN36: 1.01 | AO36: 0.46 | AP36: 0.46 | AQ36: -4.5 | AR36: 6.35 | AT36: 15 | AU36: 1.103 | AV36: 1.125 | AW36: 1.133 | AX36: 1.239
A37: 32 | B37: 11.1 | C37: 0.52 | D37: 1 | E37: 3.43 | F37: 3.43 | G37: 0.15 | H37: 6.52 | J37: 32 | K37: 8.72 | L37: 0.39 | M37: 1.02 | N37: 3.43 | O37: 3.43 | P37: 0.15 | Q37: 6.52 | S37: 32 | T37: 8.28 | U37: 0.38 | V37: 1.02 | W37: 2.4 | X37: 2.4 | Y37: -0.1 | Z37: 6.52 | AB37: 32 | AC37: 7.85 | AD37: 0.37 | AE37: 1.03 | AF37: 1.41 | AG37: 1.41 | AH37: -0.8 | AI37: 6.52 | AK37: 32 | AL37: 7.44 | AM37: 0.36 | AN37: 1.03 | AO37: 0.45 | AP37: 0.45 | AQ37: -4.5 | AR37: 6.52 | AT37: 16 | AU37: 1.109 | AV37: 1.133 | AW37: 1.142 | AX37: 1.256
A38: 33 | B38: 11.35 | C38: 0.53 | D38: 1.02 | E38: 3.43 | F38: 3.43 | G38: 0.15 | H38: 6.7 | J38: 33 | K38: 8.91 | L38: 0.4 | M38: 1.04 | N38: 3.43 | O38: 3.43 | P38: 0.15 | Q38: 6.7 | S38: 33 | T38: 8.46 | U38: 0.39 | V38: 1.04 | W38: 2.39 | X38: 2.39 | Y38: -0.1 | Z38: 6.7 | AB38: 33 | AC38: 8.02 | AD38: 0.38 | AE38: 1.05 | AF38: 1.4 | AG38: 1.4 | AH38: -0.8 | AI38: 6.7 | AK38: 33 | AL38: 7.59 | AM38: 0.37 | AN38: 1.05 | AO38: 0.44 | AP38: 0.44 | AQ38: -4.5 | AR38: 6.7 | AT38: 17 | AU38: 1.116 | AV38: 1.141 | AW38: 1.151 | AX38: 1.272
A39: 34 | B39: 11.6 | C39: 0.55 | D39: 1.04 | E39: 3.42 | F39: 3.42 | G39: 0.15 | H39: 6.88 | J39: 34 | K39: 9.1 | L39: 0.41 | M39: 1.06 | N39: 3.42 | O39: 3.42 | P39: 0.15 | Q39: 6.88 | S39: 34 | T39: 8.64 | U39: 0.4 | V39: 1.06 | W39: 2.39 | X39: 2.39 | Y39: -0.1 | Z39: 6.88 | AB39: 34 | AC39: 8.19 | AD39: 0.39 | AE39: 1.07 | AF39: 1.39 | AG39: 1.39 | AH39: -0.8 | AI39: 6.88 | AK39: 34 | AL39: 7.75 | AM39: 0.38 | AN39: 1.08 | AO39: 0.43 | AP39: 0.43 | AQ39: -4.5 | AR39: 6.88 | AT39: 18 | AU39: 1.123 | AV39: 1.149 | AW39: 1.16 | AX39: 1.289
A40: 35 | B40: 11.85 | C40: 0.56 | D40: 1.06 | E40: 3.42 | F40: 3.42 | G40: 0.15 | H40: 7.07 | J40: 35 | K40: 9.29 | L40: 0.43 | M40: 1.08 | N40: 3.42 | O40: 3.42 | P40: 0.15 | Q40: 7.07 | S40: 35 | T40: 8.82 | U40: 0.42 | V40: 1.09 | W40: 2.38 | X40: 2.38 | Y40: -0.1 | Z40: 7.07 | AB40: 35 | AC40: 8.36 | AD40: 0.4 | AE40: 1.09 | AF40: 1.38 | AG40: 1.38 | AH40: -0.8 | AI40: 7.07 | AK40: 35 | AL40: 7.92 | AM40: 0.39 | AN40: 1.1 | AO40: 0.42 | AP40: 0.42 | AQ40: -4.5 | AR40: 7.07 | AT40: 19 | AU40: 1.13 | AV40: 1.158 | AW40: 1.169 | AX40: 1.307
A41: 36 | B41: 12.12 | C41: 0.57 | D41: 1.08 | E41: 3.41 | F41: 3.41 | G41: 0.15 | H41: 7.27 | J41: 36 | K41: 9.49 | L41: 0.44 | M41: 1.1 | N41: 3.41 | O41: 3.41 | P41: 0.15 | Q41: 7.27 | S41: 36 | T41: 9.01 | U41: 0.43 | V41: 1.11 | W41: 2.37 | X41: 2.37 | Y41: -0.1 | Z41: 7.27 | AB41: 36 | AC41: 8.54 | AD41: 0.42 | AE41: 1.11 | AF41: 1.37 | AG41: 1.37 | AH41: -0.8 | AI41: 7.27 | AK41: 36 | AL41: 8.08 | AM41: 0.4 | AN41: 1.12 | AO41: 0.4 | AP41: 0.4 | AQ41: -4.5 | AR41: 7.27 | AT41: 20 | AU41: 1.137 | AV41: 1.166 | AW41: 1.178 | AX41: 1.324
A42: 37 | B42: 12.38 | C42: 0.59 | D42: 1.1 | E42: 3.41 | F42: 3.41 | G42: 0.15 | H42: 7.47 | J42: 37 | K42: 9.7 | L42: 0.45 | M42: 1.12 | N42: 3.41 | O42: 3.41 | P42: 0.15 | Q42: 7.47 | S42: 37 | T42: 9.2 | U42: 0.44 | V42: 1.13 | W42: 2.37 | X42: 2.37 | Y42: -0.1 | Z42: 7.47 | AB42: 37 | AC42: 8.72 | AD42: 0.43 | AE42: 1.13 | AF42: 1.36 | AG42: 1.36 | AH42: -0.8 | AI42: 7.47 | AK42: 37 | AL42: 8.25 | AM42: 0.42 | AN42: 1.14 | AO42: 0.39 | AP42: 0.39 | AQ42: -4.5 | AR42: 7.47 | AT42: 21 | AU42: 1.144 | AV42: 1.175 | AW42: 1.187 | AX42: 1.342
A43: 38 | B43: 12.66 | C43: 0.6 | D43: 1.12 | E43: 3.4 | F43: 3.4 | G43: 0.15 | H43: 7.67 | J43: 38 | K43: 9.91 | L43: 0.47 | M43: 1.14 | N43: 3.4 | O43: 3.4 | P43: 0.15 | Q43: 7.67 | S43: 38 | T43: 9.4 | U43: 0.45 | V43: 1.15 | W43: 2.36 | X43: 2.36 | Y43: -0.1 | Z43: 7.67 | AB43: 38 | AC43: 8.91 | AD43: 0.44 | AE43: 1.16 | AF43: 1.35 | AG43: 1.35 | AH43: -0.8 | AI43: 7.67 | AK43: 38 | AL43: 8.43 | AM43: 0.43 | AN43: 1.16 | AO43: 0.38 | AP43: 0.38 | AQ43: -4.5 | AR43: 7.67 | AT43: 22 | AU43: 1.15 | AV43: 1.183 | AW43: 1.196 | AX43: 1.36
A44: 39 | B44: 12.94 | C44: 0.62 | D44: 1.14 | E44: 3.4 | F44: 3.4 | G44: 0.15 | H44: 7.89 | J44: 39 | K44: 10.12 | L44: 0.48 | M44: 1.17 | N44: 3.4 | O44: 3.4 | P44: 0.15 | Q44: 7.89 | S44: 39 | T44: 9.6 | U44: 0.47 | V44: 1.17 | W44: 2.35 | X44: 2.35 | Y44: -0.1 | Z44: 7.89 | AB44: 39 | AC44: 9.1 | AD44: 0.45 | AE44: 1.18 | AF44: 1.34 | AG44: 1.34 | AH44: -0.8 | AI44: 7.89 | AK44: 39 | AL44: 8.61 | AM44: 0.44 | AN44: 1.19 | AO44: 0.37 | AP44: 0.37 | AQ44: -4.5 | AR44: 7.89 | AT44: 23 | AU44: 1.157 | AV44: 1.192 | AW44: 1.206 | AX44: 1.378
A45: 40 | B45: 13.23 | C45: 0.63 | D45: 1.16 | E45: 3.4 | F45: 3.4 | G45: 0.15 | H45: 8.11 | J45: 40 | K45: 10.34 | L45: 0.49 | M45: 1.19 | N45: 3.4 | O45: 3.4 | P45: 0.15 | Q45: 8.11 | S45: 40 | T45: 9.81 | U45: 0.48 | V45: 1.19 | W45: 2.35 | X45: 2.35 | Y45: -0.1 | Z45: 8.11 | AB45: 40 | AC45: 9.29 | AD45: 0.47 | AE45: 1.2 | AF45: 1.33 | AG45: 1.33 | AH45: -0.8 | AI45: 8.11 | AK45: 40 | AL45: 8.79 | AM45: 0.45 | AN45: 1.21 | AO45: 0.36 | AP45: 0.36 | AQ45: -4.5 | AR45: 8.11 | AT45: 24 | AU45: 1.164 | AV45: 1.2 | AW45: 1.215 | AX45: 1.396
A46: 41 | B46: 13.52 | C46: 0.64 | D46: 1.18 | E46: 3.39 | F46: 3.39 | G46: 0.15 | H46: 8.33 | J46: 41 | K46: 10.57 | L46: 0.51 | M46: 1.21 | N46: 3.39 | O46: 3.39 | P46: 0.15 | Q46: 8.33 | S46: 41 | T46: 10.02 | U46: 0.49 | V46: 1.21 | W46: 2.34 | X46: 2.34 | Y46: -0.1 | Z46: 8.33 | AB46: 41 | AC46: 9.49 | AD46: 0.48 | AE46: 1.22 | AF46: 1.32 | AG46: 1.32 | AH46: -0.8 | AI46: 8.33 | AK46: 41 | AL46: 8.98 | AM46: 0.47 | AN46: 1.23 | AO46: 0.34 | AP46: 0.34 | AQ46: -4.5 | AR46: 8.33 | AT46: 25 | AU46: 1.172 | AV46: 1.209 | AW46: 1.224 | AX46: 1.415
A47: 42 | B47: 13.82 | C47: 0.66 | D47: 1.2 | E47: 3.39 | F47: 3.39 | G47: 0.15 | H47: 8.57 | J47: 42 | K47: 10.8 | L47: 0.52 | M47: 1.23 | N47: 3.39 | O47: 3.39 | P47: 0.15 | Q47: 8.57 | S47: 42 | T47: 10.24 | U47: 0.51 | V47: 1.24 | W47: 2.33 | X47: 2.33 | Y47: -0.1 | Z47: 8.57 | AB47: 42 | AC47: 9.7 | AD47: 0.49 | AE47: 1.24 | AF47: 1.31 | AG47: 1.31 | AH47: -0.8 | AI47: 8.57 | AK47: 42 | AL47: 9.17 | AM47: 0.48 | AN47: 1.25 | AO47: 0.33 | AP47: 0.33 | AQ47: -4.5 | AR47: 8.57 | AT47: 26 | AU47: 1.179 | AV47: 1.218 | AW47: 1.234 | AX47: 1.434
A48: 43 | B48: 14.13 | C48: 0.68 | D48: 1.22 | E48: 3.39 | F48: 3.39 | G48: 0.15 | H48: 8.81 | J48: 43 | K48: 11.03 | L48: 0.54 | M48: 1.25 | N48: 3.39 | O48: 3.39 | P48: 0.15 | Q48: 8.81 | S48: 43 | T48: 10.46 | U48: 0.52 | V48: 1.26 | W48: 2.33 | X48: 2.33 | Y48: -0.1 | Z48: 8.81 | AB48: 43 | AC48: 9.91 | AD48: 0.51 | AE48: 1.26 | AF48: 1.3 | AG48: 1.3 | AH48: -0.8 | AI48: 8.81 | AK48: 43 | AL48: 9.37 | AM48: 0.49 | AN48: 1.27 | AO48: 0.32 | AP48: 0.32 | AQ48: -4.5 | AR48: 8.81 | AT48: 27 | AU48: 1.186 | AV48: 1.227 | AW48: 1.243 | AX48: 1.453
A49: 44 | B49: 14.45 | C49: 0.69 | D49: 1.24 | E49: 3.39 | F49: 3.39 | G49: 0.15 | H49: 9.06 | J49: 44 | K49: 11.27 | L49: 0.55 | M49: 1.27 | N49: 3.39 | O49: 3.39 | P49: 0.15 | Q49: 9.06 | S49: 44 | T49: 10.69 | U49: 0.54 | V49: 1.28 | W49: 2.32 | X49: 2.32 | Y49: -0.1 | Z49: 9.06 | AB49: 44 | AC49: 10.12 | AD49: 0.52 | AE49: 1.29 | AF49: 1.29 | AG49: 1.29 | AH49: -0.8 | AI49: 9.06 | AK49: 44 | AL49: 9.57 | AM49: 0.51 | AN49: 1.29 | AO49: 0.31 | AP49: 0.31 | AQ49: -4.5 | AR49: 9.06 | AT49: 28 | AU49: 1.193 | AV49: 1.236 | AW49: 1.253 | AX49: 1.472
A50: 45 | B50: 14.77 | C50: 0.71 | D50: 1.26 | E50: 3.38 | F50: 3.38 | G50: 0.15 | H50: 9.31 | J50: 45 | K50: 11.52 | L50: 0.57 | M50: 1.29 | N50: 3.38 | O50: 3.38 | P50: 0.15 | Q50: 9.31 | S50: 45 | T50: 10.92 | U50: 0.55 | V50: 1.3 | W50: 2.31 | X50: 2.31 | Y50: -0.1 | Z50: 9.31 | AB50: 45 | AC50: 10.34 | AD50: 0.54 | AE50: 1.31 | AF50: 1.29 | AG50: 1.29 | AH50: -0.8 | AI50: 9.31 | AK50: 45 | AL50: 9.77 | AM50: 0.52 | AN50: 1.32 | AO50: 0.3 | AP50: 0.3 | AQ50: -4.5 | AR50: 9.31 | AT50: 29 | AU50: 1.2 | AV50: 1.245 | AW50: 1.263 | AX50: 1.492
A51: 46 | B51: 15.1 | C51: 0.73 | D51: 1.28 | E51: 3.38 | F51: 3.38 | G51: 0.15 | H51: 9.58 | J51: 46 | K51: 11.77 | L51: 0.59 | M51: 1.31 | N51: 3.38 | O51: 3.38 | P51: 0.15 | Q51: 9.58 | S51: 46 | T51: 11.16 | U51: 0.57 | V51: 1.32 | W51: 2.31 | X51: 2.31 | Y51: -0.1 | Z51: 9.58 | AB51: 46 | AC51: 10.56 | AD51: 0.55 | AE51: 1.33 | AF51: 1.28 | AG51: 1.28 | AH51: -0.8 | AI51: 9.58 | AK51: 46 | AL51: 9.98 | AM51: 0.54 | AN51: 1.34 | AO51: 0.28 | AP51: 0.28 | AQ51: -4.5 | AR51: 9.58 | AT51: 30 | AU51: 1.207 | AV51: 1.254 | AW51: 1.273 | AX51: 1.512
A52: 47 | B52: 15.44 | C52: 0.74 | D52: 1.3 | E52: 3.38 | F52: 3.38 | G52: 0.15 | H52: 9.85 | J52: 47 | K52: 12.03 | L52: 0.6 | M52: 1.33 | N52: 3.38 | O52: 3.38 | P52: 0.15 | Q52: 9.85 | S52: 47 | T52: 11.4 | U52: 0.59 | V52: 1.34 | W52: 2.3 | X52: 2.3 | Y52: -0.1 | Z52: 9.85 | AB52: 47 | AC52: 10.79 | AD52: 0.57 | AE52: 1.35 | AF52: 1.27 | AG52: 1.27 | AH52: -0.8 | AI52: 9.85 | AK52: 47 | AL52: 10.2 | AM52: 0.55 | AN52: 1.36 | AO52: 0.27 | AP52: 0.27 | AQ52: -4.5 | AR52: 9.85 | AT52: 31 | AU52: 1.215 | AV52: 1.263 | AW52: 1.283 | AX52: 1.532
A53: 48 | B53: 15.79 | C53: 0.76 | D53: 1.32 | E53: 3.38 | F53: 3.38 | G53: 0.15 | H53: 10.12 | J53: 48 | K53: 12.29 | L53: 0.62 | M53: 1.35 | N53: 3.38 | O53: 3.38 | P53: 0.15 | Q53: 10.12 | S53: 48 | T53: 11.65 | U53: 0.6 | V53: 1.36 | W53: 2.3 | X53: 2.3 | Y53: -0.1 | Z53: 10.12 | AB53: 48 | AC53: 11.02 | AD53: 0.59 | AE53: 1.37 | AF53: 1.26 | AG53: 1.26 | AH53: -0.8 | AI53: 10.12 | AK53: 48 | AL53: 10.42 | AM53: 0.57 | AN53: 1.38 | AO53: 0.26 | AP53: 0.26 | AQ53: -4.5 | AR53: 10.12 | AT53: 32 | AU53: 1.222 | AV53: 1.272 | AW53: 1.292 | AX53: 1.552
A54: 49 | B54: 16.15 | C54: 0.78 | D54: 1.34 | E54: 3.37 | F54: 3.37 | G54: 0.15 | H54: 10.41 | J54: 49 | K54: 12.57 | L54: 0.64 | M54: 1.38 | N54: 3.37 | O54: 3.37 | P54: 0.15 | Q54: 10.41 | S54: 49 | T54: 11.91 | U54: 0.62 | V54: 1.38 | W54: 2.29 | X54: 2.29 | Y54: -0.1 | Z54: 10.41 | AB54: 49 | AC54: 11.26 | AD54: 0.6 | AE54: 1.39 | AF54: 1.25 | AG54: 1.25 | AH54: -0.8 | AI54: 10.41 | AK54: 49 | AL54: 10.64 | AM54: 0.59 | AN54: 1.4 | AO54: 0.25 | AP54: 0.25 | AQ54: -4.5 | AR54: 10.41 | AT54: 33 | AU54: 1.23 | AV54: 1.281 | AW54: 1.303 | AX54: 1.573
A55: 50 | B55: 16.52 | C55: 0.8 | D55: 1.36 | E55: 3.37 | F55: 3.37 | G55: 0.15 | H55: 10.71 | J55: 50 | K55: 12.84 | L55: 0.66 | M55: 1.4 | N55: 3.37 | O55: 3.37 | P55: 0.15 | Q55: 10.71 | S55: 50 | T55: 12.17 | U55: 0.64 | V55: 1.4 | W55: 2.29 | X55: 2.29 | Y55: -0.1 | Z55: 10.71 | AB55: 50 | AC55: 11.51 | AD55: 0.62 | AE55: 1.41 | AF55: 1.24 | AG55: 1.24 | AH55: -0.8 | AI55: 10.71 | AK55: 50 | AL55: 10.87 | AM55: 0.6 | AN55: 1.42 | AO55: 0.23 | AP55: 0.23 | AQ55: -4.5 | AR55: 10.71 | AT55: 34 | AU55: 1.237 | AV55: 1.291 | AW55: 1.313 | AX55: 1.594
A56: 51 | B56: 16.89 | C56: 0.82 | D56: 1.38 | E56: 3.37 | F56: 3.37 | G56: 0.15 | H56: 11.01 | J56: 51 | K56: 13.13 | L56: 0.68 | M56: 1.41 | N56: 3.37 | O56: 3.37 | P56: 0.15 | Q56: 11.01 | S56: 51 | T56: 12.44 | U56: 0.66 | V56: 1.42 | W56: 2.28 | X56: 2.28 | Y56: -0.1 | Z56: 11.01 | AB56: 51 | AC56: 11.76 | AD56: 0.64 | AE56: 1.43 | AF56: 1.23 | AG56: 1.23 | AH56: -0.8 | AI56: 11.01 | AK56: 51 | AL56: 11.11 | AM56: 0.62 | AN56: 1.44 | AO56: 0.22 | AP56: 0.22 | AQ56: -4.5 | AR56: 11.01 | AT56: 35 | AU56: 1.245 | AV56: 1.3 | AW56: 1.323 | AX56: 1.615
A57: 52 | B57: 17.28 | C57: 0.84 | D57: 1.4 | E57: 3.37 | F57: 3.37 | G57: 0.15 | H57: 11.33 | J57: 52 | K57: 13.42 | L57: 0.7 | M57: 1.43 | N57: 3.37 | O57: 3.37 | P57: 0.15 | Q57: 11.33 | S57: 52 | T57: 12.71 | U57: 0.68 | V57: 1.44 | W57: 2.28 | X57: 2.28 | Y57: -0.1 | Z57: 11.33 | AB57: 52 | AC57: 12.02 | AD57: 0.66 | AE57: 1.45 | AF57: 1.22 | AG57: 1.22 | AH57: -0.8 | AI57: 11.33 | AK57: 52 | AL57: 11.35 | AM57: 0.64 | AN57: 1.46 | AO57: 0.21 | AP57: 0.21 | AQ57: -4.5 | AR57: 11.33 | AT57: 36 | AU57: 1.252 | AV57: 1.309 | AW57: 1.333 | AX57: 1.637
A58: 53 | B58: 17.68 | C58: 0.86 | D58: 1.42 | E58: 3.37 | F58: 3.37 | G58: 0.15 | H58: 11.66 | J58: 53 | K58: 13.72 | L58: 0.72 | M58: 1.45 | N58: 3.37 | O58: 3.37 | P58: 0.15 | Q58: 11.66 | S58: 53 | T58: 13 | U58: 0.7 | V58: 1.46 | W58: 2.27 | X58: 2.27 | Y58: -0.1 | Z58: 11.66 | AB58: 53 | AC58: 12.29 | AD58: 0.68 | AE58: 1.47 | AF58: 1.21 | AG58: 1.21 | AH58: -0.8 | AI58: 11.66 | AK58: 53 | AL58: 11.6 | AM58: 0.66 | AN58: 1.48 | AO58: 0.19 | AP58: 0.19 | AQ58: -4.5 | AR58: 11.66 | AT58: 37 | AU58: 1.26 | AV58: 1.319 | AW58: 1.343 | AX58: 1.659
A59: 54 | B59: 18.09 | C59: 0.88 | D59: 1.43 | E59: 3.37 | F59: 3.37 | G59: 0.15 | H59: 12 | J59: 54 | K59: 14.04 | L59: 0.74 | M59: 1.47 | N59: 3.37 | O59: 3.37 | P59: 0.15 | Q59: 12 | S59: 54 | T59: 13.29 | U59: 0.72 | V59: 1.48 | W59: 2.27 | X59: 2.27 | Y59: -0.1 | Z59: 12 | AB59: 54 | AC59: 12.56 | AD59: 0.7 | AE59: 1.49 | AF59: 1.2 | AG59: 1.2 | AH59: -0.8 | AI59: 12 | AK59: 54 | AL59: 11.86 | AM59: 0.68 | AN59: 1.5 | AO59: 0.18 | AP59: 0.18 | AQ59: -4.5 | AR59: 12 | AT59: 38 | AU59: 1.267 | AV59: 1.329 | AW59: 1.354 | AX59: 1.681
A60: 55 | B60: 18.51 | C60: 0.9 | D60: 1.45 | E60: 3.37 | F60: 3.37 | G60: 0.15 | H60: 12.35 | J60: 55 | K60: 14.36 | L60: 0.76 | M60: 1.48 | N60: 3.37 | O60: 3.37 | P60: 0.15 | Q60: 12.35 | S60: 55 | T60: 13.59 | U60: 0.74 | V60: 1.49 | W60: 2.26 | X60: 2.26 | Y60: -0.1 | Z60: 12.35 | AB60: 55 | AC60: 12.85 | AD60: 0.72 | AE60: 1.5 | AF60: 1.2 | AG60: 1.2 | AH60: -0.8 | AI60: 12.35 | AK60: 55 | AL60: 12.12 | AM60: 0.7 | AN60: 1.51 | AO60: 0.17 | AP60: 0.17 | AQ60: -4.5 | AR60: 12.35 | AT60: 39 | AU60: 1.275 | AV60: 1.338 | AW60: 1.364 | AX60: 1.703
A61: 56 | B61: 18.95 | C61: 0.92 | D61: 1.46 | E61: 3.38 | F61: 3.38 | G61: 0.15 | H61: 12.72 | J61: 56 | K61: 14.68 | L61: 0.78 | M61: 1.5 | N61: 3.38 | O61: 3.38 | P61: 0.15 | Q61: 12.72 | S61: 56 | T61: 13.9 | U61: 0.76 | V61: 1.51 | W61: 2.26 | X61: 2.26 | Y61: -0.1 | Z61: 12.72 | AB61: 56 | AC61: 13.14 | AD61: 0.74 | AE61: 1.52 | AF61: 1.19 | AG61: 1.19 | AH61: -0.8 | AI61: 12.72 | AK61: 56 | AL61: 12.4 | AM61: 0.72 | AN61: 1.53 | AO61: 0.16 | AP61: 0.16 | AQ61: -4.5 | AR61: 12.72 | AT61: 40 | AU61: 1.283 | AV61: 1.348 | AW61: 1.375 | AX61: 1.726
A62: 57 | B62: 19.4 | C62: 0.94 | D62: 1.47 | E62: 3.38 | F62: 3.38 | G62: 0.15 | H62: 13.1 | J62: 57 | K62: 15.03 | L62: 0.8 | M62: 1.51 | N62: 3.38 | O62: 3.38 | P62: 0.15 | Q62: 13.1 | S62: 57 | T62: 14.22 | U62: 0.78 | V62: 1.52 | W62: 2.26 | X62: 2.26 | Y62: -0.1 | Z62: 13.1 | AB62: 57 | AC62: 13.44 | AD62: 0.76 | AE62: 1.53 | AF62: 1.18 | AG62: 1.18 | AH62: -0.8 | AI62: 13.1 | AK62: 57 | AL62: 12.68 | AM62: 0.74 | AN62: 1.54 | AO62: 0.14 | AP62: 0.14 | AQ62: -4.5 | AR62: 13.1 | AT62: 41 | AU62: 1.29 | AV62: 1.358 | AW62: 1.386 | AX62: 1.749
A63: 58 | B63: 19.87 | C63: 0.97 | D63: 1.48 | E63: 3.38 | F63: 3.38 | G63: 0.15 | H63: 13.49 | J63: 58 | K63: 15.38 | L63: 0.83 | M63: 1.52 | N63: 3.38 | O63: 3.38 | P63: 0.15 | Q63: 13.49 | S63: 58 | T63: 14.55 | U63: 0.8 | V63: 1.53 | W63: 2.25 | X63: 2.25 | Y63: -0.1 | Z63: 13.49 | AB63: 58 | AC63: 13.75 | AD63: 0.78 | AE63: 1.54 | AF63: 1.17 | AG63: 1.17 | AH63: -0.8 | AI63: 13.49 | AK63: 58 | AL63: 12.97 | AM63: 0.76 | AN63: 1.55 | AO63: 0.13 | AP63: 0.13 | AQ63: -4.5 | AR63: 13.49 | AT63: 42 | AU63: 1.298 | AV63: 1.368 | AW63: 1.396 | AX63: 1.772
A64: 59 | B64: 20.35 | C64: 0.99 | D64: 1.49 | E64: 3.39 | F64: 3.39 | G64: 0.15 | H64: 13.91 | J64: 59 | K64: 15.74 | L64: 0.85 | M64: 1.53 | N64: 3.39 | O64: 3.39 | P64: 0.15 | Q64: 13.91 | S64: 59 | T64: 14.89 | U64: 0.83 | V64: 1.54 | W64: 2.25 | X64: 2.25 | Y64: -0.1 | Z64: 13.91 | AB64: 59 | AC64: 14.07 | AD64: 0.8 | AE64: 1.55 | AF64: 1.16 | AG64: 1.16 | AH64: -0.8 | AI64: 13.91 | AK64: 59 | AL64: 13.27 | AM64: 0.78 | AN64: 1.56 | AO64: 0.12 | AP64: 0.12 | AQ64: -4.5 | AR64: 13.91 | AT64: 43 | AU64: 1.306 | AV64: 1.378 | AW64: 1.407 | AX64: 1.796
A65: 60 | B65: 0 | C65: 1 | D65: 0 | E65: 0 | F65: 0 | G65: 0 | H65: 0 | J65: 60 | K65: 16.12 | L65: 0.88 | M65: 1.54 | N65: 3.39 | O65: 3.39 | P65: 0.15 | Q65: 14.33 | S65: 60 | T65: 15.25 | U65: 0.85 | V65: 1.55 | W65: 2.25 | X65: 2.25 | Y65: -0.1 | Z65: 14.33 | AB65: 60 | AC65: 14.4 | AD65: 0.83 | AE65: 1.56 | AF65: 1.16 | AG65: 1.16 | AH65: -0.8 | AI65: 14.33 | AK65: 60 | AL65: 13.58 | AM65: 0.8 | AN65: 1.57 | AO65: 0.1 | AP65: 0.1 | AQ65: -4.5 | AR65: 14.33 | AT65: 44 | AU65: 1.314 | AV65: 1.388 | AW65: 1.418 | AX65: 1.82
A66: 61 | B66: 0 | C66: 1 | D66: 0 | E66: 0 | F66: 0 | G66: 0 | H66: 0 | J66: 61 | K66: 16.5 | L66: 0.9 | M66: 1.54 | N66: 3.4 | O66: 3.4 | P66: 0.15 | Q66: 14.78 | S66: 61 | T66: 15.61 | U66: 0.88 | V66: 1.55 | W66: 2.25 | X66: 2.25 | Y66: -0.1 | Z66: 14.78 | AB66: 61 | AC66: 14.74 | AD66: 0.85 | AE66: 1.57 | AF66: 1.15 | AG66: 1.15 | AH66: -0.8 | AI66: 14.78 | AK66: 61 | AL66: 13.9 | AM66: 0.83 | AN66: 1.58 | AO66: 0.09 | AP66: 0.09 | AQ66: -4.5 | AR66: 14.78 | AT66: 45 | AU66: 1.322 | AV66: 1.398 | AW66: 1.42 | AX66: 1.844
A67: 62 | B67: 0 | C67: 1 | D67: 0 | E67: 0 | F67: 0 | G67: 0 | H67: 0 | J67: 62 | K67: 16.91 | L67: 0.93 | M67: 1.55 | N67: 3.41 | O67: 3.41 | P67: 0.15 | Q67: 15.25 | S67: 62 | T67: 15.99 | U67: 0.9 | V67: 1.56 | W67: 2.25 | X67: 2.25 | Y67: -0.1 | Z67: 15.25 | AB67: 62 | AC67: 15.1 | AD67: 0.88 | AE67: 1.57 | AF67: 1.14 | AG67: 1.14 | AH67: -0.8 | AI67: 15.25 | AK67: 62 | AL67: 14.23 | AM67: 0.85 | AN67: 1.58 | AO67: 0.07 | AP67: 0.07 | AQ67: -4.5 | AR67: 15.25 | AT67: 46 | AU67: 1.33 | AV67: 1.408 | AW67: 1.44 | AX67: 1.869
A68: 63 | B68: 0 | C68: 1 | D68: 0 | E68: 0 | F68: 0 | G68: 0 | H68: 0 | J68: 63 | K68: 17.33 | L68: 0.96 | M68: 1.55 | N68: 3.42 | O68: 3.42 | P68: 0.15 | Q68: 15.73 | S68: 63 | T68: 16.39 | U68: 0.93 | V68: 1.56 | W68: 2.25 | X68: 2.25 | Y68: -0.1 | Z68: 15.73 | AB68: 63 | AC68: 15.47 | AD68: 0.9 | AE68: 1.57 | AF68: 1.13 | AG68: 1.13 | AH68: -0.8 | AI68: 15.73 | AK68: 63 | AL68: 14.58 | AM68: 0.88 | AN68: 1.58 | AO68: 0.06 | AP68: 0.06 | AQ68: -4.5 | AR68: 15.73 | AT68: 47 | AU68: 1.338 | AV68: 1.418 | AW68: 1.451 | AX68: 1.894
A69: 64 | B69: 0 | C69: 1 | D69: 0 | E69: 0 | F69: 0 | G69: 0 | H69: 0 | J69: 64 | K69: 17.77 | L69: 0.99 | M69: 1.55 | N69: 3.51 | O69: 3.51 | P69: 0.15 | Q69: 16.24 | S69: 64 | T69: 16.8 | U69: 0.96 | V69: 1.56 | W69: 2.31 | X69: 2.31 | Y69: -0.1 | Z69: 16.24 | AB69: 64 | AC69: 15.86 | AD69: 0.93 | AE69: 1.57 | AF69: 1.15 | AG69: 1.15 | AH69: -0.8 | AI69: 16.24 | AK69: 64 | AL69: 14.94 | AM69: 0.9 | AN69: 1.58 | AO69: 0.05 | AP69: 0.05 | AQ69: -4.5 | AR69: 16.24 | AT69: 48 | AU69: 1.346 | AV69: 1.428 | AW69: 1.463 | AX69: 1.919
A70: 65 | B70: 0 | C70: 1 | D70: 0 | E70: 0 | F70: 0 | G70: 0 | H70: 0 | J70: 65 | K70: 0 | L70: 0 | M70: 0 | N70: 0 | O70: 0 | P70: 0 | Q70: 0 | S70: 65 | T70: 17.23 | U70: 0.99 | V70: 1.56 | W70: 2.9 | X70: 0 | Y70: -0.1 | Z70: 16.26 | AB70: 65 | AC70: 16.26 | AD70: 0.96 | AE70: 1.57 | AF70: 1.69 | AG70: -1 | AH70: -0.8 | AI70: 16.26 | AK70: 65 | AL70: 15.32 | AM70: 0.93 | AN70: 1.58 | AO70: 0.53 | AP70: -1.96 | AQ70: -4.5 | AR70: 16.26 | AT70: 49 | AU70: 1.354 | AV70: 1.439 | AW70: 1.474 | AX70: 1.944
A71: 66 | B71: 0 | C71: 1 | D71: 0 | E71: 0 | F71: 0 | G71: 0 | H71: 0 | J71: 66 | K71: 0 | L71: 0 | M71: 0 | N71: 0 | O71: 0 | P71: 0 | Q71: 0 | S71: 66 | T71: 0 | U71: 0 | V71: 0 | W71: 0 | X71: 0 | Y71: 0 | Z71: 0 | AB71: 66 | AC71: 16.68 | AD71: 0.99 | AE71: 1.56 | AF71: 2.73 | AG71: -0.02 | AH71: -0.8 | AI71: 15.79 | AK71: 66 | AL71: 15.71 | AM71: 0.96 | AN71: 1.58 | AO71: 1.53 | AP71: -1.02 | AQ71: -4.5 | AR71: 15.79 | AT71: 50 | AU71: 1.363 | AV71: 1.449 | AW71: 1.485 | AX71: 1.97
A72: 67 | B72: 0 | C72: 1 | D72: 0 | E72: 0 | F72: 0 | G72: 0 | H72: 0 | J72: 67 | K72: 0 | L72: 0 | M72: 0 | N72: 0 | O72: 0 | P72: 0 | Q72: 0 | S72: 67 | T72: 0 | U72: 0 | V72: 0 | W72: 0 | X72: 0 | Y72: 0 | Z72: 0 | AB72: 67 | AC72: 0 | AD72: 0 | AE72: 0 | AF72: 0 | AG72: 0 | AH72: 0 | AI72: 0 | AK72: 67 | AL72: 16.12 | AM72: 0.99 | AN72: 1.57 | AO72: 2.57 | AP72: -0.05 | AQ72: -4.5 | AR72: 15.3 | AT72: 51 | AU72: 1.371 | AV72: 1.46 | AW72: 1.497 | AX72: 1.997
A73: 68 | B73: 0 | C73: 1 | D73: 0 | E73: 0 | F73: 0 | G73: 0 | H73: 0 | J73: 68 | K73: 0 | L73: 0 | M73: 0 | N73: 0 | O73: 0 | P73: 0 | Q73: 0 | S73: 68 | T73: 0 | U73: 0 | V73: 0 | W73: 0 | X73: 0 | Y73: 0 | Z73: 0 | AB73: 68 | AC73: 0 | AD73: 0 | AE73: 0 | AF73: 0 | AG73: 0 | AH73: 0 | AI73: 0 | AK73: 68 | AL73: 0 | AM73: 0 | AN73: 0 | AO73: 0 | AP73: 0 | AQ73: 0 | AR73: 0 | AT73: 52 | AU73: 1.379 | AV73: 1.47 | AW73: 1.509 | AX73: 2.023
A74: 69 | B74: 0 | C74: 1 | D74: 0 | E74: 0 | F74: 0 | G74: 0 | H74: 0 | J74: 69 | K74: 0 | L74: 0 | M74: 0 | N74: 0 | O74: 0 | P74: 0 | Q74: 0 | S74: 69 | T74: 0 | U74: 0 | V74: 0 | W74: 0 | X74: 0 | Y74: 0 | Z74: 0 | AB74: 69 | AC74: 0 | AD74: 0 | AE74: 0 | AF74: 0 | AG74: 0 | AH74: 0 | AI74: 0 | AK74: 69 | AL74: 0 | AM74: 0 | AN74: 0 | AO74: 0 | AP74: 0 | AQ74: 0 | AR74: 0 | AT74: 53 | AU74: 1.388 | AV74: 1.481 | AW74: 1.52 | AX74: 2.05
A75: 70 | B75: 0 | C75: 1 | D75: 0 | E75: 0 | F75: 0 | G75: 0 | H75: 0 | J75: 70 | K75: 0 | L75: 0 | M75: 0 | N75: 0 | O75: 0 | P75: 0 | Q75: 0 | S75: 70 | T75: 0 | U75: 0 | V75: 0 | W75: 0 | X75: 0 | Y75: 0 | Z75: 0 | AB75: 70 | AC75: 0 | AD75: 0 | AE75: 0 | AF75: 0 | AG75: 0 | AH75: 0 | AI75: 0 | AK75: 70 | AL75: 0 | AM75: 0 | AN75: 0 | AO75: 0 | AP75: 0 | AQ75: 0 | AR75: 0 | AT75: 54 | AU75: 1.396 | AV75: 1.492 | AW75: 1.532 | AX75: 2.078
A76: 71 | B76: 0 | C76: 1 | D76: 0 | E76: 0 | F76: 0 | G76: 0 | H76: 0 | J76: 71 | K76: 0 | L76: 0 | M76: 0 | N76: 0 | O76: 0 | P76: 0 | Q76: 0 | S76: 71 | T76: 0 | U76: 0 | V76: 0 | W76: 0 | X76: 0 | Y76: 0 | Z76: 0 | AB76: 71 | AC76: 0 | AD76: 0 | AE76: 0 | AF76: 0 | AG76: 0 | AH76: 0 | AI76: 0 | AK76: 71 | AL76: 0 | AM76: 0 | AN76: 0 | AO76: 0 | AP76: 0 | AQ76: 0 | AR76: 0 | AT76: 55 | AU76: 1.404 | AV76: 1.503 | AW76: 1.544 | AX76: 2.105
A77: 72 | B77: 0 | C77: 1 | D77: 0 | E77: 0 | F77: 0 | G77: 0 | H77: 0 | J77: 72 | K77: 0 | L77: 0 | M77: 0 | N77: 0 | O77: 0 | P77: 0 | Q77: 0 | S77: 72 | T77: 0 | U77: 0 | V77: 0 | W77: 0 | X77: 0 | Y77: 0 | Z77: 0 | AB77: 72 | AC77: 0 | AD77: 0 | AE77: 0 | AF77: 0 | AG77: 0 | AH77: 0 | AI77: 0 | AK77: 72 | AL77: 0 | AM77: 0 | AN77: 0 | AO77: 0 | AP77: 0 | AQ77: 0 | AR77: 0
A78: 73 | B78: 0 | C78: 1 | D78: 0 | E78: 0 | F78: 0 | G78: 0 | H78: 0 | J78: 73 | K78: 0 | L78: 0 | M78: 0 | N78: 0 | O78: 0 | P78: 0 | Q78: 0 | S78: 73 | T78: 0 | U78: 0 | V78: 0 | W78: 0 | X78: 0 | Y78: 0 | Z78: 0 | AB78: 73 | AC78: 0 | AD78: 0 | AE78: 0 | AF78: 0 | AG78: 0 | AH78: 0 | AI78: 0 | AK78: 73 | AL78: 0 | AM78: 0 | AN78: 0 | AO78: 0 | AP78: 0 | AQ78: 0 | AR78: 0
A79: 74 | B79: 0 | C79: 1 | D79: 0 | E79: 0 | F79: 0 | G79: 0 | H79: 0 | J79: 74 | K79: 0 | L79: 0 | M79: 0 | N79: 0 | O79: 0 | P79: 0 | Q79: 0 | S79: 74 | T79: 0 | U79: 0 | V79: 0 | W79: 0 | X79: 0 | Y79: 0 | Z79: 0 | AB79: 74 | AC79: 0 | AD79: 0 | AE79: 0 | AF79: 0 | AG79: 0 | AH79: 0 | AI79: 0 | AK79: 74 | AL79: 0 | AM79: 0 | AN79: 0 | AO79: 0 | AP79: 0 | AQ79: 0 | AR79: 0
A81: SCAPE 2018 | B81: Non-Club factors for females with a pension age of 60 | J81: SCAPE 2018 | K81: Non-Club factors for females with a pension age of 65 | S81: SCAPE 2018 | T81: Non-Club factors for females with a pension age of 66 | AB81: SCAPE 2018 | AC81: Non-Club factors for females with a pension age of 67 | AK81: SCAPE 2018 | AL81: Non-Club factors for females with a pension age of 68
A82: Age last birthday at guarantee date | B82: Gross pension of £1 per annum | C82: Lump sum of £1 | D82: Widower’s pension of £1 per annum | E82: Deduction for GMP of £1 per annum | H82: Deduction for NI modification of £1 pa | J82: Age last birthday at guarantee date | K82: Gross pension of £1 per annum | L82: Lump sum of £1 | M82: Widow’s pension2 of £1 per annum | N82: Deduction for GMP of £1 per annum | Q82: Deduction for NI modification of £1 pa | S82: Age last birthday at guarantee date | T82: Gross pension of £1 per annum | U82: Lump sum of £1 | V82: Widower’s pension of £1 per annum | W82: Deduction for GMP of £1 per annum | Z82: Deduction for NI modification of £1 pa | AB82: Age last birthday at guarantee date | AC82: Gross pension of £1 per annum | AD82: Lump sum of £1 | AE82: Widower’s pension of £1 per annum | AF82: Deduction for GMP of £1 per annum | AI82: Deduction for NI modification of £1 pa | AK82: Age last birthday at guarantee date | AL82: Gross pension of £1 per annum | AM82: Lump sum of £1 | AN82: Widower’s pension of £1 per annum | AO82: Deduction for GMP of £1 per annum | AR82: Deduction for NI modification of £1 pa
E84: Pre-88 factor | F84: Post-88 factor | G84: Post-88 adj. | N84: Pre-88 factor | O84: Post-88 factor | P84: Post-88 adj. | W84: Pre-88 factor | X84: Post-88 factor | Y84: Post-88 adj. | AF84: Pre-88 factor | AG84: Post-88 factor | AH84: Post-88 adj. | AO84: Pre-88 factor | AP84: Post-88 factor | AQ84: Post-88 adj.
A85: 16 | B85: 0 | C85: 0 | D85: 0 | E85: 0 | F85: 0 | G85: 0 | H85: 0 | J85: 16 | K85: 0 | L85: 0 | M85: 0 | N85: 0 | O85: 0 | P85: 0 | Q85: 0 | S85: 16 | T85: 4.35 | U85: 0.23 | V85: 0.66 | W85: -1.26 | X85: -1.26 | Y85: 2 | Z85: 4.6 | AB85: 16 | AC85: 0 | AD85: 0 | AE85: 0 | AF85: 0 | AG85: 0 | AH85: 0 | AI85: 0 | AK85: 16 | AL85: 0 | AM85: 0 | AN85: 0 | AO85: 0 | AP85: 0 | AQ85: 0 | AR85: 0
A86: 17 | B86: 0 | C86: 0 | D86: 0 | E86: 0 | F86: 0 | G86: 0 | H86: 0 | J86: 17 | K86: 0 | L86: 0 | M86: 0 | N86: 0 | O86: 0 | P86: 0 | Q86: 0 | S86: 17 | T86: 4.48 | U86: 0.24 | V86: 0.68 | W86: -1.28 | X86: -1.28 | Y86: 2 | Z86: 4.72 | AB86: 17 | AC86: 0 | AD86: 0 | AE86: 0 | AF86: 0 | AG86: 0 | AH86: 0 | AI86: 0 | AK86: 17 | AL86: 0 | AM86: 0 | AN86: 0 | AO86: 0 | AP86: 0 | AQ86: 0 | AR86: 0
A87: 18 | B87: 0 | C87: 0 | D87: 0 | E87: 0 | F87: 0 | G87: 0 | H87: 0 | J87: 18 | K87: 0 | L87: 0 | M87: 0 | N87: 0 | O87: 0 | P87: 0 | Q87: 0 | S87: 18 | T87: 4.61 | U87: 0.25 | V87: 0.7 | W87: -1.3 | X87: -1.3 | Y87: 2 | Z87: 4.84 | AB87: 18 | AC87: 0 | AD87: 0 | AE87: 0 | AF87: 0 | AG87: 0 | AH87: 0 | AI87: 0 | AK87: 18 | AL87: 0 | AM87: 0 | AN87: 0 | AO87: 0 | AP87: 0 | AQ87: 0 | AR87: 0
A88: 19 | B88: 0 | C88: 0 | D88: 0 | E88: 0 | F88: 0 | G88: 0 | H88: 0 | J88: 19 | K88: 0 | L88: 0 | M88: 0 | N88: 0 | O88: 0 | P88: 0 | Q88: 0 | S88: 19 | T88: 4.73 | U88: 0.26 | V88: 0.72 | W88: -1.32 | X88: -1.32 | Y88: 2 | Z88: 4.98 | AB88: 19 | AC88: 0 | AD88: 0 | AE88: 0 | AF88: 0 | AG88: 0 | AH88: 0 | AI88: 0 | AK88: 19 | AL88: 0 | AM88: 0 | AN88: 0 | AO88: 0 | AP88: 0 | AQ88: 0 | AR88: 0
A89: 20 | B89: 8.56 | C89: 0.39 | D89: 0.76 | E89: 3.02 | F89: 3.02 | G89: 0.15 | H89: 5.11 | J89: 20 | K89: 6.76 | L89: 0.27 | M89: 0.78 | N89: -0.84 | O89: -0.84 | P89: 3.5 | Q89: 5.11 | S89: 20 | T89: 6.43 | U89: 0.27 | V89: 0.78 | W89: -1.75 | X89: -1.75 | Y89: 2 | Z89: 5.11 | AB89: 20 | AC89: 6.11 | AD89: 0.26 | AE89: 0.78 | AF89: -2.62 | AG89: -2.62 | AH89: 1.7 | AI89: 5.11 | AK89: 20 | AL89: 5.79 | AM89: 0.25 | AN89: 0.79 | AO89: -3.47 | AP89: -3.47 | AQ89: 1.5 | AR89: 5.11
A90: 21 | B90: 8.75 | C90: 0.4 | D90: 0.78 | E90: 3.01 | F90: 3.01 | G90: 0.15 | H90: 5.25 | J90: 21 | K90: 6.91 | L90: 0.28 | M90: 0.79 | N90: -0.86 | O90: -0.86 | P90: 3.5 | Q90: 5.25 | S90: 21 | T90: 6.57 | U90: 0.27 | V90: 0.8 | W90: -1.76 | X90: -1.76 | Y90: 2 | Z90: 5.25 | AB90: 21 | AC90: 6.24 | AD90: 0.27 | AE90: 0.8 | AF90: -2.64 | AG90: -2.64 | AH90: 1.7 | AI90: 5.25 | AK90: 21 | AL90: 5.91 | AM90: 0.26 | AN90: 0.81 | AO90: -3.49 | AP90: -3.49 | AQ90: 1.5 | AR90: 5.25
A91: 22 | B91: 8.94 | C91: 0.41 | D91: 0.8 | E91: 3.01 | F91: 3.01 | G91: 0.15 | H91: 5.39 | J91: 22 | K91: 7.05 | L91: 0.29 | M91: 0.81 | N91: -0.87 | O91: -0.87 | P91: 3.5 | Q91: 5.39 | S91: 22 | T91: 6.71 | U91: 0.28 | V91: 0.82 | W91: -1.78 | X91: -1.78 | Y91: 2 | Z91: 5.39 | AB91: 22 | AC91: 6.37 | AD91: 0.28 | AE91: 0.82 | AF91: -2.66 | AG91: -2.66 | AH91: 1.7 | AI91: 5.39 | AK91: 22 | AL91: 6.04 | AM91: 0.27 | AN91: 0.82 | AO91: -3.51 | AP91: -3.51 | AQ91: 1.5 | AR91: 5.39
A92: 23 | B92: 9.13 | C92: 0.42 | D92: 0.82 | E92: 3.01 | F92: 3.01 | G92: 0.15 | H92: 5.54 | J92: 23 | K92: 7.21 | L92: 0.3 | M92: 0.83 | N92: -0.89 | O92: -0.89 | P92: 3.5 | Q92: 5.54 | S92: 23 | T92: 6.85 | U92: 0.29 | V92: 0.84 | W92: -1.8 | X92: -1.8 | Y92: 2 | Z92: 5.54 | AB92: 23 | AC92: 6.5 | AD92: 0.28 | AE92: 0.84 | AF92: -2.68 | AG92: -2.68 | AH92: 1.7 | AI92: 5.54 | AK92: 23 | AL92: 6.16 | AM92: 0.28 | AN92: 0.84 | AO92: -3.53 | AP92: -3.53 | AQ92: 1.5 | AR92: 5.54
A93: 24 | B93: 9.33 | C93: 0.43 | D93: 0.84 | E93: 3 | F93: 3 | G93: 0.15 | H93: 5.69 | J93: 24 | K93: 7.36 | L93: 0.31 | M93: 0.85 | N93: -0.9 | O93: -0.9 | P93: 3.5 | Q93: 5.69 | S93: 24 | T93: 6.99 | U93: 0.3 | V93: 0.85 | W93: -1.82 | X93: -1.82 | Y93: 2 | Z93: 5.69 | AB93: 24 | AC93: 6.64 | AD93: 0.29 | AE93: 0.86 | AF93: -2.7 | AG93: -2.7 | AH93: 1.7 | AI93: 5.69 | AK93: 24 | AL93: 6.29 | AM93: 0.28 | AN93: 0.86 | AO93: -3.55 | AP93: -3.55 | AQ93: 1.5 | AR93: 5.69
A94: 25 | B94: 9.54 | C94: 0.44 | D94: 0.86 | E94: 3 | F94: 3 | G94: 0.15 | H94: 5.85 | J94: 25 | K94: 7.52 | L94: 0.32 | M94: 0.87 | N94: -0.92 | O94: -0.92 | P94: 3.5 | Q94: 5.85 | S94: 25 | T94: 7.14 | U94: 0.31 | V94: 0.87 | W94: -1.83 | X94: -1.83 | Y94: 2 | Z94: 5.85 | AB94: 25 | AC94: 6.78 | AD94: 0.3 | AE94: 0.88 | AF94: -2.72 | AG94: -2.72 | AH94: 1.7 | AI94: 5.85 | AK94: 25 | AL94: 6.43 | AM94: 0.29 | AN94: 0.88 | AO94: -3.57 | AP94: -3.57 | AQ94: 1.5 | AR94: 5.85
A95: 26 | B95: 9.75 | C95: 0.45 | D95: 0.88 | E95: 2.99 | F95: 2.99 | G95: 0.15 | H95: 6.01 | J95: 26 | K95: 7.68 | L95: 0.33 | M95: 0.89 | N95: -0.93 | O95: -0.93 | P95: 3.5 | Q95: 6.01 | S95: 26 | T95: 7.3 | U95: 0.32 | V95: 0.89 | W95: -1.85 | X95: -1.85 | Y95: 2 | Z95: 6.01 | AB95: 26 | AC95: 6.92 | AD95: 0.31 | AE95: 0.9 | AF95: -2.74 | AG95: -2.74 | AH95: 1.7 | AI95: 6.01 | AK95: 26 | AL95: 6.56 | AM95: 0.3 | AN95: 0.9 | AO95: -3.59 | AP95: -3.59 | AQ95: 1.5 | AR95: 6.01
A96: 27 | B96: 9.96 | C96: 0.46 | D96: 0.89 | E96: 2.99 | F96: 2.99 | G96: 0.15 | H96: 6.18 | J96: 27 | K96: 7.84 | L96: 0.34 | M96: 0.91 | N96: -0.95 | O96: -0.95 | P96: 3.5 | Q96: 6.18 | S96: 27 | T96: 7.45 | U96: 0.33 | V96: 0.92 | W96: -1.87 | X96: -1.87 | Y96: 2 | Z96: 6.18 | AB96: 27 | AC96: 7.07 | AD96: 0.32 | AE96: 0.92 | AF96: -2.76 | AG96: -2.76 | AH96: 1.7 | AI96: 6.18 | AK96: 27 | AL96: 6.7 | AM96: 0.31 | AN96: 0.93 | AO96: -3.61 | AP96: -3.61 | AQ96: 1.5 | AR96: 6.18
A97: 28 | B97: 10.18 | C97: 0.47 | D97: 0.91 | E97: 2.99 | F97: 2.99 | G97: 0.15 | H97: 6.35 | J97: 28 | K97: 8.01 | L97: 0.35 | M97: 0.93 | N97: -0.96 | O97: -0.96 | P97: 3.5 | Q97: 6.35 | S97: 28 | T97: 7.61 | U97: 0.34 | V97: 0.94 | W97: -1.89 | X97: -1.89 | Y97: 2 | Z97: 6.35 | AB97: 28 | AC97: 7.22 | AD97: 0.33 | AE97: 0.94 | AF97: -2.78 | AG97: -2.78 | AH97: 1.7 | AI97: 6.35 | AK97: 28 | AL97: 6.84 | AM97: 0.32 | AN97: 0.95 | AO97: -3.64 | AP97: -3.64 | AQ97: 1.5 | AR97: 6.35
A98: 29 | B98: 10.4 | C98: 0.49 | D98: 0.93 | E98: 2.98 | F98: 2.98 | G98: 0.15 | H98: 6.53 | J98: 29 | K98: 8.18 | L98: 0.36 | M98: 0.95 | N98: -0.98 | O98: -0.98 | P98: 3.5 | Q98: 6.53 | S98: 29 | T98: 7.77 | U98: 0.35 | V98: 0.96 | W98: -1.9 | X98: -1.9 | Y98: 2 | Z98: 6.53 | AB98: 29 | AC98: 7.37 | AD98: 0.34 | AE98: 0.96 | AF98: -2.8 | AG98: -2.8 | AH98: 1.7 | AI98: 6.53 | AK98: 29 | AL98: 6.98 | AM98: 0.33 | AN98: 0.97 | AO98: -3.66 | AP98: -3.66 | AQ98: 1.5 | AR98: 6.53
A99: 30 | B99: 10.63 | C99: 0.5 | D99: 0.96 | E99: 2.98 | F99: 2.98 | G99: 0.15 | H99: 6.71 | J99: 30 | K99: 8.36 | L99: 0.37 | M99: 0.97 | N99: -0.99 | O99: -0.99 | P99: 3.5 | Q99: 6.71 | S99: 30 | T99: 7.94 | U99: 0.36 | V99: 0.98 | W99: -1.92 | X99: -1.92 | Y99: 2 | Z99: 6.71 | AB99: 30 | AC99: 7.53 | AD99: 0.35 | AE99: 0.98 | AF99: -2.82 | AG99: -2.82 | AH99: 1.7 | AI99: 6.71 | AK99: 30 | AL99: 7.13 | AM99: 0.34 | AN99: 0.99 | AO99: -3.68 | AP99: -3.68 | AQ99: 1.5 | AR99: 6.71
A100: 31 | B100: 10.87 | C100: 0.51 | D100: 0.98 | E100: 2.97 | F100: 2.97 | G100: 0.15 | H100: 6.89 | J100: 31 | K100: 8.54 | L100: 0.38 | M100: 0.99 | N100: -1.01 | O100: -1.01 | P100: 3.5 | Q100: 6.89 | S100: 31 | T100: 8.11 | U100: 0.37 | V100: 1 | W100: -1.94 | X100: -1.94 | Y100: 2 | Z100: 6.89 | AB100: 31 | AC100: 7.69 | AD100: 0.36 | AE100: 1 | AF100: -2.84 | AG100: -2.84 | AH100: 1.7 | AI100: 6.89 | AK100: 31 | AL100: 7.28 | AM100: 0.35 | AN100: 1.01 | AO100: -3.7 | AP100: -3.7 | AQ100: 1.5 | AR100: 6.89
A101: 32 | B101: 11.1 | C101: 0.52 | D101: 1 | E101: 2.97 | F101: 2.97 | G101: 0.15 | H101: 7.08 | J101: 32 | K101: 8.72 | L101: 0.39 | M101: 1.02 | N101: -1.02 | O101: -1.02 | P101: 3.5 | Q101: 7.08 | S101: 32 | T101: 8.28 | U101: 0.38 | V101: 1.02 | W101: -1.96 | X101: -1.96 | Y101: 2 | Z101: 7.08 | AB101: 32 | AC101: 7.85 | AD101: 0.37 | AE101: 1.03 | AF101: -2.86 | AG101: -2.86 | AH101: 1.7 | AI101: 7.08 | AK101: 32 | AL101: 7.44 | AM101: 0.36 | AN101: 1.03 | AO101: -3.72 | AP101: -3.72 | AQ101: 1.5 | AR101: 7.08
A102: 33 | B102: 11.35 | C102: 0.53 | D102: 1.02 | E102: 2.97 | F102: 2.97 | G102: 0.15 | H102: 7.28 | J102: 33 | K102: 8.91 | L102: 0.4 | M102: 1.04 | N102: -1.04 | O102: -1.04 | P102: 3.5 | Q102: 7.28 | S102: 33 | T102: 8.46 | U102: 0.39 | V102: 1.04 | W102: -1.97 | X102: -1.97 | Y102: 2 | Z102: 7.28 | AB102: 33 | AC102: 8.02 | AD102: 0.38 | AE102: 1.05 | AF102: -2.88 | AG102: -2.88 | AH102: 1.7 | AI102: 7.28 | AK102: 33 | AL102: 7.59 | AM102: 0.37 | AN102: 1.05 | AO102: -3.75 | AP102: -3.75 | AQ102: 1.5 | AR102: 7.28
A103: 34 | B103: 11.6 | C103: 0.55 | D103: 1.04 | E103: 2.96 | F103: 2.96 | G103: 0.15 | H103: 7.48 | J103: 34 | K103: 9.1 | L103: 0.41 | M103: 1.06 | N103: -1.05 | O103: -1.05 | P103: 3.5 | Q103: 7.48 | S103: 34 | T103: 8.64 | U103: 0.4 | V103: 1.06 | W103: -1.99 | X103: -1.99 | Y103: 2 | Z103: 7.48 | AB103: 34 | AC103: 8.19 | AD103: 0.39 | AE103: 1.07 | AF103: -2.9 | AG103: -2.9 | AH103: 1.7 | AI103: 7.48 | AK103: 34 | AL103: 7.75 | AM103: 0.38 | AN103: 1.08 | AO103: -3.77 | AP103: -3.77 | AQ103: 1.5 | AR103: 7.48
A104: 35 | B104: 11.85 | C104: 0.56 | D104: 1.06 | E104: 2.96 | F104: 2.96 | G104: 0.15 | H104: 7.69 | J104: 35 | K104: 9.29 | L104: 0.43 | M104: 1.08 | N104: -1.07 | O104: -1.07 | P104: 3.5 | Q104: 7.69 | S104: 35 | T104: 8.82 | U104: 0.41 | V104: 1.09 | W104: -2.01 | X104: -2.01 | Y104: 2 | Z104: 7.69 | AB104: 35 | AC104: 8.36 | AD104: 0.4 | AE104: 1.09 | AF104: -2.92 | AG104: -2.92 | AH104: 1.7 | AI104: 7.69 | AK104: 35 | AL104: 7.92 | AM104: 0.39 | AN104: 1.1 | AO104: -3.79 | AP104: -3.79 | AQ104: 1.5 | AR104: 7.69
A105: 36 | B105: 12.12 | C105: 0.57 | D105: 1.08 | E105: 2.95 | F105: 2.95 | G105: 0.15 | H105: 7.9 | J105: 36 | K105: 9.49 | L105: 0.44 | M105: 1.1 | N105: -1.09 | O105: -1.09 | P105: 3.5 | Q105: 7.9 | S105: 36 | T105: 9.01 | U105: 0.43 | V105: 1.11 | W105: -2.03 | X105: -2.03 | Y105: 2 | Z105: 7.9 | AB105: 36 | AC105: 8.54 | AD105: 0.41 | AE105: 1.11 | AF105: -2.94 | AG105: -2.94 | AH105: 1.7 | AI105: 7.9 | AK105: 36 | AL105: 8.08 | AM105: 0.4 | AN105: 1.12 | AO105: -3.81 | AP105: -3.81 | AQ105: 1.5 | AR105: 7.9
A106: 37 | B106: 12.38 | C106: 0.59 | D106: 1.1 | E106: 2.95 | F106: 2.95 | G106: 0.15 | H106: 8.12 | J106: 37 | K106: 9.7 | L106: 0.45 | M106: 1.12 | N106: -1.1 | O106: -1.1 | P106: 3.5 | Q106: 8.12 | S106: 37 | T106: 9.2 | U106: 0.44 | V106: 1.13 | W106: -2.05 | X106: -2.05 | Y106: 2 | Z106: 8.12 | AB106: 37 | AC106: 8.72 | AD106: 0.43 | AE106: 1.13 | AF106: -2.96 | AG106: -2.96 | AH106: 1.7 | AI106: 8.12 | AK106: 37 | AL106: 8.25 | AM106: 0.42 | AN106: 1.14 | AO106: -3.84 | AP106: -3.84 | AQ106: 1.5 | AR106: 8.12
A107: 38 | B107: 12.66 | C107: 0.6 | D107: 1.12 | E107: 2.95 | F107: 2.95 | G107: 0.15 | H107: 8.35 | J107: 38 | K107: 9.91 | L107: 0.46 | M107: 1.14 | N107: -1.12 | O107: -1.12 | P107: 3.5 | Q107: 8.35 | S107: 38 | T107: 9.4 | U107: 0.45 | V107: 1.15 | W107: -2.06 | X107: -2.06 | Y107: 2 | Z107: 8.35 | AB107: 38 | AC107: 8.91 | AD107: 0.44 | AE107: 1.16 | AF107: -2.98 | AG107: -2.98 | AH107: 1.7 | AI107: 8.35 | AK107: 38 | AL107: 8.43 | AM107: 0.43 | AN107: 1.16 | AO107: -3.86 | AP107: -3.86 | AQ107: 1.5 | AR107: 8.35
A108: 39 | B108: 12.94 | C108: 0.62 | D108: 1.14 | E108: 2.94 | F108: 2.94 | G108: 0.15 | H108: 8.58 | J108: 39 | K108: 10.12 | L108: 0.48 | M108: 1.17 | N108: -1.13 | O108: -1.13 | P108: 3.5 | Q108: 8.58 | S108: 39 | T108: 9.6 | U108: 0.46 | V108: 1.17 | W108: -2.08 | X108: -2.08 | Y108: 2 | Z108: 8.58 | AB108: 39 | AC108: 9.1 | AD108: 0.45 | AE108: 1.18 | AF108: -3 | AG108: -3 | AH108: 1.7 | AI108: 8.58 | AK108: 39 | AL108: 8.61 | AM108: 0.44 | AN108: 1.19 | AO108: -3.88 | AP108: -3.88 | AQ108: 1.5 | AR108: 8.58
A109: 40 | B109: 13.23 | C109: 0.63 | D109: 1.16 | E109: 2.94 | F109: 2.94 | G109: 0.15 | H109: 8.82 | J109: 40 | K109: 10.34 | L109: 0.49 | M109: 1.19 | N109: -1.15 | O109: -1.15 | P109: 3.5 | Q109: 8.82 | S109: 40 | T109: 9.81 | U109: 0.48 | V109: 1.19 | W109: -2.1 | X109: -2.1 | Y109: 2 | Z109: 8.82 | AB109: 40 | AC109: 9.29 | AD109: 0.47 | AE109: 1.2 | AF109: -3.02 | AG109: -3.02 | AH109: 1.7 | AI109: 8.82 | AK109: 40 | AL109: 8.79 | AM109: 0.45 | AN109: 1.21 | AO109: -3.9 | AP109: -3.9 | AQ109: 1.5 | AR109: 8.82
A110: 41 | B110: 13.52 | C110: 0.64 | D110: 1.18 | E110: 2.94 | F110: 2.94 | G110: 0.15 | H110: 9.06 | J110: 41 | K110: 10.57 | L110: 0.51 | M110: 1.21 | N110: -1.17 | O110: -1.17 | P110: 3.5 | Q110: 9.06 | S110: 41 | T110: 10.02 | U110: 0.49 | V110: 1.21 | W110: -2.12 | X110: -2.12 | Y110: 2 | Z110: 9.06 | AB110: 41 | AC110: 9.49 | AD110: 0.48 | AE110: 1.22 | AF110: -3.04 | AG110: -3.04 | AH110: 1.7 | AI110: 9.06 | AK110: 41 | AL110: 8.98 | AM110: 0.47 | AN110: 1.23 | AO110: -3.93 | AP110: -3.93 | AQ110: 1.5 | AR110: 9.06
A111: 42 | B111: 13.82 | C111: 0.66 | D111: 1.2 | E111: 2.93 | F111: 2.93 | G111: 0.15 | H111: 9.32 | J111: 42 | K111: 10.8 | L111: 0.52 | M111: 1.23 | N111: -1.18 | O111: -1.18 | P111: 3.5 | Q111: 9.32 | S111: 42 | T111: 10.24 | U111: 0.51 | V111: 1.24 | W111: -2.14 | X111: -2.14 | Y111: 2 | Z111: 9.32 | AB111: 42 | AC111: 9.7 | AD111: 0.49 | AE111: 1.24 | AF111: -3.06 | AG111: -3.06 | AH111: 1.7 | AI111: 9.32 | AK111: 42 | AL111: 9.17 | AM111: 0.48 | AN111: 1.25 | AO111: -3.95 | AP111: -3.95 | AQ111: 1.5 | AR111: 9.32
A112: 43 | B112: 14.13 | C112: 0.68 | D112: 1.22 | E112: 2.93 | F112: 2.93 | G112: 0.15 | H112: 9.58 | J112: 43 | K112: 11.03 | L112: 0.54 | M112: 1.25 | N112: -1.2 | O112: -1.2 | P112: 3.5 | Q112: 9.58 | S112: 43 | T112: 10.46 | U112: 0.52 | V112: 1.26 | W112: -2.16 | X112: -2.16 | Y112: 2 | Z112: 9.58 | AB112: 43 | AC112: 9.91 | AD112: 0.51 | AE112: 1.26 | AF112: -3.08 | AG112: -3.08 | AH112: 1.7 | AI112: 9.58 | AK112: 43 | AL112: 9.37 | AM112: 0.49 | AN112: 1.27 | AO112: -3.98 | AP112: -3.98 | AQ112: 1.5 | AR112: 9.58
A113: 44 | B113: 14.45 | C113: 0.69 | D113: 1.24 | E113: 2.93 | F113: 2.93 | G113: 0.15 | H113: 9.84 | J113: 44 | K113: 11.27 | L113: 0.55 | M113: 1.27 | N113: -1.22 | O113: -1.22 | P113: 3.5 | Q113: 9.84 | S113: 44 | T113: 10.69 | U113: 0.54 | V113: 1.28 | W113: -2.18 | X113: -2.18 | Y113: 2 | Z113: 9.84 | AB113: 44 | AC113: 10.12 | AD113: 0.52 | AE113: 1.29 | AF113: -3.11 | AG113: -3.11 | AH113: 1.7 | AI113: 9.84 | AK113: 44 | AL113: 9.57 | AM113: 0.51 | AN113: 1.29 | AO113: -4 | AP113: -4 | AQ113: 1.5 | AR113: 9.84
A114: 45 | B114: 14.77 | C114: 0.71 | D114: 1.26 | E114: 2.92 | F114: 2.92 | G114: 0.15 | H114: 10.12 | J114: 45 | K114: 11.52 | L114: 0.57 | M114: 1.29 | N114: -1.23 | O114: -1.23 | P114: 3.5 | Q114: 10.12 | S114: 45 | T114: 10.92 | U114: 0.55 | V114: 1.3 | W114: -2.2 | X114: -2.2 | Y114: 2 | Z114: 10.12 | AB114: 45 | AC114: 10.34 | AD114: 0.54 | AE114: 1.31 | AF114: -3.13 | AG114: -3.13 | AH114: 1.7 | AI114: 10.12 | AK114: 45 | AL114: 9.77 | AM114: 0.52 | AN114: 1.32 | AO114: -4.02 | AP114: -4.02 | AQ114: 1.5 | AR114: 10.12
A115: 46 | B115: 15.1 | C115: 0.73 | D115: 1.28 | E115: 2.92 | F115: 2.92 | G115: 0.15 | H115: 10.4 | J115: 46 | K115: 11.77 | L115: 0.59 | M115: 1.31 | N115: -1.25 | O115: -1.25 | P115: 3.5 | Q115: 10.4 | S115: 46 | T115: 11.16 | U115: 0.57 | V115: 1.32 | W115: -2.22 | X115: -2.22 | Y115: 2 | Z115: 10.4 | AB115: 46 | AC115: 10.56 | AD115: 0.55 | AE115: 1.33 | AF115: -3.15 | AG115: -3.15 | AH115: 1.7 | AI115: 10.4 | AK115: 46 | AL115: 9.98 | AM115: 0.54 | AN115: 1.34 | AO115: -4.05 | AP115: -4.05 | AQ115: 1.5 | AR115: 10.4
A116: 47 | B116: 15.44 | C116: 0.74 | D116: 1.3 | E116: 2.92 | F116: 2.92 | G116: 0.15 | H116: 10.69 | J116: 47 | K116: 12.03 | L116: 0.6 | M116: 1.33 | N116: -1.27 | O116: -1.27 | P116: 3.5 | Q116: 10.69 | S116: 47 | T116: 11.4 | U116: 0.59 | V116: 1.34 | W116: -2.24 | X116: -2.24 | Y116: 2 | Z116: 10.69 | AB116: 47 | AC116: 10.79 | AD116: 0.57 | AE116: 1.35 | AF116: -3.17 | AG116: -3.17 | AH116: 1.7 | AI116: 10.69 | AK116: 47 | AL116: 10.2 | AM116: 0.55 | AN116: 1.36 | AO116: -4.07 | AP116: -4.07 | AQ116: 1.5 | AR116: 10.69
A117: 48 | B117: 15.79 | C117: 0.76 | D117: 1.32 | E117: 2.91 | F117: 2.91 | G117: 0.15 | H117: 10.99 | J117: 48 | K117: 12.29 | L117: 0.62 | M117: 1.35 | N117: -1.28 | O117: -1.28 | P117: 3.5 | Q117: 10.99 | S117: 48 | T117: 11.65 | U117: 0.6 | V117: 1.36 | W117: -2.26 | X117: -2.26 | Y117: 2 | Z117: 10.99 | AB117: 48 | AC117: 11.02 | AD117: 0.59 | AE117: 1.37 | AF117: -3.2 | AG117: -3.2 | AH117: 1.7 | AI117: 10.99 | AK117: 48 | AL117: 10.42 | AM117: 0.57 | AN117: 1.38 | AO117: -4.1 | AP117: -4.1 | AQ117: 1.5 | AR117: 10.99
A118: 49 | B118: 16.15 | C118: 0.78 | D118: 1.34 | E118: 2.91 | F118: 2.91 | G118: 0.15 | H118: 11.3 | J118: 49 | K118: 12.57 | L118: 0.64 | M118: 1.38 | N118: -1.3 | O118: -1.3 | P118: 3.5 | Q118: 11.3 | S118: 49 | T118: 11.91 | U118: 0.62 | V118: 1.38 | W118: -2.28 | X118: -2.28 | Y118: 2 | Z118: 11.3 | AB118: 49 | AC118: 11.26 | AD118: 0.6 | AE118: 1.39 | AF118: -3.22 | AG118: -3.22 | AH118: 1.7 | AI118: 11.3 | AK118: 49 | AL118: 10.64 | AM118: 0.59 | AN118: 1.4 | AO118: -4.12 | AP118: -4.12 | AQ118: 1.5 | AR118: 11.3
A119: 50 | B119: 16.52 | C119: 0.8 | D119: 1.36 | E119: 2.91 | F119: 2.91 | G119: 0.15 | H119: 11.62 | J119: 50 | K119: 12.84 | L119: 0.66 | M119: 1.4 | N119: -1.32 | O119: -1.32 | P119: 3.5 | Q119: 11.62 | S119: 50 | T119: 12.17 | U119: 0.64 | V119: 1.4 | W119: -2.3 | X119: -2.3 | Y119: 2 | Z119: 11.62 | AB119: 50 | AC119: 11.51 | AD119: 0.62 | AE119: 1.41 | AF119: -3.24 | AG119: -3.24 | AH119: 1.7 | AI119: 11.62 | AK119: 50 | AL119: 10.87 | AM119: 0.6 | AN119: 1.42 | AO119: -4.15 | AP119: -4.15 | AQ119: 1.5 | AR119: 11.62
A120: 51 | B120: 16.89 | C120: 0.82 | D120: 1.38 | E120: 2.9 | F120: 2.9 | G120: 0.15 | H120: 11.95 | J120: 51 | K120: 13.13 | L120: 0.68 | M120: 1.41 | N120: -1.34 | O120: -1.34 | P120: 3.5 | Q120: 11.95 | S120: 51 | T120: 12.44 | U120: 0.66 | V120: 1.42 | W120: -2.32 | X120: -2.32 | Y120: 2 | Z120: 11.95 | AB120: 51 | AC120: 11.76 | AD120: 0.64 | AE120: 1.43 | AF120: -3.27 | AG120: -3.27 | AH120: 1.7 | AI120: 11.95 | AK120: 51 | AL120: 11.11 | AM120: 0.62 | AN120: 1.44 | AO120: -4.18 | AP120: -4.18 | AQ120: 1.5 | AR120: 11.95
A121: 52 | B121: 17.28 | C121: 0.84 | D121: 1.4 | E121: 2.9 | F121: 2.9 | G121: 0.15 | H121: 12.29 | J121: 52 | K121: 13.42 | L121: 0.7 | M121: 1.43 | N121: -1.36 | O121: -1.36 | P121: 3.5 | Q121: 12.29 | S121: 52 | T121: 12.71 | U121: 0.68 | V121: 1.44 | W121: -2.34 | X121: -2.34 | Y121: 2 | Z121: 12.29 | AB121: 52 | AC121: 12.02 | AD121: 0.66 | AE121: 1.45 | AF121: -3.29 | AG121: -3.29 | AH121: 1.7 | AI121: 12.29 | AK121: 52 | AL121: 11.35 | AM121: 0.64 | AN121: 1.46 | AO121: -4.21 | AP121: -4.21 | AQ121: 1.5 | AR121: 12.29
A122: 53 | B122: 17.68 | C122: 0.86 | D122: 1.42 | E122: 2.9 | F122: 2.9 | G122: 0.15 | H122: 12.64 | J122: 53 | K122: 13.72 | L122: 0.72 | M122: 1.45 | N122: -1.37 | O122: -1.37 | P122: 3.5 | Q122: 12.64 | S122: 53 | T122: 13 | U122: 0.7 | V122: 1.46 | W122: -2.36 | X122: -2.36 | Y122: 2 | Z122: 12.64 | AB122: 53 | AC122: 12.29 | AD122: 0.68 | AE122: 1.47 | AF122: -3.32 | AG122: -3.32 | AH122: 1.7 | AI122: 12.64 | AK122: 53 | AL122: 11.6 | AM122: 0.66 | AN122: 1.48 | AO122: -4.23 | AP122: -4.23 | AQ122: 1.5 | AR122: 12.64
A123: 54 | B123: 18.09 | C123: 0.88 | D123: 1.43 | E123: 2.9 | F123: 2.9 | G123: 0.15 | H123: 13 | J123: 54 | K123: 14.04 | L123: 0.74 | M123: 1.47 | N123: -1.39 | O123: -1.39 | P123: 3.5 | Q123: 13 | S123: 54 | T123: 13.29 | U123: 0.72 | V123: 1.48 | W123: -2.39 | X123: -2.39 | Y123: 2 | Z123: 13 | AB123: 54 | AC123: 12.56 | AD123: 0.7 | AE123: 1.49 | AF123: -3.34 | AG123: -3.34 | AH123: 1.7 | AI123: 13 | AK123: 54 | AL123: 11.86 | AM123: 0.68 | AN123: 1.5 | AO123: -4.26 | AP123: -4.26 | AQ123: 1.5 | AR123: 13
A124: 55 | B124: 18.51 | C124: 0.9 | D124: 1.45 | E124: 2.9 | F124: 2.9 | G124: 0.15 | H124: 13.38 | J124: 55 | K124: 14.36 | L124: 0.76 | M124: 1.48 | N124: -1.41 | O124: -1.41 | P124: 3.5 | Q124: 13.38 | S124: 55 | T124: 13.59 | U124: 0.74 | V124: 1.49 | W124: -2.41 | X124: -2.41 | Y124: 2 | Z124: 13.38 | AB124: 55 | AC124: 12.85 | AD124: 0.72 | AE124: 1.5 | AF124: -3.37 | AG124: -3.37 | AH124: 1.7 | AI124: 13.38 | AK124: 55 | AL124: 12.12 | AM124: 0.7 | AN124: 1.51 | AO124: -4.29 | AP124: -4.29 | AQ124: 1.5 | AR124: 13.38
A125: 56 | B125: 18.95 | C125: 0.92 | D125: 1.46 | E125: 2.9 | F125: 2.9 | G125: 0.15 | H125: 13.77 | J125: 56 | K125: 14.68 | L125: 0.78 | M125: 1.5 | N125: -1.43 | O125: -1.43 | P125: 3.5 | Q125: 13.77 | S125: 56 | T125: 13.9 | U125: 0.76 | V125: 1.51 | W125: -2.43 | X125: -2.43 | Y125: 2 | Z125: 13.77 | AB125: 56 | AC125: 13.14 | AD125: 0.74 | AE125: 1.52 | AF125: -3.4 | AG125: -3.4 | AH125: 1.7 | AI125: 13.77 | AK125: 56 | AL125: 12.4 | AM125: 0.72 | AN125: 1.53 | AO125: -4.32 | AP125: -4.32 | AQ125: 1.5 | AR125: 13.77
A126: 57 | B126: 19.4 | C126: 0.94 | D126: 1.47 | E126: 2.9 | F126: 2.9 | G126: 0.15 | H126: 14.17 | J126: 57 | K126: 15.03 | L126: 0.8 | M126: 1.51 | N126: -1.45 | O126: -1.45 | P126: 3.5 | Q126: 14.17 | S126: 57 | T126: 14.22 | U126: 0.78 | V126: 1.52 | W126: -2.46 | X126: -2.46 | Y126: 2 | Z126: 14.17 | AB126: 57 | AC126: 13.44 | AD126: 0.76 | AE126: 1.53 | AF126: -3.42 | AG126: -3.42 | AH126: 1.7 | AI126: 14.17 | AK126: 57 | AL126: 12.68 | AM126: 0.74 | AN126: 1.54 | AO126: -4.36 | AP126: -4.36 | AQ126: 1.5 | AR126: 14.17
A127: 58 | B127: 19.87 | C127: 0.97 | D127: 1.48 | E127: 2.9 | F127: 2.9 | G127: 0.15 | H127: 14.59 | J127: 58 | K127: 15.38 | L127: 0.83 | M127: 1.52 | N127: -1.47 | O127: -1.47 | P127: 3.5 | Q127: 14.59 | S127: 58 | T127: 14.55 | U127: 0.8 | V127: 1.53 | W127: -2.48 | X127: -2.48 | Y127: 2 | Z127: 14.59 | AB127: 58 | AC127: 13.75 | AD127: 0.78 | AE127: 1.54 | AF127: -3.45 | AG127: -3.45 | AH127: 1.7 | AI127: 14.59 | AK127: 58 | AL127: 12.97 | AM127: 0.76 | AN127: 1.55 | AO127: -4.39 | AP127: -4.39 | AQ127: 1.5 | AR127: 14.59
A128: 59 | B128: 20.35 | C128: 0.99 | D128: 1.49 | E128: 2.97 | F128: 2.97 | G128: 0.15 | H128: 15.02 | J128: 59 | K128: 15.74 | L128: 0.85 | M128: 1.53 | N128: -1.53 | O128: -1.53 | P128: 3.5 | Q128: 15.02 | S128: 59 | T128: 14.89 | U128: 0.83 | V128: 1.54 | W128: -2.57 | X128: -2.57 | Y128: 2 | Z128: 15.02 | AB128: 59 | AC128: 14.07 | AD128: 0.8 | AE128: 1.55 | AF128: -3.57 | AG128: -3.57 | AH128: 1.7 | AI128: 15.02 | AK128: 59 | AL128: 13.27 | AM128: 0.78 | AN128: 1.56 | AO128: -4.53 | AP128: -4.53 | AQ128: 1.5 | AR128: 15.02
A129: 60 | B129: 0 | C129: 0 | D129: 0 | E129: 0 | F129: 0 | G129: 0 | H129: 0 | J129: 60 | K129: 16.12 | L129: 0.88 | M129: 1.54 | N129: -1.1 | O129: -3.72 | P129: 3.5 | Q129: 15.47 | S129: 60 | T129: 15.25 | U129: 0.85 | V129: 1.55 | W129: -2.18 | X129: -4.6 | Y129: 2 | Z129: 15.47 | AB129: 60 | AC129: 14.4 | AD129: 0.83 | AE129: 1.56 | AF129: -3.22 | AG129: -5.45 | AH129: 1.7 | AI129: 15.47 | AK129: 60 | AL129: 13.58 | AM129: 0.8 | AN129: 1.57 | AO129: -4.23 | AP129: -6.28 | AQ129: 1.5 | AR129: 15.47
A130: 61 | B130: 0 | C130: 0 | D130: 0 | E130: 0 | F130: 0 | G130: 0 | H130: 0 | J130: 61 | K130: 16.5 | L130: 0.9 | M130: 1.54 | N130: -0.14 | O130: -2.82 | P130: 3.5 | Q130: 15.94 | S130: 61 | T130: 15.61 | U130: 0.88 | V130: 1.55 | W130: -1.25 | X130: -3.74 | Y130: 2 | Z130: 15.94 | AB130: 61 | AC130: 14.74 | AD130: 0.85 | AE130: 1.57 | AF130: -2.33 | AG130: -4.62 | AH130: 1.7 | AI130: 15.94 | AK130: 61 | AL130: 13.9 | AM130: 0.83 | AN130: 1.58 | AO130: -3.36 | AP130: -5.47 | AQ130: 1.5 | AR130: 15.94
A131: 62 | B131: 0 | C131: 0 | D131: 0 | E131: 0 | F131: 0 | G131: 0 | H131: 0 | J131: 62 | K131: 16.91 | L131: 0.93 | M131: 1.55 | N131: 0.86 | O131: -1.9 | P131: 3.5 | Q131: 16.42 | S131: 62 | T131: 15.99 | U131: 0.9 | V131: 1.56 | W131: -0.29 | X131: -2.85 | Y131: 2 | Z131: 16.42 | AB131: 62 | AC131: 15.1 | AD131: 0.88 | AE131: 1.57 | AF131: -1.4 | AG131: -3.76 | AH131: 1.7 | AI131: 16.42 | AK131: 62 | AL131: 14.23 | AM131: 0.85 | AN131: 1.58 | AO131: -2.47 | AP131: -4.64 | AQ131: 1.5 | AR131: 16.42
A132: 63 | B132: 0 | C132: 0 | D132: 0 | E132: 0 | F132: 0 | G132: 0 | H132: 0 | J132: 63 | K132: 17.33 | L132: 0.96 | M132: 1.55 | N132: 1.89 | O132: -0.95 | P132: 3.5 | Q132: 16.93 | S132: 63 | T132: 16.39 | U132: 0.93 | V132: 1.56 | W132: 0.7 | X132: -1.93 | Y132: 2 | Z132: 16.93 | AB132: 63 | AC132: 15.47 | AD132: 0.9 | AE132: 1.57 | AF132: -0.45 | AG132: -2.87 | AH132: 1.7 | AI132: 16.93 | AK132: 63 | AL132: 14.58 | AM132: 0.88 | AN132: 1.58 | AO132: -1.55 | AP132: -3.78 | AQ132: 1.5 | AR132: 16.93
A133: 64 | B133: 0 | C133: 0 | D133: 0 | E133: 0 | F133: 0 | G133: 0 | H133: 0 | J133: 64 | K133: 17.77 | L133: 0.99 | M133: 1.55 | N133: 2.95 | O133: 0.03 | P133: 3.5 | Q133: 17.46 | S133: 64 | T133: 16.8 | U133: 0.96 | V133: 1.56 | W133: 1.72 | X133: -0.98 | Y133: 2 | Z133: 17.46 | AB133: 64 | AC133: 15.86 | AD133: 0.93 | AE133: 1.57 | AF133: 0.54 | AG133: -1.95 | AH133: 1.7 | AI133: 17.46 | AK133: 64 | AL133: 14.94 | AM133: 0.9 | AN133: 1.58 | AO133: -0.6 | AP133: -2.89 | AQ133: 1.5 | AR133: 17.46
A134: 60 | B134: 0 | C134: 0 | D134: 0 | E134: 0 | F134: 0 | G134: 0 | H134: 0 | J134: 65 | K134: 0 | L134: 0 | M134: 0 | N134: 0 | O134: 0 | P134: 0 | Q134: 0 | S134: 65 | T134: 17.23 | U134: 0.99 | V134: 1.56 | W134: 2.78 | X134: 0 | Y134: 2 | Z134: 17.5 | AB134: 65 | AC134: 16.26 | AD134: 0.96 | AE134: 1.57 | AF134: 1.56 | AG134: -1 | AH134: 1.7 | AI134: 17.5 | AK134: 65 | AL134: 15.32 | AM134: 0.93 | AN134: 1.58 | AO134: 0.38 | AP134: -1.97 | AQ134: 1.5 | AR134: 17.5
A135: 61 | B135: 0 | C135: 0 | D135: 0 | E135: 0 | F135: 0 | G135: 0 | H135: 0 | J135: 66 | K135: 0 | L135: 0 | M135: 0 | N135: 0 | O135: 0 | P135: 0 | Q135: 0 | S135: 66 | T135: 17.09 | U135: 1 | V135: 1.54 | W135: 3.34 | X135: 3.34 | Y135: 0.15 | Z135: 17.17 | AB135: 66 | AC135: 16.68 | AD135: 0.99 | AE135: 1.56 | AF135: 2.62 | AG135: -0.02 | AH135: 1.7 | AI135: 17.04 | AK135: 66 | AL135: 15.71 | AM135: 0.96 | AN135: 1.58 | AO135: 1.4 | AP135: -1.03 | AQ135: 1.5 | AR135: 17.04
A136: 62 | B136: 0 | C136: 0 | D136: 0 | E136: 0 | F136: 0 | G136: 0 | H136: 0 | J136: 67 | K136: 0 | L136: 0 | M136: 0 | N136: 0 | O136: 0 | P136: 0 | Q136: 0 | S136: 67 | T136: 16.63 | U136: 1 | V136: 1.53 | W136: 3.18 | X136: 3.18 | Y136: 0.15 | Z136: 16.71 | AB136: 67 | AC136: 0 | AD136: 0 | AE136: 0 | AF136: 0 | AG136: 0 | AH136: 0 | AI136: 0 | AK136: 67 | AL136: 16.12 | AM136: 0.99 | AN136: 1.57 | AO136: 2.45 | AP136: -0.05 | AQ136: 1.5 | AR136: 16.57
A137: 63 | B137: 0 | C137: 0 | D137: 0 | E137: 0 | F137: 0 | G137: 0 | H137: 0 | J137: 68 | K137: 0 | L137: 0 | M137: 0 | N137: 0 | O137: 0 | P137: 0 | Q137: 0 | S137: 68 | T137: 16.16 | U137: 1 | V137: 1.51 | W137: 3.01 | X137: 3.01 | Y137: 0.15 | Z137: 16.25 | AB137: 68 | AC137: 0 | AD137: 0 | AE137: 0 | AF137: 0 | AG137: 0 | AH137: 0 | AI137: 0 | AK137: 68 | AL137: 0 | AM137: 0 | AN137: 0 | AO137: 0 | AP137: 0 | AQ137: 0 | AR137: 0
A138: 64 | B138: 0 | C138: 0 | D138: 0 | E138: 0 | F138: 0 | G138: 0 | H138: 0 | J138: 69 | K138: 0 | L138: 0 | M138: 0 | N138: 0 | O138: 0 | P138: 0 | Q138: 0 | S138: 69 | T138: 15.68 | U138: 1 | V138: 1.48 | W138: 2.85 | X138: 2.85 | Y138: 0.15 | Z138: 15.78 | AB138: 69 | AC138: 0 | AD138: 0 | AE138: 0 | AF138: 0 | AG138: 0 | AH138: 0 | AI138: 0 | AK138: 69 | AL138: 0 | AM138: 0 | AN138: 0 | AO138: 0 | AP138: 0 | AQ138: 0 | AR138: 0
A139: 65 | B139: 0 | C139: 0 | D139: 0 | E139: 0 | F139: 0 | G139: 0 | H139: 0 | J139: 70 | K139: 0 | L139: 0 | M139: 0 | N139: 0 | O139: 0 | P139: 0 | Q139: 0 | S139: 70 | T139: 15.19 | U139: 1 | V139: 1.46 | W139: 2.68 | X139: 2.68 | Y139: 0.15 | Z139: 15.3 | AB139: 70 | AC139: 0 | AD139: 0 | AE139: 0 | AF139: 0 | AG139: 0 | AH139: 0 | AI139: 0 | AK139: 70 | AL139: 0 | AM139: 0 | AN139: 0 | AO139: 0 | AP139: 0 | AQ139: 0 | AR139: 0
A140: 66 | B140: 0 | C140: 0 | D140: 0 | E140: 0 | F140: 0 | G140: 0 | H140: 0 | J140: 71 | K140: 0 | L140: 0 | M140: 0 | N140: 0 | O140: 0 | P140: 0 | Q140: 0 | S140: 71 | T140: 14.7 | U140: 1 | V140: 1.42 | W140: 2.53 | X140: 2.53 | Y140: 0.15 | Z140: 14.82 | AB140: 71 | AC140: 0 | AD140: 0 | AE140: 0 | AF140: 0 | AG140: 0 | AH140: 0 | AI140: 0 | AK140: 71 | AL140: 0 | AM140: 0 | AN140: 0 | AO140: 0 | AP140: 0 | AQ140: 0 | AR140: 0
A141: 67 | B141: 0 | C141: 0 | D141: 0 | E141: 0 | F141: 0 | G141: 0 | H141: 0 | J141: 72 | K141: 0 | L141: 0 | M141: 0 | N141: 0 | O141: 0 | P141: 0 | Q141: 0 | S141: 72 | T141: 14.2 | U141: 1 | V141: 1.39 | W141: 2.37 | X141: 2.37 | Y141: 0.15 | Z141: 14.34 | AB141: 72 | AC141: 0 | AD141: 0 | AE141: 0 | AF141: 0 | AG141: 0 | AH141: 0 | AI141: 0 | AK141: 72 | AL141: 0 | AM141: 0 | AN141: 0 | AO141: 0 | AP141: 0 | AQ141: 0 | AR141: 0
A142: 68 | B142: 0 | C142: 0 | D142: 0 | E142: 0 | F142: 0 | G142: 0 | H142: 0 | J142: 73 | K142: 0 | L142: 0 | M142: 0 | N142: 0 | O142: 0 | P142: 0 | Q142: 0 | S142: 73 | T142: 13.69 | U142: 1 | V142: 1.34 | W142: 2.22 | X142: 2.22 | Y142: 0.15 | Z142: 13.85 | AB142: 73 | AC142: 0 | AD142: 0 | AE142: 0 | AF142: 0 | AG142: 0 | AH142: 0 | AI142: 0 | AK142: 73 | AL142: 0 | AM142: 0 | AN142: 0 | AO142: 0 | AP142: 0 | AQ142: 0 | AR142: 0
A143: 69 | B143: 0 | C143: 0 | D143: 0 | E143: 0 | F143: 0 | G143: 0 | H143: 0 | J143: 74 | K143: 0 | L143: 0 | M143: 0 | N143: 0 | O143: 0 | P143: 0 | Q143: 0 | S143: 74 | T143: 13.18 | U143: 1 | V143: 1.29 | W143: 2.07 | X143: 2.07 | Y143: 0.15 | Z143: 13.36 | AB143: 74 | AC143: 0 | AD143: 0 | AE143: 0 | AF143: 0 | AG143: 0 | AH143: 0 | AI143: 0 | AK143: 74 | AL143: 0 | AM143: 0 | AN143: 0 | AO143: 0 | AP143: 0 | AQ143: 0 | AR143: 0
A144: 70 | B144: 0 | C144: 0 | D144: 0 | E144: 0 | F144: 0 | G144: 0 | H144: 0
A145: 71 | B145: 0 | C145: 0 | D145: 0 | E145: 0 | F145: 0 | G145: 0 | H145: 0
A146: 72 | B146: 0 | C146: 0 | D146: 0 | E146: 0 | F146: 0 | G146: 0 | H146: 0
A147: 73 | B147: 0 | C147: 0 | D147: 0 | E147: 0 | F147: 0 | G147: 0 | H147: 0
